{"text_format":"1","workbook":"xlsx","n_sheets":9,"sheets":["Cultural Gap Assessment - WHOLE","SURVEYSTAT","STAT1","STAT2","RESULTS SCALE","INTERPRETATION","DIVISIONAL COMPARISON","SUMMARY STAT","QUESTIONS"],"not_rendered":{"charts":3,"images":0,"macros":1,"external_links":0,"defined_names":0,"comments":0,"pivot_tables":0},"unopened":[],"bounds":{"document_bytes":16777216,"sheet_cells":100000,"rows_first":2000,"rows_last":500,"rows_between":2000,"halvings":0,"cell_chars":16384,"cell_head_chars":4096},"cells_cut":0,"cells_raw":0,"read":"whole","date_system":"1900"}

{"sheet":"Cultural Gap Assessment - WHOLE","index":0,"n_rows":78,"n_cols":8,"rows_kept":78,"cut":false,"hidden":false,"merged":[]}
[]
[null,"Legacy Team Identification","Please select"]
[]
[null,"Cultural Dimension"]
[]
[null,"Strategic Orientation",1,2,3,4,5]
["S1","People/culture/organizational capability focused",null,null,null,null,null,"Market/profitability/shareholder value focused"]
["S2","People understand and are focused on the long-term mission & strategy ",null,null,null,null,null,"People are focused on doing business as usual or managing crises"]
["S3","Outcome-driven",null,null,null,null,null,"Process-driven"]
["S4","Growth stage of lifecycle",null,null,null,null,null,"Decline and disruption stage of lifecycle"]
["S5","Short-term profit orientation",null,null,null,null,null,"Long-term value orientation"]
["S6","Customer and market driven",null,null,null,null,null,"Technology driven"]
["S7","Fast and flexible response / MVP approach",null,null,null,null,null,"Quality, rigid process, and proven approaches paramount"]
[null,"Communication and Information Flow",1,2,3,4,5]
["I1","Information flow is centrally orchestrated (to the leader for decision-making; from the leader for direction)",null,null,null,null,null,"Information flow is distributed and adapted by different people (team members determine how they share and distribute information for different issues; information flow is free)"]
["I2","Structured and planned",null,null,null,null,null,"Sensing and emotionally-driven"]
["I3","Open and candid",null,null,null,null,null,"Filtered"]
[null,"Decision Making",1,2,3,4,5]
["D1","Formal long-term planning",null,null,null,null,null,"\"Gut feels\"; responsive and opportunistic"]
["D2","Top-down",null,null,null,null,null,"Distributed / Consensual"]
["D3","Authority is key",null,null,null,null,null,"Constructive conflict is key"]
[null,"Team Culture",1,2,3,4,5]
["C1","Family-like",null,null,null,null,null,"Business-like"]
["C2","Passion and intuition driven",null,null,null,null,null,"Logical and data driven"]
["C3","Cult-like",null,null,null,null,null,"Independent thinkers"]
["C4","Psychologically safe at all levels; open debate; all ideas welcome",null,null,null,null,null,"Psychologically safe at the top; guarded lower levels; little debate; ideas tied to proven expertise"]
["C5","Informal / personable",null,null,null,null,null,"Formal, business-like and task-oriented"]
["C6","Collaborative",null,null,null,null,null,"Competitive"]
["C7","Flexible ",null,null,null,null,null,"Rigid / punctual"]
["C8","Polite/indirect",null,null,null,null,null,"Blunt/direct (can be perceived as \"offensive\" by outsiders)"]
["C9","Openly and directly discuss problems, mistakes, challenges as a team",null,null,null,null,null,"Team members problem solve individually before bringing up issues with the team"]
["C10","Candidly voice authentic opinions",null,null,null,null,null,"Avoid conflict "]
["C11","Intense, high-energy",null,null,null,null,null,"Low-key, pensive, quiet, subdued"]
["C12","Adaptable to change and opportunities to learn and grow; tolerant of ambiguity and uncertainty",null,null,null,null,null,"Does not welcome change, focused on getting things done"]
["C13","\"Posturing\" with leaders is important",null,null,null,null,null,"Informality and debate / minimal political \"games\""]
["C14","Rigid silos ",null,null,null,null,null,"Cross-functional cooperation"]
["C15","High trust",null,null,null,null,null,"Low trust"]
[null,"Training and Development",1,2,3,4,5]
["L1","Formal / structured programs",null,null,null,null,null,"Informal programs adapted to individual needs"]
["L2","Considerable opportunity for learning and development",null,null,null,null,null,"Limited opportunity for deep learning; limited role mobility"]
["L3","Training tied to current roles",null,null,null,null,null,"Training tied to current roles, future roles and overall strategic direction of the business"]
[null,"Rewards and Recognition",1,2,3,4,5]
["R1","Individual performance",null,null,null,null,null,"Individual performance plus team and organizational performance"]
["R2","Performance expectations top-down",null,null,null,null,null,"Performance expectations co-developed"]
["R3","Seniority-based",null,null,null,null,null,"Performance-based"]
["R4","Performance standards and expectations are clear",null,null,null,null,null,"Performance standards and expectations are vague and ambiguous"]
["R5","Compensation is above market",null,null,null,null,null,"Compensation is below market"]
["R6","Compensation gaps across levels are narrower than average",null,null,null,null,null,"Compensation gaps across levels are wider than average"]
["R7","Feedback is more focused on performance management/improvement",null,null,null,null,null,"Feedback is more focused on growth"]
[null,"Risk-taking and Innovation",1,2,3,4,5]
["RT1","Risk averse; punitive for mistakes",null,null,null,null,null,"Calculating risk-taking encouraged and rewarded; mistakes are seen as learning opportunities"]
["RT2","Innovation is ad hoc; not formally rewarded",null,null,null,null,null,"Innovation is rewarded and actively funded based on objective criteria"]
["RT3","Employee ideas are solicited and acted upon",null,null,null,null,null,"Employee ideas are not acted upon"]
[null,"Planning and Analysis",1,2,3,4,5]
["P1","Long-term",null,null,null,null,null,"Short-term"]
["P2","Data use and analysis are maximized using advanced collection tools, skills and technology",null,null,null,null,null,"Data use and analysis are minimal"]
["P3","Proactive, future-oriented and strategic",null,null,null,null,null,"Reactive and focused on past performance"]
["P4","Focused on external opportunities and threats",null,null,null,null,null,"Focused on rigid resource allocation processes "]
[null,"Management Practices",1,2,3,4,5]
["MP1","Leadership is transparent and humble",null,null,null,null,null,"Leadership is opaque and charismatic"]
["MP2","Leaders are hard drivers",null,null,null,null,null,"Leaders focus on long-term organizational capability"]
["MP3","High levels of mentoring and coaching",null,null,null,null,null,"Mentoring and coaching is highly selective "]
["MP4","Rigid, formal, professional process, policies and procedures",null,null,null,null,null,"Informal, entrepreneurial processes"]
["MP5","Command and control leadership style",null,null,null,null,null,"Transformational leadership style"]
["MP6","Cost reduction and efficiency driven",null,null,null,null,null,"Quality driven"]
["MP7","People feel trusted, respected, appreciated, valued",null,null,null,null,null,"People feel like \"cogs in the wheel\"; replaceable"]
["MP8","Low stress",null,null,null,null,null,"High stress/burnout "]
["MP9","Learning orientation",null,null,null,null,null,"Performance orientation"]
["MP10","Leaders are actively engaged and help resolve conflict",null,null,null,null,null,"Leaders are aloof; sink-or-swim approach"]
["MP11","Leaders are seen as \"servant\"",null,null,null,null,null,"Leaders are seen as \"self-serving\""]
["MP12","Leaders see themselves in the \"parent\" role",null,null,null,null,null,"Leaders see themselves in the \"equal adult\" role"]
[null,"Team Structure and Process",1,2,3,4,5]
["T1","Hierarchical ",null,null,null,null,null,"Flat"]
["T2","Roles clearly defined and understood",null,null,null,null,null,"Roles are ambiguous and evolve easily"]
["T3","Team purpose and mission considered in defining team structure",null,null,null,null,null,"Seniority considered in defining team structure"]
["T4","Team meetings are effective at aligning team",null,null,null,null,null,"Team meetings are seen as a \"resource trap\""]
[null,"Technology",1,2,3,4,5]
["TECH1","State-of-the-art driven",null,null,null,null,null,"Compliance-driven"]

{"sheet":"SURVEYSTAT","index":1,"n_rows":71,"n_cols":7,"rows_kept":71,"cut":false,"hidden":false,"merged":[]}
[null,"Please select"]
[null,"Business1"]
[null,"Business2"]
[null,"Business3"]
[null,"Business4"]
[]
[null,"Resp",1]
[null,"Bus","Business1"]
[null,null,1,2,3,4,5]
[1,"S1"]
[2,"S2"]
[3,"S3"]
[4,"S4"]
[5,"S5"]
[6,"S6"]
[7,"S7"]
[8,"I1"]
[9,"I2"]
[10,"I3"]
[11,"D1"]
[12,"D2"]
[13,"D3"]
[14,"C1"]
[15,"C2"]
[16,"C3"]
[17,"C4"]
[18,"C5"]
[19,"C6"]
[20,"C7"]
[21,"C8"]
[22,"C9"]
[23,"C10"]
[24,"C11"]
[25,"C12"]
[26,"C13"]
[27,"C14"]
[28,"C15"]
[29,"L1"]
[30,"L2"]
[31,"L3"]
[32,"R1"]
[33,"R2"]
[34,"R3"]
[35,"R4"]
[36,"R5"]
[37,"R6"]
[38,"R7"]
[39,"RT1"]
[40,"RT2"]
[41,"RT3"]
[42,"P1"]
[43,"P2"]
[44,"P3"]
[45,"P4"]
[46,"MP1"]
[47,"MP2"]
[48,"MP3"]
[49,"MP4"]
[50,"MP5"]
[51,"MP6"]
[52,"MP7"]
[53,"MP8"]
[54,"MP9"]
[55,"MP10"]
[56,"MP11"]
[57,"MP12"]
[58,"T1"]
[59,"T2"]
[60,"T3"]
[61,"T4"]
[62,"TECH1"]

{"sheet":"STAT1","index":2,"n_rows":71,"n_cols":7,"rows_kept":71,"cut":false,"hidden":false,"merged":[]}
[null,"Please select"]
[null,"Business1"]
[null,"Business2"]
[null,"Business3"]
[null,"Business4"]
[]
[null,"Resp",1]
[null,"Bus","Business1"]
[null,null,1,2,3,4,5]
[1,"S1",null,true]
[2,"S2",null,null,null,true]
[3,"S3",null,true]
[4,"S4",null,null,true]
[5,"S5",null,null,null,true]
[6,"S6",null,true,null,false]
[7,"S7",null,true]
[8,"I1",null,false,true]
[9,"I2",null,true]
[10,"I3",null,null,true]
[11,"D1",null,true]
[12,"D2",null,null,true]
[13,"D3",null,true]
[14,"C1",null,true]
[15,"C2",null,null,true]
[16,"C3",null,null,null,true]
[17,"C4",null,true]
[18,"C5",null,true]
[19,"C6",null,true]
[20,"C7",null,true]
[21,"C8",true]
[22,"C9",null,true]
[23,"C10",null,true]
[24,"C11",null,null,true]
[25,"C12",null,true]
[26,"C13",null,null,true]
[27,"C14",true]
[28,"C15",true]
[29,"L1",null,true]
[30,"L2",null,true]
[31,"L3",null,null,true]
[32,"R1",null,true]
[33,"R2",null,null,null,true]
[34,"R3",null,null,null,true]
[35,"R4",null,true]
[36,"R5",null,null,null,null,true]
[37,"R6",null,null,null,true]
[38,"R7",null,null,true]
[39,"RT1",null,null,null,true]
[40,"RT2",null,true]
[41,"RT3",null,true]
[42,"P1",null,null,null,true]
[43,"P2",null,null,true]
[44,"P3",null,true]
[45,"P4",true]
[46,"MP1",null,null,true]
[47,"MP2",null,null,null,true]
[48,"MP3",null,null,true]
[49,"MP4",true]
[50,"MP5",null,true]
[51,"MP6",null,null,true]
[52,"MP7",null,true]
[53,"MP8",null,null,true]
[54,"MP9",null,null,true]
[55,"MP10",true]
[56,"MP11",null,true]
[57,"MP12",null,null,null,null,true]
[58,"T1",null,true]
[59,"T2",null,true]
[60,"T3",null,true]
[61,"T4",true]
[62,"TECH1",null,null,true]

{"sheet":"STAT2","index":3,"n_rows":71,"n_cols":7,"rows_kept":71,"cut":false,"hidden":false,"merged":[]}
[null,"Please select"]
[null,"Business1"]
[null,"Business2"]
[null,"Business3"]
[null,"Business4"]
[]
[null,"Resp",2]
[null,"Bus","Business2"]
[null,null,1,2,3,4,5]
[1,"S1",null,null,null,true]
[2,"S2",null,null,true,false]
[3,"S3",null,true,false]
[4,"S4",null,true]
[5,"S5",null,false,true]
[6,"S6",null,null,null,true]
[7,"S7",null,null,true]
[8,"I1",null,null,true]
[9,"I2",null,null,null,true]
[10,"I3",null,true]
[11,"D1",null,null,null,true]
[12,"D2",null,true]
[13,"D3",null,null,true]
[14,"C1",null,null,null,true]
[15,"C2",null,true]
[16,"C3",null,null,true]
[17,"C4",null,null,null,true]
[18,"C5",null,null,true]
[19,"C6",null,null,true]
[20,"C7",null,true]
[21,"C8",null,true]
[22,"C9",null,null,true]
[23,"C10",null,null,null,true]
[24,"C11",null,null,null,true]
[25,"C12",null,null,true]
[26,"C13",null,true]
[27,"C14",null,null,true]
[28,"C15",null,null,true]
[29,"L1",null,null,null,true]
[30,"L2",null,null,null,true]
[31,"L3",true]
[32,"R1",null,null,true]
[33,"R2",null,true]
[34,"R3",null,null,null,true]
[35,"R4",null,true]
[36,"R5",null,null,null,true]
[37,"R6",null,null,true]
[38,"R7",null,true]
[39,"RT1",null,null,true]
[40,"RT2",null,true]
[41,"RT3",null,null,null,true]
[42,"P1",null,null,null,true]
[43,"P2",null,null,true]
[44,"P3",null,null,true]
[45,"P4",null,true]
[46,"MP1",null,true]
[47,"MP2",null,true]
[48,"MP3",null,null,null,null,true]
[49,"MP4",null,null,null,null,true]
[50,"MP5",null,null,true]
[51,"MP6",null,true]
[52,"MP7",null,null,null,true]
[53,"MP8",null,null,null,true]
[54,"MP9",null,null,null,true]
[55,"MP10",null,null,true]
[56,"MP11",null,null,null,true]
[57,"MP12",null,true]
[58,"T1",null,true]
[59,"T2",null,false,null,true]
[60,"T3",null,null,true]
[61,"T4",null,null,null,true]
[62,"TECH1",null,null,true]

{"sheet":"RESULTS SCALE","index":4,"n_rows":64,"n_cols":24,"rows_kept":64,"cut":false,"hidden":false,"merged":[[0,20,6,20],[8,20,13,20],[15,20,20,20],[1,23,2,23]]}
[null,null,null,null,null,null,null,null,null,null,null,null,null,null,null,null,null,null,null,null,"MIDDLE POINT (equal number of responses above and below)",null,"DO NOT MOVE"]
["Question","HIGH","LOW","MEDIAN","Question2","HIGH ","LOW ","AVERAGE","Question3","HIGH  ","LOW  ","MODE",null,null,null,null,null,null,null,null,null,null,"SELECT ENTITY","select and run filter every time"]
["S1",{"$f":"INDEX('SUMMARY STAT'!$A$11:$BL$34,MATCH('RESULTS SCALE'!$B$2,'SUMMARY STAT'!$A$11:$A$34,0),MATCH('RESULTS SCALE'!A3,'SUMMARY STAT'!$A$11:$BL$11,0))","v":2},{"$f":"INDEX('SUMMARY STAT'!$A$11:$BL$34,MATCH('RESULTS SCALE'!$C$2,'SUMMARY STAT'!$A$11:$A$34,0),MATCH('RESULTS SCALE'!A3,'SUMMARY STAT'!$A$11:$BL$11,0))","v":2},{"$f":"INDEX('SUMMARY STAT'!$A$11:$BL$34,MATCH('RESULTS SCALE'!$D$2,'SUMMARY STAT'!$A$11:$A$34,0),MATCH('RESULTS SCALE'!A3,'SUMMARY STAT'!$A$11:$BL$11,0))","v":2},"S1",{"$f":"Table3[[#This Row],[HIGH]]","v":2},{"$f":"Table3[[#This Row],[LOW]]","v":2},{"$f":"INDEX('SUMMARY STAT'!$A$11:$BL$34,MATCH('RESULTS SCALE'!$H$2,'SUMMARY STAT'!$A$11:$A$34,0),MATCH('RESULTS SCALE'!A3,'SUMMARY STAT'!$A$11:$BL$11,0))","v":2},"S1",{"$f":"Table3[[#This Row],[HIGH]]","v":2},{"$f":"Table3[[#This Row],[LOW]]","v":2},{"$f":"INDEX('SUMMARY STAT'!$A$11:$BL$34,MATCH('RESULTS SCALE'!$L$2,'SUMMARY STAT'!$A$11:$A$34,0),MATCH('RESULTS SCALE'!A3,'SUMMARY STAT'!$A$11:$BL$11,0))","v":0},null,null,null,null,null,null,null,null,null,null,"Business1"]
["S2",{"$f":"INDEX('SUMMARY STAT'!$A$11:$BL$34,MATCH('RESULTS SCALE'!$B$2,'SUMMARY STAT'!$A$11:$A$34,0),MATCH('RESULTS SCALE'!A4,'SUMMARY STAT'!$A$11:$BL$11,0))","v":4},{"$f":"INDEX('SUMMARY STAT'!$A$11:$BL$34,MATCH('RESULTS SCALE'!$C$2,'SUMMARY STAT'!$A$11:$A$34,0),MATCH('RESULTS SCALE'!A4,'SUMMARY STAT'!$A$11:$BL$11,0))","v":4},{"$f":"INDEX('SUMMARY STAT'!$A$11:$BL$34,MATCH('RESULTS SCALE'!$D$2,'SUMMARY STAT'!$A$11:$A$34,0),MATCH('RESULTS SCALE'!A4,'SUMMARY STAT'!$A$11:$BL$11,0))","v":4},"S2",{"$f":"Table3[[#This Row],[HIGH]]","v":4},{"$f":"Table3[[#This Row],[LOW]]","v":4},{"$f":"INDEX('SUMMARY STAT'!$A$11:$BL$34,MATCH('RESULTS SCALE'!$H$2,'SUMMARY STAT'!$A$11:$A$34,0),MATCH('RESULTS SCALE'!A4,'SUMMARY STAT'!$A$11:$BL$11,0))","v":4},"S2",{"$f":"Table3[[#This Row],[HIGH]]","v":4},{"$f":"Table3[[#This Row],[LOW]]","v":4},{"$f":"INDEX('SUMMARY STAT'!$A$11:$BL$34,MATCH('RESULTS SCALE'!$L$2,'SUMMARY STAT'!$A$11:$A$34,0),MATCH('RESULTS SCALE'!A4,'SUMMARY STAT'!$A$11:$BL$11,0))","v":0}]
["S3",{"$f":"INDEX('SUMMARY STAT'!$A$11:$BL$34,MATCH('RESULTS SCALE'!$B$2,'SUMMARY STAT'!$A$11:$A$34,0),MATCH('RESULTS SCALE'!A5,'SUMMARY STAT'!$A$11:$BL$11,0))","v":2},{"$f":"INDEX('SUMMARY STAT'!$A$11:$BL$34,MATCH('RESULTS SCALE'!$C$2,'SUMMARY STAT'!$A$11:$A$34,0),MATCH('RESULTS SCALE'!A5,'SUMMARY STAT'!$A$11:$BL$11,0))","v":2},{"$f":"INDEX('SUMMARY STAT'!$A$11:$BL$34,MATCH('RESULTS SCALE'!$D$2,'SUMMARY STAT'!$A$11:$A$34,0),MATCH('RESULTS SCALE'!A5,'SUMMARY STAT'!$A$11:$BL$11,0))","v":2},"S3",{"$f":"Table3[[#This Row],[HIGH]]","v":2},{"$f":"Table3[[#This Row],[LOW]]","v":2},{"$f":"INDEX('SUMMARY STAT'!$A$11:$BL$34,MATCH('RESULTS SCALE'!$H$2,'SUMMARY STAT'!$A$11:$A$34,0),MATCH('RESULTS SCALE'!A5,'SUMMARY STAT'!$A$11:$BL$11,0))","v":2},"S3",{"$f":"Table3[[#This Row],[HIGH]]","v":2},{"$f":"Table3[[#This Row],[LOW]]","v":2},{"$f":"INDEX('SUMMARY STAT'!$A$11:$BL$34,MATCH('RESULTS SCALE'!$L$2,'SUMMARY STAT'!$A$11:$A$34,0),MATCH('RESULTS SCALE'!A5,'SUMMARY STAT'!$A$11:$BL$11,0))","v":2}]
["S4",{"$f":"INDEX('SUMMARY STAT'!$A$11:$BL$34,MATCH('RESULTS SCALE'!$B$2,'SUMMARY STAT'!$A$11:$A$34,0),MATCH('RESULTS SCALE'!A6,'SUMMARY STAT'!$A$11:$BL$11,0))","v":3},{"$f":"INDEX('SUMMARY STAT'!$A$11:$BL$34,MATCH('RESULTS SCALE'!$C$2,'SUMMARY STAT'!$A$11:$A$34,0),MATCH('RESULTS SCALE'!A6,'SUMMARY STAT'!$A$11:$BL$11,0))","v":3},{"$f":"INDEX('SUMMARY STAT'!$A$11:$BL$34,MATCH('RESULTS SCALE'!$D$2,'SUMMARY STAT'!$A$11:$A$34,0),MATCH('RESULTS SCALE'!A6,'SUMMARY STAT'!$A$11:$BL$11,0))","v":3},"S4",{"$f":"Table3[[#This Row],[HIGH]]","v":3},{"$f":"Table3[[#This Row],[LOW]]","v":3},{"$f":"INDEX('SUMMARY STAT'!$A$11:$BL$34,MATCH('RESULTS SCALE'!$H$2,'SUMMARY STAT'!$A$11:$A$34,0),MATCH('RESULTS SCALE'!A6,'SUMMARY STAT'!$A$11:$BL$11,0))","v":3},"S4",{"$f":"Table3[[#This Row],[HIGH]]","v":3},{"$f":"Table3[[#This Row],[LOW]]","v":3},{"$f":"INDEX('SUMMARY STAT'!$A$11:$BL$34,MATCH('RESULTS SCALE'!$L$2,'SUMMARY STAT'!$A$11:$A$34,0),MATCH('RESULTS SCALE'!A6,'SUMMARY STAT'!$A$11:$BL$11,0))","v":0}]
["S5",{"$f":"INDEX('SUMMARY STAT'!$A$11:$BL$34,MATCH('RESULTS SCALE'!$B$2,'SUMMARY STAT'!$A$11:$A$34,0),MATCH('RESULTS SCALE'!A7,'SUMMARY STAT'!$A$11:$BL$11,0))","v":4},{"$f":"INDEX('SUMMARY STAT'!$A$11:$BL$34,MATCH('RESULTS SCALE'!$C$2,'SUMMARY STAT'!$A$11:$A$34,0),MATCH('RESULTS SCALE'!A7,'SUMMARY STAT'!$A$11:$BL$11,0))","v":4},{"$f":"INDEX('SUMMARY STAT'!$A$11:$BL$34,MATCH('RESULTS SCALE'!$D$2,'SUMMARY STAT'!$A$11:$A$34,0),MATCH('RESULTS SCALE'!A7,'SUMMARY STAT'!$A$11:$BL$11,0))","v":4},"S5",{"$f":"Table3[[#This Row],[HIGH]]","v":4},{"$f":"Table3[[#This Row],[LOW]]","v":4},{"$f":"INDEX('SUMMARY STAT'!$A$11:$BL$34,MATCH('RESULTS SCALE'!$H$2,'SUMMARY STAT'!$A$11:$A$34,0),MATCH('RESULTS SCALE'!A7,'SUMMARY STAT'!$A$11:$BL$11,0))","v":4},"S5",{"$f":"Table3[[#This Row],[HIGH]]","v":4},{"$f":"Table3[[#This Row],[LOW]]","v":4},{"$f":"INDEX('SUMMARY STAT'!$A$11:$BL$34,MATCH('RESULTS SCALE'!$L$2,'SUMMARY STAT'!$A$11:$A$34,0),MATCH('RESULTS SCALE'!A7,'SUMMARY STAT'!$A$11:$BL$11,0))","v":0}]
["S6",{"$f":"INDEX('SUMMARY STAT'!$A$11:$BL$34,MATCH('RESULTS SCALE'!$B$2,'SUMMARY STAT'!$A$11:$A$34,0),MATCH('RESULTS SCALE'!A8,'SUMMARY STAT'!$A$11:$BL$11,0))","v":2},{"$f":"INDEX('SUMMARY STAT'!$A$11:$BL$34,MATCH('RESULTS SCALE'!$C$2,'SUMMARY STAT'!$A$11:$A$34,0),MATCH('RESULTS SCALE'!A8,'SUMMARY STAT'!$A$11:$BL$11,0))","v":2},{"$f":"INDEX('SUMMARY STAT'!$A$11:$BL$34,MATCH('RESULTS SCALE'!$D$2,'SUMMARY STAT'!$A$11:$A$34,0),MATCH('RESULTS SCALE'!A8,'SUMMARY STAT'!$A$11:$BL$11,0))","v":2},"S6",{"$f":"Table3[[#This Row],[HIGH]]","v":2},{"$f":"Table3[[#This Row],[LOW]]","v":2},{"$f":"INDEX('SUMMARY STAT'!$A$11:$BL$34,MATCH('RESULTS SCALE'!$H$2,'SUMMARY STAT'!$A$11:$A$34,0),MATCH('RESULTS SCALE'!A8,'SUMMARY STAT'!$A$11:$BL$11,0))","v":2},"S6",{"$f":"Table3[[#This Row],[HIGH]]","v":2},{"$f":"Table3[[#This Row],[LOW]]","v":2},{"$f":"INDEX('SUMMARY STAT'!$A$11:$BL$34,MATCH('RESULTS SCALE'!$L$2,'SUMMARY STAT'!$A$11:$A$34,0),MATCH('RESULTS SCALE'!A8,'SUMMARY STAT'!$A$11:$BL$11,0))","v":0}]
["S7",{"$f":"INDEX('SUMMARY STAT'!$A$11:$BL$34,MATCH('RESULTS SCALE'!$B$2,'SUMMARY STAT'!$A$11:$A$34,0),MATCH('RESULTS SCALE'!A9,'SUMMARY STAT'!$A$11:$BL$11,0))","v":2},{"$f":"INDEX('SUMMARY STAT'!$A$11:$BL$34,MATCH('RESULTS SCALE'!$C$2,'SUMMARY STAT'!$A$11:$A$34,0),MATCH('RESULTS SCALE'!A9,'SUMMARY STAT'!$A$11:$BL$11,0))","v":2},{"$f":"INDEX('SUMMARY STAT'!$A$11:$BL$34,MATCH('RESULTS SCALE'!$D$2,'SUMMARY STAT'!$A$11:$A$34,0),MATCH('RESULTS SCALE'!A9,'SUMMARY STAT'!$A$11:$BL$11,0))","v":2},"S7",{"$f":"Table3[[#This Row],[HIGH]]","v":2},{"$f":"Table3[[#This Row],[LOW]]","v":2},{"$f":"INDEX('SUMMARY STAT'!$A$11:$BL$34,MATCH('RESULTS SCALE'!$H$2,'SUMMARY STAT'!$A$11:$A$34,0),MATCH('RESULTS SCALE'!A9,'SUMMARY STAT'!$A$11:$BL$11,0))","v":2},"S7",{"$f":"Table3[[#This Row],[HIGH]]","v":2},{"$f":"Table3[[#This Row],[LOW]]","v":2},{"$f":"INDEX('SUMMARY STAT'!$A$11:$BL$34,MATCH('RESULTS SCALE'!$L$2,'SUMMARY STAT'!$A$11:$A$34,0),MATCH('RESULTS SCALE'!A9,'SUMMARY STAT'!$A$11:$BL$11,0))","v":0},null,null,null,null,null,null,null,null,"AVERAGE VALUE"]
["I1",{"$f":"INDEX('SUMMARY STAT'!$A$11:$BL$34,MATCH('RESULTS SCALE'!$B$2,'SUMMARY STAT'!$A$11:$A$34,0),MATCH('RESULTS SCALE'!A10,'SUMMARY STAT'!$A$11:$BL$11,0))","v":3},{"$f":"INDEX('SUMMARY STAT'!$A$11:$BL$34,MATCH('RESULTS SCALE'!$C$2,'SUMMARY STAT'!$A$11:$A$34,0),MATCH('RESULTS SCALE'!A10,'SUMMARY STAT'!$A$11:$BL$11,0))","v":3},{"$f":"INDEX('SUMMARY STAT'!$A$11:$BL$34,MATCH('RESULTS SCALE'!$D$2,'SUMMARY STAT'!$A$11:$A$34,0),MATCH('RESULTS SCALE'!A10,'SUMMARY STAT'!$A$11:$BL$11,0))","v":3},"I1",{"$f":"Table3[[#This Row],[HIGH]]","v":3},{"$f":"Table3[[#This Row],[LOW]]","v":3},{"$f":"INDEX('SUMMARY STAT'!$A$11:$BL$34,MATCH('RESULTS SCALE'!$H$2,'SUMMARY STAT'!$A$11:$A$34,0),MATCH('RESULTS SCALE'!A10,'SUMMARY STAT'!$A$11:$BL$11,0))","v":3},"I1",{"$f":"Table3[[#This Row],[HIGH]]","v":3},{"$f":"Table3[[#This Row],[LOW]]","v":3},{"$f":"INDEX('SUMMARY STAT'!$A$11:$BL$34,MATCH('RESULTS SCALE'!$L$2,'SUMMARY STAT'!$A$11:$A$34,0),MATCH('RESULTS SCALE'!A10,'SUMMARY STAT'!$A$11:$BL$11,0))","v":3}]
["I2",{"$f":"INDEX('SUMMARY STAT'!$A$11:$BL$34,MATCH('RESULTS SCALE'!$B$2,'SUMMARY STAT'!$A$11:$A$34,0),MATCH('RESULTS SCALE'!A11,'SUMMARY STAT'!$A$11:$BL$11,0))","v":2},{"$f":"INDEX('SUMMARY STAT'!$A$11:$BL$34,MATCH('RESULTS SCALE'!$C$2,'SUMMARY STAT'!$A$11:$A$34,0),MATCH('RESULTS SCALE'!A11,'SUMMARY STAT'!$A$11:$BL$11,0))","v":2},{"$f":"INDEX('SUMMARY STAT'!$A$11:$BL$34,MATCH('RESULTS SCALE'!$D$2,'SUMMARY STAT'!$A$11:$A$34,0),MATCH('RESULTS SCALE'!A11,'SUMMARY STAT'!$A$11:$BL$11,0))","v":2},"I2",{"$f":"Table3[[#This Row],[HIGH]]","v":2},{"$f":"Table3[[#This Row],[LOW]]","v":2},{"$f":"INDEX('SUMMARY STAT'!$A$11:$BL$34,MATCH('RESULTS SCALE'!$H$2,'SUMMARY STAT'!$A$11:$A$34,0),MATCH('RESULTS SCALE'!A11,'SUMMARY STAT'!$A$11:$BL$11,0))","v":2},"I2",{"$f":"Table3[[#This Row],[HIGH]]","v":2},{"$f":"Table3[[#This Row],[LOW]]","v":2},{"$f":"INDEX('SUMMARY STAT'!$A$11:$BL$34,MATCH('RESULTS SCALE'!$L$2,'SUMMARY STAT'!$A$11:$A$34,0),MATCH('RESULTS SCALE'!A11,'SUMMARY STAT'!$A$11:$BL$11,0))","v":0}]
["I3",{"$f":"INDEX('SUMMARY STAT'!$A$11:$BL$34,MATCH('RESULTS SCALE'!$B$2,'SUMMARY STAT'!$A$11:$A$34,0),MATCH('RESULTS SCALE'!A12,'SUMMARY STAT'!$A$11:$BL$11,0))","v":3},{"$f":"INDEX('SUMMARY STAT'!$A$11:$BL$34,MATCH('RESULTS SCALE'!$C$2,'SUMMARY STAT'!$A$11:$A$34,0),MATCH('RESULTS SCALE'!A12,'SUMMARY STAT'!$A$11:$BL$11,0))","v":3},{"$f":"INDEX('SUMMARY STAT'!$A$11:$BL$34,MATCH('RESULTS SCALE'!$D$2,'SUMMARY STAT'!$A$11:$A$34,0),MATCH('RESULTS SCALE'!A12,'SUMMARY STAT'!$A$11:$BL$11,0))","v":3},"I3",{"$f":"Table3[[#This Row],[HIGH]]","v":3},{"$f":"Table3[[#This Row],[LOW]]","v":3},{"$f":"INDEX('SUMMARY STAT'!$A$11:$BL$34,MATCH('RESULTS SCALE'!$H$2,'SUMMARY STAT'!$A$11:$A$34,0),MATCH('RESULTS SCALE'!A12,'SUMMARY STAT'!$A$11:$BL$11,0))","v":3},"I3",{"$f":"Table3[[#This Row],[HIGH]]","v":3},{"$f":"Table3[[#This Row],[LOW]]","v":3},{"$f":"INDEX('SUMMARY STAT'!$A$11:$BL$34,MATCH('RESULTS SCALE'!$L$2,'SUMMARY STAT'!$A$11:$A$34,0),MATCH('RESULTS SCALE'!A12,'SUMMARY STAT'!$A$11:$BL$11,0))","v":0}]
["D1",{"$f":"INDEX('SUMMARY STAT'!$A$11:$BL$34,MATCH('RESULTS SCALE'!$B$2,'SUMMARY STAT'!$A$11:$A$34,0),MATCH('RESULTS SCALE'!A13,'SUMMARY STAT'!$A$11:$BL$11,0))","v":2},{"$f":"INDEX('SUMMARY STAT'!$A$11:$BL$34,MATCH('RESULTS SCALE'!$C$2,'SUMMARY STAT'!$A$11:$A$34,0),MATCH('RESULTS SCALE'!A13,'SUMMARY STAT'!$A$11:$BL$11,0))","v":2},{"$f":"INDEX('SUMMARY STAT'!$A$11:$BL$34,MATCH('RESULTS SCALE'!$D$2,'SUMMARY STAT'!$A$11:$A$34,0),MATCH('RESULTS SCALE'!A13,'SUMMARY STAT'!$A$11:$BL$11,0))","v":2},"D1",{"$f":"Table3[[#This Row],[HIGH]]","v":2},{"$f":"Table3[[#This Row],[LOW]]","v":2},{"$f":"INDEX('SUMMARY STAT'!$A$11:$BL$34,MATCH('RESULTS SCALE'!$H$2,'SUMMARY STAT'!$A$11:$A$34,0),MATCH('RESULTS SCALE'!A13,'SUMMARY STAT'!$A$11:$BL$11,0))","v":2},"D1",{"$f":"Table3[[#This Row],[HIGH]]","v":2},{"$f":"Table3[[#This Row],[LOW]]","v":2},{"$f":"INDEX('SUMMARY STAT'!$A$11:$BL$34,MATCH('RESULTS SCALE'!$L$2,'SUMMARY STAT'!$A$11:$A$34,0),MATCH('RESULTS SCALE'!A13,'SUMMARY STAT'!$A$11:$BL$11,0))","v":0}]
["D2",{"$f":"INDEX('SUMMARY STAT'!$A$11:$BL$34,MATCH('RESULTS SCALE'!$B$2,'SUMMARY STAT'!$A$11:$A$34,0),MATCH('RESULTS SCALE'!A14,'SUMMARY STAT'!$A$11:$BL$11,0))","v":3},{"$f":"INDEX('SUMMARY STAT'!$A$11:$BL$34,MATCH('RESULTS SCALE'!$C$2,'SUMMARY STAT'!$A$11:$A$34,0),MATCH('RESULTS SCALE'!A14,'SUMMARY STAT'!$A$11:$BL$11,0))","v":3},{"$f":"INDEX('SUMMARY STAT'!$A$11:$BL$34,MATCH('RESULTS SCALE'!$D$2,'SUMMARY STAT'!$A$11:$A$34,0),MATCH('RESULTS SCALE'!A14,'SUMMARY STAT'!$A$11:$BL$11,0))","v":3},"D2",{"$f":"Table3[[#This Row],[HIGH]]","v":3},{"$f":"Table3[[#This Row],[LOW]]","v":3},{"$f":"INDEX('SUMMARY STAT'!$A$11:$BL$34,MATCH('RESULTS SCALE'!$H$2,'SUMMARY STAT'!$A$11:$A$34,0),MATCH('RESULTS SCALE'!A14,'SUMMARY STAT'!$A$11:$BL$11,0))","v":3},"D2",{"$f":"Table3[[#This Row],[HIGH]]","v":3},{"$f":"Table3[[#This Row],[LOW]]","v":3},{"$f":"INDEX('SUMMARY STAT'!$A$11:$BL$34,MATCH('RESULTS SCALE'!$L$2,'SUMMARY STAT'!$A$11:$A$34,0),MATCH('RESULTS SCALE'!A14,'SUMMARY STAT'!$A$11:$BL$11,0))","v":0}]
["D3",{"$f":"INDEX('SUMMARY STAT'!$A$11:$BL$34,MATCH('RESULTS SCALE'!$B$2,'SUMMARY STAT'!$A$11:$A$34,0),MATCH('RESULTS SCALE'!A15,'SUMMARY STAT'!$A$11:$BL$11,0))","v":2},{"$f":"INDEX('SUMMARY STAT'!$A$11:$BL$34,MATCH('RESULTS SCALE'!$C$2,'SUMMARY STAT'!$A$11:$A$34,0),MATCH('RESULTS SCALE'!A15,'SUMMARY STAT'!$A$11:$BL$11,0))","v":2},{"$f":"INDEX('SUMMARY STAT'!$A$11:$BL$34,MATCH('RESULTS SCALE'!$D$2,'SUMMARY STAT'!$A$11:$A$34,0),MATCH('RESULTS SCALE'!A15,'SUMMARY STAT'!$A$11:$BL$11,0))","v":2},"D3",{"$f":"Table3[[#This Row],[HIGH]]","v":2},{"$f":"Table3[[#This Row],[LOW]]","v":2},{"$f":"INDEX('SUMMARY STAT'!$A$11:$BL$34,MATCH('RESULTS SCALE'!$H$2,'SUMMARY STAT'!$A$11:$A$34,0),MATCH('RESULTS SCALE'!A15,'SUMMARY STAT'!$A$11:$BL$11,0))","v":2},"D3",{"$f":"Table3[[#This Row],[HIGH]]","v":2},{"$f":"Table3[[#This Row],[LOW]]","v":2},{"$f":"INDEX('SUMMARY STAT'!$A$11:$BL$34,MATCH('RESULTS SCALE'!$L$2,'SUMMARY STAT'!$A$11:$A$34,0),MATCH('RESULTS SCALE'!A15,'SUMMARY STAT'!$A$11:$BL$11,0))","v":0}]
["C1",{"$f":"INDEX('SUMMARY STAT'!$A$11:$BL$34,MATCH('RESULTS SCALE'!$B$2,'SUMMARY STAT'!$A$11:$A$34,0),MATCH('RESULTS SCALE'!A16,'SUMMARY STAT'!$A$11:$BL$11,0))","v":2},{"$f":"INDEX('SUMMARY STAT'!$A$11:$BL$34,MATCH('RESULTS SCALE'!$C$2,'SUMMARY STAT'!$A$11:$A$34,0),MATCH('RESULTS SCALE'!A16,'SUMMARY STAT'!$A$11:$BL$11,0))","v":2},{"$f":"INDEX('SUMMARY STAT'!$A$11:$BL$34,MATCH('RESULTS SCALE'!$D$2,'SUMMARY STAT'!$A$11:$A$34,0),MATCH('RESULTS SCALE'!A16,'SUMMARY STAT'!$A$11:$BL$11,0))","v":2},"C1",{"$f":"Table3[[#This Row],[HIGH]]","v":2},{"$f":"Table3[[#This Row],[LOW]]","v":2},{"$f":"INDEX('SUMMARY STAT'!$A$11:$BL$34,MATCH('RESULTS SCALE'!$H$2,'SUMMARY STAT'!$A$11:$A$34,0),MATCH('RESULTS SCALE'!A16,'SUMMARY STAT'!$A$11:$BL$11,0))","v":2},"C1",{"$f":"Table3[[#This Row],[HIGH]]","v":2},{"$f":"Table3[[#This Row],[LOW]]","v":2},{"$f":"INDEX('SUMMARY STAT'!$A$11:$BL$34,MATCH('RESULTS SCALE'!$L$2,'SUMMARY STAT'!$A$11:$A$34,0),MATCH('RESULTS SCALE'!A16,'SUMMARY STAT'!$A$11:$BL$11,0))","v":0},null,null,null,null,null,null,null,null,"MOST COMMON RESPONSE (ENTIRE COMPANY)"]
["C2",{"$f":"INDEX('SUMMARY STAT'!$A$11:$BL$34,MATCH('RESULTS SCALE'!$B$2,'SUMMARY STAT'!$A$11:$A$34,0),MATCH('RESULTS SCALE'!A17,'SUMMARY STAT'!$A$11:$BL$11,0))","v":3},{"$f":"INDEX('SUMMARY STAT'!$A$11:$BL$34,MATCH('RESULTS SCALE'!$C$2,'SUMMARY STAT'!$A$11:$A$34,0),MATCH('RESULTS SCALE'!A17,'SUMMARY STAT'!$A$11:$BL$11,0))","v":3},{"$f":"INDEX('SUMMARY STAT'!$A$11:$BL$34,MATCH('RESULTS SCALE'!$D$2,'SUMMARY STAT'!$A$11:$A$34,0),MATCH('RESULTS SCALE'!A17,'SUMMARY STAT'!$A$11:$BL$11,0))","v":3},"C2",{"$f":"Table3[[#This Row],[HIGH]]","v":3},{"$f":"Table3[[#This Row],[LOW]]","v":3},{"$f":"INDEX('SUMMARY STAT'!$A$11:$BL$34,MATCH('RESULTS SCALE'!$H$2,'SUMMARY STAT'!$A$11:$A$34,0),MATCH('RESULTS SCALE'!A17,'SUMMARY STAT'!$A$11:$BL$11,0))","v":3},"C2",{"$f":"Table3[[#This Row],[HIGH]]","v":3},{"$f":"Table3[[#This Row],[LOW]]","v":3},{"$f":"INDEX('SUMMARY STAT'!$A$11:$BL$34,MATCH('RESULTS SCALE'!$L$2,'SUMMARY STAT'!$A$11:$A$34,0),MATCH('RESULTS SCALE'!A17,'SUMMARY STAT'!$A$11:$BL$11,0))","v":0}]
["C3",{"$f":"INDEX('SUMMARY STAT'!$A$11:$BL$34,MATCH('RESULTS SCALE'!$B$2,'SUMMARY STAT'!$A$11:$A$34,0),MATCH('RESULTS SCALE'!A18,'SUMMARY STAT'!$A$11:$BL$11,0))","v":4},{"$f":"INDEX('SUMMARY STAT'!$A$11:$BL$34,MATCH('RESULTS SCALE'!$C$2,'SUMMARY STAT'!$A$11:$A$34,0),MATCH('RESULTS SCALE'!A18,'SUMMARY STAT'!$A$11:$BL$11,0))","v":4},{"$f":"INDEX('SUMMARY STAT'!$A$11:$BL$34,MATCH('RESULTS SCALE'!$D$2,'SUMMARY STAT'!$A$11:$A$34,0),MATCH('RESULTS SCALE'!A18,'SUMMARY STAT'!$A$11:$BL$11,0))","v":4},"C3",{"$f":"Table3[[#This Row],[HIGH]]","v":4},{"$f":"Table3[[#This Row],[LOW]]","v":4},{"$f":"INDEX('SUMMARY STAT'!$A$11:$BL$34,MATCH('RESULTS SCALE'!$H$2,'SUMMARY STAT'!$A$11:$A$34,0),MATCH('RESULTS SCALE'!A18,'SUMMARY STAT'!$A$11:$BL$11,0))","v":4},"C3",{"$f":"Table3[[#This Row],[HIGH]]","v":4},{"$f":"Table3[[#This Row],[LOW]]","v":4},{"$f":"INDEX('SUMMARY STAT'!$A$11:$BL$34,MATCH('RESULTS SCALE'!$L$2,'SUMMARY STAT'!$A$11:$A$34,0),MATCH('RESULTS SCALE'!A18,'SUMMARY STAT'!$A$11:$BL$11,0))","v":0}]
["C4",{"$f":"INDEX('SUMMARY STAT'!$A$11:$BL$34,MATCH('RESULTS SCALE'!$B$2,'SUMMARY STAT'!$A$11:$A$34,0),MATCH('RESULTS SCALE'!A19,'SUMMARY STAT'!$A$11:$BL$11,0))","v":2},{"$f":"INDEX('SUMMARY STAT'!$A$11:$BL$34,MATCH('RESULTS SCALE'!$C$2,'SUMMARY STAT'!$A$11:$A$34,0),MATCH('RESULTS SCALE'!A19,'SUMMARY STAT'!$A$11:$BL$11,0))","v":2},{"$f":"INDEX('SUMMARY STAT'!$A$11:$BL$34,MATCH('RESULTS SCALE'!$D$2,'SUMMARY STAT'!$A$11:$A$34,0),MATCH('RESULTS SCALE'!A19,'SUMMARY STAT'!$A$11:$BL$11,0))","v":2},"C4",{"$f":"Table3[[#This Row],[HIGH]]","v":2},{"$f":"Table3[[#This Row],[LOW]]","v":2},{"$f":"INDEX('SUMMARY STAT'!$A$11:$BL$34,MATCH('RESULTS SCALE'!$H$2,'SUMMARY STAT'!$A$11:$A$34,0),MATCH('RESULTS SCALE'!A19,'SUMMARY STAT'!$A$11:$BL$11,0))","v":2},"C4",{"$f":"Table3[[#This Row],[HIGH]]","v":2},{"$f":"Table3[[#This Row],[LOW]]","v":2},{"$f":"INDEX('SUMMARY STAT'!$A$11:$BL$34,MATCH('RESULTS SCALE'!$L$2,'SUMMARY STAT'!$A$11:$A$34,0),MATCH('RESULTS SCALE'!A19,'SUMMARY STAT'!$A$11:$BL$11,0))","v":0}]
["C5",{"$f":"INDEX('SUMMARY STAT'!$A$11:$BL$34,MATCH('RESULTS SCALE'!$B$2,'SUMMARY STAT'!$A$11:$A$34,0),MATCH('RESULTS SCALE'!A20,'SUMMARY STAT'!$A$11:$BL$11,0))","v":2},{"$f":"INDEX('SUMMARY STAT'!$A$11:$BL$34,MATCH('RESULTS SCALE'!$C$2,'SUMMARY STAT'!$A$11:$A$34,0),MATCH('RESULTS SCALE'!A20,'SUMMARY STAT'!$A$11:$BL$11,0))","v":2},{"$f":"INDEX('SUMMARY STAT'!$A$11:$BL$34,MATCH('RESULTS SCALE'!$D$2,'SUMMARY STAT'!$A$11:$A$34,0),MATCH('RESULTS SCALE'!A20,'SUMMARY STAT'!$A$11:$BL$11,0))","v":2},"C5",{"$f":"Table3[[#This Row],[HIGH]]","v":2},{"$f":"Table3[[#This Row],[LOW]]","v":2},{"$f":"INDEX('SUMMARY STAT'!$A$11:$BL$34,MATCH('RESULTS SCALE'!$H$2,'SUMMARY STAT'!$A$11:$A$34,0),MATCH('RESULTS SCALE'!A20,'SUMMARY STAT'!$A$11:$BL$11,0))","v":2},"C5",{"$f":"Table3[[#This Row],[HIGH]]","v":2},{"$f":"Table3[[#This Row],[LOW]]","v":2},{"$f":"INDEX('SUMMARY STAT'!$A$11:$BL$34,MATCH('RESULTS SCALE'!$L$2,'SUMMARY STAT'!$A$11:$A$34,0),MATCH('RESULTS SCALE'!A20,'SUMMARY STAT'!$A$11:$BL$11,0))","v":0}]
["C6",{"$f":"INDEX('SUMMARY STAT'!$A$11:$BL$34,MATCH('RESULTS SCALE'!$B$2,'SUMMARY STAT'!$A$11:$A$34,0),MATCH('RESULTS SCALE'!A21,'SUMMARY STAT'!$A$11:$BL$11,0))","v":2},{"$f":"INDEX('SUMMARY STAT'!$A$11:$BL$34,MATCH('RESULTS SCALE'!$C$2,'SUMMARY STAT'!$A$11:$A$34,0),MATCH('RESULTS SCALE'!A21,'SUMMARY STAT'!$A$11:$BL$11,0))","v":2},{"$f":"INDEX('SUMMARY STAT'!$A$11:$BL$34,MATCH('RESULTS SCALE'!$D$2,'SUMMARY STAT'!$A$11:$A$34,0),MATCH('RESULTS SCALE'!A21,'SUMMARY STAT'!$A$11:$BL$11,0))","v":2},"C6",{"$f":"Table3[[#This Row],[HIGH]]","v":2},{"$f":"Table3[[#This Row],[LOW]]","v":2},{"$f":"INDEX('SUMMARY STAT'!$A$11:$BL$34,MATCH('RESULTS SCALE'!$H$2,'SUMMARY STAT'!$A$11:$A$34,0),MATCH('RESULTS SCALE'!A21,'SUMMARY STAT'!$A$11:$BL$11,0))","v":2},"C6",{"$f":"Table3[[#This Row],[HIGH]]","v":2},{"$f":"Table3[[#This Row],[LOW]]","v":2},{"$f":"INDEX('SUMMARY STAT'!$A$11:$BL$34,MATCH('RESULTS SCALE'!$L$2,'SUMMARY STAT'!$A$11:$A$34,0),MATCH('RESULTS SCALE'!A21,'SUMMARY STAT'!$A$11:$BL$11,0))","v":0}]
["C7",{"$f":"INDEX('SUMMARY STAT'!$A$11:$BL$34,MATCH('RESULTS SCALE'!$B$2,'SUMMARY STAT'!$A$11:$A$34,0),MATCH('RESULTS SCALE'!A22,'SUMMARY STAT'!$A$11:$BL$11,0))","v":2},{"$f":"INDEX('SUMMARY STAT'!$A$11:$BL$34,MATCH('RESULTS SCALE'!$C$2,'SUMMARY STAT'!$A$11:$A$34,0),MATCH('RESULTS SCALE'!A22,'SUMMARY STAT'!$A$11:$BL$11,0))","v":2},{"$f":"INDEX('SUMMARY STAT'!$A$11:$BL$34,MATCH('RESULTS SCALE'!$D$2,'SUMMARY STAT'!$A$11:$A$34,0),MATCH('RESULTS SCALE'!A22,'SUMMARY STAT'!$A$11:$BL$11,0))","v":2},"C7",{"$f":"Table3[[#This Row],[HIGH]]","v":2},{"$f":"Table3[[#This Row],[LOW]]","v":2},{"$f":"INDEX('SUMMARY STAT'!$A$11:$BL$34,MATCH('RESULTS SCALE'!$H$2,'SUMMARY STAT'!$A$11:$A$34,0),MATCH('RESULTS SCALE'!A22,'SUMMARY STAT'!$A$11:$BL$11,0))","v":2},"C7",{"$f":"Table3[[#This Row],[HIGH]]","v":2},{"$f":"Table3[[#This Row],[LOW]]","v":2},{"$f":"INDEX('SUMMARY STAT'!$A$11:$BL$34,MATCH('RESULTS SCALE'!$L$2,'SUMMARY STAT'!$A$11:$A$34,0),MATCH('RESULTS SCALE'!A22,'SUMMARY STAT'!$A$11:$BL$11,0))","v":2}]
["C8",{"$f":"INDEX('SUMMARY STAT'!$A$11:$BL$34,MATCH('RESULTS SCALE'!$B$2,'SUMMARY STAT'!$A$11:$A$34,0),MATCH('RESULTS SCALE'!A23,'SUMMARY STAT'!$A$11:$BL$11,0))","v":1},{"$f":"INDEX('SUMMARY STAT'!$A$11:$BL$34,MATCH('RESULTS SCALE'!$C$2,'SUMMARY STAT'!$A$11:$A$34,0),MATCH('RESULTS SCALE'!A23,'SUMMARY STAT'!$A$11:$BL$11,0))","v":1},{"$f":"INDEX('SUMMARY STAT'!$A$11:$BL$34,MATCH('RESULTS SCALE'!$D$2,'SUMMARY STAT'!$A$11:$A$34,0),MATCH('RESULTS SCALE'!A23,'SUMMARY STAT'!$A$11:$BL$11,0))","v":1},"C8",{"$f":"Table3[[#This Row],[HIGH]]","v":1},{"$f":"Table3[[#This Row],[LOW]]","v":1},{"$f":"INDEX('SUMMARY STAT'!$A$11:$BL$34,MATCH('RESULTS SCALE'!$H$2,'SUMMARY STAT'!$A$11:$A$34,0),MATCH('RESULTS SCALE'!A23,'SUMMARY STAT'!$A$11:$BL$11,0))","v":1},"C8",{"$f":"Table3[[#This Row],[HIGH]]","v":1},{"$f":"Table3[[#This Row],[LOW]]","v":1},{"$f":"INDEX('SUMMARY STAT'!$A$11:$BL$34,MATCH('RESULTS SCALE'!$L$2,'SUMMARY STAT'!$A$11:$A$34,0),MATCH('RESULTS SCALE'!A23,'SUMMARY STAT'!$A$11:$BL$11,0))","v":0}]
["C9",{"$f":"INDEX('SUMMARY STAT'!$A$11:$BL$34,MATCH('RESULTS SCALE'!$B$2,'SUMMARY STAT'!$A$11:$A$34,0),MATCH('RESULTS SCALE'!A24,'SUMMARY STAT'!$A$11:$BL$11,0))","v":2},{"$f":"INDEX('SUMMARY STAT'!$A$11:$BL$34,MATCH('RESULTS SCALE'!$C$2,'SUMMARY STAT'!$A$11:$A$34,0),MATCH('RESULTS SCALE'!A24,'SUMMARY STAT'!$A$11:$BL$11,0))","v":2},{"$f":"INDEX('SUMMARY STAT'!$A$11:$BL$34,MATCH('RESULTS SCALE'!$D$2,'SUMMARY STAT'!$A$11:$A$34,0),MATCH('RESULTS SCALE'!A24,'SUMMARY STAT'!$A$11:$BL$11,0))","v":2},"C9",{"$f":"Table3[[#This Row],[HIGH]]","v":2},{"$f":"Table3[[#This Row],[LOW]]","v":2},{"$f":"INDEX('SUMMARY STAT'!$A$11:$BL$34,MATCH('RESULTS SCALE'!$H$2,'SUMMARY STAT'!$A$11:$A$34,0),MATCH('RESULTS SCALE'!A24,'SUMMARY STAT'!$A$11:$BL$11,0))","v":2},"C9",{"$f":"Table3[[#This Row],[HIGH]]","v":2},{"$f":"Table3[[#This Row],[LOW]]","v":2},{"$f":"INDEX('SUMMARY STAT'!$A$11:$BL$34,MATCH('RESULTS SCALE'!$L$2,'SUMMARY STAT'!$A$11:$A$34,0),MATCH('RESULTS SCALE'!A24,'SUMMARY STAT'!$A$11:$BL$11,0))","v":0}]
["C10",{"$f":"INDEX('SUMMARY STAT'!$A$11:$BL$34,MATCH('RESULTS SCALE'!$B$2,'SUMMARY STAT'!$A$11:$A$34,0),MATCH('RESULTS SCALE'!A25,'SUMMARY STAT'!$A$11:$BL$11,0))","v":2},{"$f":"INDEX('SUMMARY STAT'!$A$11:$BL$34,MATCH('RESULTS SCALE'!$C$2,'SUMMARY STAT'!$A$11:$A$34,0),MATCH('RESULTS SCALE'!A25,'SUMMARY STAT'!$A$11:$BL$11,0))","v":2},{"$f":"INDEX('SUMMARY STAT'!$A$11:$BL$34,MATCH('RESULTS SCALE'!$D$2,'SUMMARY STAT'!$A$11:$A$34,0),MATCH('RESULTS SCALE'!A25,'SUMMARY STAT'!$A$11:$BL$11,0))","v":2},"C10",{"$f":"Table3[[#This Row],[HIGH]]","v":2},{"$f":"Table3[[#This Row],[LOW]]","v":2},{"$f":"INDEX('SUMMARY STAT'!$A$11:$BL$34,MATCH('RESULTS SCALE'!$H$2,'SUMMARY STAT'!$A$11:$A$34,0),MATCH('RESULTS SCALE'!A25,'SUMMARY STAT'!$A$11:$BL$11,0))","v":2},"C10",{"$f":"Table3[[#This Row],[HIGH]]","v":2},{"$f":"Table3[[#This Row],[LOW]]","v":2},{"$f":"INDEX('SUMMARY STAT'!$A$11:$BL$34,MATCH('RESULTS SCALE'!$L$2,'SUMMARY STAT'!$A$11:$A$34,0),MATCH('RESULTS SCALE'!A25,'SUMMARY STAT'!$A$11:$BL$11,0))","v":0}]
["C11",{"$f":"INDEX('SUMMARY STAT'!$A$11:$BL$34,MATCH('RESULTS SCALE'!$B$2,'SUMMARY STAT'!$A$11:$A$34,0),MATCH('RESULTS SCALE'!A26,'SUMMARY STAT'!$A$11:$BL$11,0))","v":3},{"$f":"INDEX('SUMMARY STAT'!$A$11:$BL$34,MATCH('RESULTS SCALE'!$C$2,'SUMMARY STAT'!$A$11:$A$34,0),MATCH('RESULTS SCALE'!A26,'SUMMARY STAT'!$A$11:$BL$11,0))","v":3},{"$f":"INDEX('SUMMARY STAT'!$A$11:$BL$34,MATCH('RESULTS SCALE'!$D$2,'SUMMARY STAT'!$A$11:$A$34,0),MATCH('RESULTS SCALE'!A26,'SUMMARY STAT'!$A$11:$BL$11,0))","v":3},"C11",{"$f":"Table3[[#This Row],[HIGH]]","v":3},{"$f":"Table3[[#This Row],[LOW]]","v":3},{"$f":"INDEX('SUMMARY STAT'!$A$11:$BL$34,MATCH('RESULTS SCALE'!$H$2,'SUMMARY STAT'!$A$11:$A$34,0),MATCH('RESULTS SCALE'!A26,'SUMMARY STAT'!$A$11:$BL$11,0))","v":3},"C11",{"$f":"Table3[[#This Row],[HIGH]]","v":3},{"$f":"Table3[[#This Row],[LOW]]","v":3},{"$f":"INDEX('SUMMARY STAT'!$A$11:$BL$34,MATCH('RESULTS SCALE'!$L$2,'SUMMARY STAT'!$A$11:$A$34,0),MATCH('RESULTS SCALE'!A26,'SUMMARY STAT'!$A$11:$BL$11,0))","v":0}]
["C12",{"$f":"INDEX('SUMMARY STAT'!$A$11:$BL$34,MATCH('RESULTS SCALE'!$B$2,'SUMMARY STAT'!$A$11:$A$34,0),MATCH('RESULTS SCALE'!A27,'SUMMARY STAT'!$A$11:$BL$11,0))","v":2},{"$f":"INDEX('SUMMARY STAT'!$A$11:$BL$34,MATCH('RESULTS SCALE'!$C$2,'SUMMARY STAT'!$A$11:$A$34,0),MATCH('RESULTS SCALE'!A27,'SUMMARY STAT'!$A$11:$BL$11,0))","v":2},{"$f":"INDEX('SUMMARY STAT'!$A$11:$BL$34,MATCH('RESULTS SCALE'!$D$2,'SUMMARY STAT'!$A$11:$A$34,0),MATCH('RESULTS SCALE'!A27,'SUMMARY STAT'!$A$11:$BL$11,0))","v":2},"C12",{"$f":"Table3[[#This Row],[HIGH]]","v":2},{"$f":"Table3[[#This Row],[LOW]]","v":2},{"$f":"INDEX('SUMMARY STAT'!$A$11:$BL$34,MATCH('RESULTS SCALE'!$H$2,'SUMMARY STAT'!$A$11:$A$34,0),MATCH('RESULTS SCALE'!A27,'SUMMARY STAT'!$A$11:$BL$11,0))","v":2},"C12",{"$f":"Table3[[#This Row],[HIGH]]","v":2},{"$f":"Table3[[#This Row],[LOW]]","v":2},{"$f":"INDEX('SUMMARY STAT'!$A$11:$BL$34,MATCH('RESULTS SCALE'!$L$2,'SUMMARY STAT'!$A$11:$A$34,0),MATCH('RESULTS SCALE'!A27,'SUMMARY STAT'!$A$11:$BL$11,0))","v":0}]
["C13",{"$f":"INDEX('SUMMARY STAT'!$A$11:$BL$34,MATCH('RESULTS SCALE'!$B$2,'SUMMARY STAT'!$A$11:$A$34,0),MATCH('RESULTS SCALE'!A28,'SUMMARY STAT'!$A$11:$BL$11,0))","v":3},{"$f":"INDEX('SUMMARY STAT'!$A$11:$BL$34,MATCH('RESULTS SCALE'!$C$2,'SUMMARY STAT'!$A$11:$A$34,0),MATCH('RESULTS SCALE'!A28,'SUMMARY STAT'!$A$11:$BL$11,0))","v":3},{"$f":"INDEX('SUMMARY STAT'!$A$11:$BL$34,MATCH('RESULTS SCALE'!$D$2,'SUMMARY STAT'!$A$11:$A$34,0),MATCH('RESULTS SCALE'!A28,'SUMMARY STAT'!$A$11:$BL$11,0))","v":3},"C13",{"$f":"Table3[[#This Row],[HIGH]]","v":3},{"$f":"Table3[[#This Row],[LOW]]","v":3},{"$f":"INDEX('SUMMARY STAT'!$A$11:$BL$34,MATCH('RESULTS SCALE'!$H$2,'SUMMARY STAT'!$A$11:$A$34,0),MATCH('RESULTS SCALE'!A28,'SUMMARY STAT'!$A$11:$BL$11,0))","v":3},"C13",{"$f":"Table3[[#This Row],[HIGH]]","v":3},{"$f":"Table3[[#This Row],[LOW]]","v":3},{"$f":"INDEX('SUMMARY STAT'!$A$11:$BL$34,MATCH('RESULTS SCALE'!$L$2,'SUMMARY STAT'!$A$11:$A$34,0),MATCH('RESULTS SCALE'!A28,'SUMMARY STAT'!$A$11:$BL$11,0))","v":0}]
["C14",{"$f":"INDEX('SUMMARY STAT'!$A$11:$BL$34,MATCH('RESULTS SCALE'!$B$2,'SUMMARY STAT'!$A$11:$A$34,0),MATCH('RESULTS SCALE'!A29,'SUMMARY STAT'!$A$11:$BL$11,0))","v":1},{"$f":"INDEX('SUMMARY STAT'!$A$11:$BL$34,MATCH('RESULTS SCALE'!$C$2,'SUMMARY STAT'!$A$11:$A$34,0),MATCH('RESULTS SCALE'!A29,'SUMMARY STAT'!$A$11:$BL$11,0))","v":1},{"$f":"INDEX('SUMMARY STAT'!$A$11:$BL$34,MATCH('RESULTS SCALE'!$D$2,'SUMMARY STAT'!$A$11:$A$34,0),MATCH('RESULTS SCALE'!A29,'SUMMARY STAT'!$A$11:$BL$11,0))","v":1},"C14",{"$f":"Table3[[#This Row],[HIGH]]","v":1},{"$f":"Table3[[#This Row],[LOW]]","v":1},{"$f":"INDEX('SUMMARY STAT'!$A$11:$BL$34,MATCH('RESULTS SCALE'!$H$2,'SUMMARY STAT'!$A$11:$A$34,0),MATCH('RESULTS SCALE'!A29,'SUMMARY STAT'!$A$11:$BL$11,0))","v":1},"C14",{"$f":"Table3[[#This Row],[HIGH]]","v":1},{"$f":"Table3[[#This Row],[LOW]]","v":1},{"$f":"INDEX('SUMMARY STAT'!$A$11:$BL$34,MATCH('RESULTS SCALE'!$L$2,'SUMMARY STAT'!$A$11:$A$34,0),MATCH('RESULTS SCALE'!A29,'SUMMARY STAT'!$A$11:$BL$11,0))","v":0}]
["C15",{"$f":"INDEX('SUMMARY STAT'!$A$11:$BL$34,MATCH('RESULTS SCALE'!$B$2,'SUMMARY STAT'!$A$11:$A$34,0),MATCH('RESULTS SCALE'!A30,'SUMMARY STAT'!$A$11:$BL$11,0))","v":1},{"$f":"INDEX('SUMMARY STAT'!$A$11:$BL$34,MATCH('RESULTS SCALE'!$C$2,'SUMMARY STAT'!$A$11:$A$34,0),MATCH('RESULTS SCALE'!A30,'SUMMARY STAT'!$A$11:$BL$11,0))","v":1},{"$f":"INDEX('SUMMARY STAT'!$A$11:$BL$34,MATCH('RESULTS SCALE'!$D$2,'SUMMARY STAT'!$A$11:$A$34,0),MATCH('RESULTS SCALE'!A30,'SUMMARY STAT'!$A$11:$BL$11,0))","v":1},"C15",{"$f":"Table3[[#This Row],[HIGH]]","v":1},{"$f":"Table3[[#This Row],[LOW]]","v":1},{"$f":"INDEX('SUMMARY STAT'!$A$11:$BL$34,MATCH('RESULTS SCALE'!$H$2,'SUMMARY STAT'!$A$11:$A$34,0),MATCH('RESULTS SCALE'!A30,'SUMMARY STAT'!$A$11:$BL$11,0))","v":1},"C15",{"$f":"Table3[[#This Row],[HIGH]]","v":1},{"$f":"Table3[[#This Row],[LOW]]","v":1},{"$f":"INDEX('SUMMARY STAT'!$A$11:$BL$34,MATCH('RESULTS SCALE'!$L$2,'SUMMARY STAT'!$A$11:$A$34,0),MATCH('RESULTS SCALE'!A30,'SUMMARY STAT'!$A$11:$BL$11,0))","v":0}]
["L1",{"$f":"INDEX('SUMMARY STAT'!$A$11:$BL$34,MATCH('RESULTS SCALE'!$B$2,'SUMMARY STAT'!$A$11:$A$34,0),MATCH('RESULTS SCALE'!A31,'SUMMARY STAT'!$A$11:$BL$11,0))","v":2},{"$f":"INDEX('SUMMARY STAT'!$A$11:$BL$34,MATCH('RESULTS SCALE'!$C$2,'SUMMARY STAT'!$A$11:$A$34,0),MATCH('RESULTS SCALE'!A31,'SUMMARY STAT'!$A$11:$BL$11,0))","v":2},{"$f":"INDEX('SUMMARY STAT'!$A$11:$BL$34,MATCH('RESULTS SCALE'!$D$2,'SUMMARY STAT'!$A$11:$A$34,0),MATCH('RESULTS SCALE'!A31,'SUMMARY STAT'!$A$11:$BL$11,0))","v":2},"L1",{"$f":"Table3[[#This Row],[HIGH]]","v":2},{"$f":"Table3[[#This Row],[LOW]]","v":2},{"$f":"INDEX('SUMMARY STAT'!$A$11:$BL$34,MATCH('RESULTS SCALE'!$H$2,'SUMMARY STAT'!$A$11:$A$34,0),MATCH('RESULTS SCALE'!A31,'SUMMARY STAT'!$A$11:$BL$11,0))","v":2},"L1",{"$f":"Table3[[#This Row],[HIGH]]","v":2},{"$f":"Table3[[#This Row],[LOW]]","v":2},{"$f":"INDEX('SUMMARY STAT'!$A$11:$BL$34,MATCH('RESULTS SCALE'!$L$2,'SUMMARY STAT'!$A$11:$A$34,0),MATCH('RESULTS SCALE'!A31,'SUMMARY STAT'!$A$11:$BL$11,0))","v":0}]
["L2",{"$f":"INDEX('SUMMARY STAT'!$A$11:$BL$34,MATCH('RESULTS SCALE'!$B$2,'SUMMARY STAT'!$A$11:$A$34,0),MATCH('RESULTS SCALE'!A32,'SUMMARY STAT'!$A$11:$BL$11,0))","v":2},{"$f":"INDEX('SUMMARY STAT'!$A$11:$BL$34,MATCH('RESULTS SCALE'!$C$2,'SUMMARY STAT'!$A$11:$A$34,0),MATCH('RESULTS SCALE'!A32,'SUMMARY STAT'!$A$11:$BL$11,0))","v":2},{"$f":"INDEX('SUMMARY STAT'!$A$11:$BL$34,MATCH('RESULTS SCALE'!$D$2,'SUMMARY STAT'!$A$11:$A$34,0),MATCH('RESULTS SCALE'!A32,'SUMMARY STAT'!$A$11:$BL$11,0))","v":2},"L2",{"$f":"Table3[[#This Row],[HIGH]]","v":2},{"$f":"Table3[[#This Row],[LOW]]","v":2},{"$f":"INDEX('SUMMARY STAT'!$A$11:$BL$34,MATCH('RESULTS SCALE'!$H$2,'SUMMARY STAT'!$A$11:$A$34,0),MATCH('RESULTS SCALE'!A32,'SUMMARY STAT'!$A$11:$BL$11,0))","v":2},"L2",{"$f":"Table3[[#This Row],[HIGH]]","v":2},{"$f":"Table3[[#This Row],[LOW]]","v":2},{"$f":"INDEX('SUMMARY STAT'!$A$11:$BL$34,MATCH('RESULTS SCALE'!$L$2,'SUMMARY STAT'!$A$11:$A$34,0),MATCH('RESULTS SCALE'!A32,'SUMMARY STAT'!$A$11:$BL$11,0))","v":0}]
["L3",{"$f":"INDEX('SUMMARY STAT'!$A$11:$BL$34,MATCH('RESULTS SCALE'!$B$2,'SUMMARY STAT'!$A$11:$A$34,0),MATCH('RESULTS SCALE'!A33,'SUMMARY STAT'!$A$11:$BL$11,0))","v":3},{"$f":"INDEX('SUMMARY STAT'!$A$11:$BL$34,MATCH('RESULTS SCALE'!$C$2,'SUMMARY STAT'!$A$11:$A$34,0),MATCH('RESULTS SCALE'!A33,'SUMMARY STAT'!$A$11:$BL$11,0))","v":3},{"$f":"INDEX('SUMMARY STAT'!$A$11:$BL$34,MATCH('RESULTS SCALE'!$D$2,'SUMMARY STAT'!$A$11:$A$34,0),MATCH('RESULTS SCALE'!A33,'SUMMARY STAT'!$A$11:$BL$11,0))","v":3},"L3",{"$f":"Table3[[#This Row],[HIGH]]","v":3},{"$f":"Table3[[#This Row],[LOW]]","v":3},{"$f":"INDEX('SUMMARY STAT'!$A$11:$BL$34,MATCH('RESULTS SCALE'!$H$2,'SUMMARY STAT'!$A$11:$A$34,0),MATCH('RESULTS SCALE'!A33,'SUMMARY STAT'!$A$11:$BL$11,0))","v":3},"L3",{"$f":"Table3[[#This Row],[HIGH]]","v":3},{"$f":"Table3[[#This Row],[LOW]]","v":3},{"$f":"INDEX('SUMMARY STAT'!$A$11:$BL$34,MATCH('RESULTS SCALE'!$L$2,'SUMMARY STAT'!$A$11:$A$34,0),MATCH('RESULTS SCALE'!A33,'SUMMARY STAT'!$A$11:$BL$11,0))","v":0}]
["R1",{"$f":"INDEX('SUMMARY STAT'!$A$11:$BL$34,MATCH('RESULTS SCALE'!$B$2,'SUMMARY STAT'!$A$11:$A$34,0),MATCH('RESULTS SCALE'!A34,'SUMMARY STAT'!$A$11:$BL$11,0))","v":2},{"$f":"INDEX('SUMMARY STAT'!$A$11:$BL$34,MATCH('RESULTS SCALE'!$C$2,'SUMMARY STAT'!$A$11:$A$34,0),MATCH('RESULTS SCALE'!A34,'SUMMARY STAT'!$A$11:$BL$11,0))","v":2},{"$f":"INDEX('SUMMARY STAT'!$A$11:$BL$34,MATCH('RESULTS SCALE'!$D$2,'SUMMARY STAT'!$A$11:$A$34,0),MATCH('RESULTS SCALE'!A34,'SUMMARY STAT'!$A$11:$BL$11,0))","v":2},"R1",{"$f":"Table3[[#This Row],[HIGH]]","v":2},{"$f":"Table3[[#This Row],[LOW]]","v":2},{"$f":"INDEX('SUMMARY STAT'!$A$11:$BL$34,MATCH('RESULTS SCALE'!$H$2,'SUMMARY STAT'!$A$11:$A$34,0),MATCH('RESULTS SCALE'!A34,'SUMMARY STAT'!$A$11:$BL$11,0))","v":2},"R1",{"$f":"Table3[[#This Row],[HIGH]]","v":2},{"$f":"Table3[[#This Row],[LOW]]","v":2},{"$f":"INDEX('SUMMARY STAT'!$A$11:$BL$34,MATCH('RESULTS SCALE'!$L$2,'SUMMARY STAT'!$A$11:$A$34,0),MATCH('RESULTS SCALE'!A34,'SUMMARY STAT'!$A$11:$BL$11,0))","v":0}]
["R2",{"$f":"INDEX('SUMMARY STAT'!$A$11:$BL$34,MATCH('RESULTS SCALE'!$B$2,'SUMMARY STAT'!$A$11:$A$34,0),MATCH('RESULTS SCALE'!A35,'SUMMARY STAT'!$A$11:$BL$11,0))","v":4},{"$f":"INDEX('SUMMARY STAT'!$A$11:$BL$34,MATCH('RESULTS SCALE'!$C$2,'SUMMARY STAT'!$A$11:$A$34,0),MATCH('RESULTS SCALE'!A35,'SUMMARY STAT'!$A$11:$BL$11,0))","v":4},{"$f":"INDEX('SUMMARY STAT'!$A$11:$BL$34,MATCH('RESULTS SCALE'!$D$2,'SUMMARY STAT'!$A$11:$A$34,0),MATCH('RESULTS SCALE'!A35,'SUMMARY STAT'!$A$11:$BL$11,0))","v":4},"R2",{"$f":"Table3[[#This Row],[HIGH]]","v":4},{"$f":"Table3[[#This Row],[LOW]]","v":4},{"$f":"INDEX('SUMMARY STAT'!$A$11:$BL$34,MATCH('RESULTS SCALE'!$H$2,'SUMMARY STAT'!$A$11:$A$34,0),MATCH('RESULTS SCALE'!A35,'SUMMARY STAT'!$A$11:$BL$11,0))","v":4},"R2",{"$f":"Table3[[#This Row],[HIGH]]","v":4},{"$f":"Table3[[#This Row],[LOW]]","v":4},{"$f":"INDEX('SUMMARY STAT'!$A$11:$BL$34,MATCH('RESULTS SCALE'!$L$2,'SUMMARY STAT'!$A$11:$A$34,0),MATCH('RESULTS SCALE'!A35,'SUMMARY STAT'!$A$11:$BL$11,0))","v":0}]
["R3",{"$f":"INDEX('SUMMARY STAT'!$A$11:$BL$34,MATCH('RESULTS SCALE'!$B$2,'SUMMARY STAT'!$A$11:$A$34,0),MATCH('RESULTS SCALE'!A36,'SUMMARY STAT'!$A$11:$BL$11,0))","v":4},{"$f":"INDEX('SUMMARY STAT'!$A$11:$BL$34,MATCH('RESULTS SCALE'!$C$2,'SUMMARY STAT'!$A$11:$A$34,0),MATCH('RESULTS SCALE'!A36,'SUMMARY STAT'!$A$11:$BL$11,0))","v":4},{"$f":"INDEX('SUMMARY STAT'!$A$11:$BL$34,MATCH('RESULTS SCALE'!$D$2,'SUMMARY STAT'!$A$11:$A$34,0),MATCH('RESULTS SCALE'!A36,'SUMMARY STAT'!$A$11:$BL$11,0))","v":4},"R3",{"$f":"Table3[[#This Row],[HIGH]]","v":4},{"$f":"Table3[[#This Row],[LOW]]","v":4},{"$f":"INDEX('SUMMARY STAT'!$A$11:$BL$34,MATCH('RESULTS SCALE'!$H$2,'SUMMARY STAT'!$A$11:$A$34,0),MATCH('RESULTS SCALE'!A36,'SUMMARY STAT'!$A$11:$BL$11,0))","v":4},"R3",{"$f":"Table3[[#This Row],[HIGH]]","v":4},{"$f":"Table3[[#This Row],[LOW]]","v":4},{"$f":"INDEX('SUMMARY STAT'!$A$11:$BL$34,MATCH('RESULTS SCALE'!$L$2,'SUMMARY STAT'!$A$11:$A$34,0),MATCH('RESULTS SCALE'!A36,'SUMMARY STAT'!$A$11:$BL$11,0))","v":4}]
["R4",{"$f":"INDEX('SUMMARY STAT'!$A$11:$BL$34,MATCH('RESULTS SCALE'!$B$2,'SUMMARY STAT'!$A$11:$A$34,0),MATCH('RESULTS SCALE'!A37,'SUMMARY STAT'!$A$11:$BL$11,0))","v":2},{"$f":"INDEX('SUMMARY STAT'!$A$11:$BL$34,MATCH('RESULTS SCALE'!$C$2,'SUMMARY STAT'!$A$11:$A$34,0),MATCH('RESULTS SCALE'!A37,'SUMMARY STAT'!$A$11:$BL$11,0))","v":2},{"$f":"INDEX('SUMMARY STAT'!$A$11:$BL$34,MATCH('RESULTS SCALE'!$D$2,'SUMMARY STAT'!$A$11:$A$34,0),MATCH('RESULTS SCALE'!A37,'SUMMARY STAT'!$A$11:$BL$11,0))","v":2},"R4",{"$f":"Table3[[#This Row],[HIGH]]","v":2},{"$f":"Table3[[#This Row],[LOW]]","v":2},{"$f":"INDEX('SUMMARY STAT'!$A$11:$BL$34,MATCH('RESULTS SCALE'!$H$2,'SUMMARY STAT'!$A$11:$A$34,0),MATCH('RESULTS SCALE'!A37,'SUMMARY STAT'!$A$11:$BL$11,0))","v":2},"R4",{"$f":"Table3[[#This Row],[HIGH]]","v":2},{"$f":"Table3[[#This Row],[LOW]]","v":2},{"$f":"INDEX('SUMMARY STAT'!$A$11:$BL$34,MATCH('RESULTS SCALE'!$L$2,'SUMMARY STAT'!$A$11:$A$34,0),MATCH('RESULTS SCALE'!A37,'SUMMARY STAT'!$A$11:$BL$11,0))","v":2}]
["R5",{"$f":"INDEX('SUMMARY STAT'!$A$11:$BL$34,MATCH('RESULTS SCALE'!$B$2,'SUMMARY STAT'!$A$11:$A$34,0),MATCH('RESULTS SCALE'!A38,'SUMMARY STAT'!$A$11:$BL$11,0))","v":5},{"$f":"INDEX('SUMMARY STAT'!$A$11:$BL$34,MATCH('RESULTS SCALE'!$C$2,'SUMMARY STAT'!$A$11:$A$34,0),MATCH('RESULTS SCALE'!A38,'SUMMARY STAT'!$A$11:$BL$11,0))","v":5},{"$f":"INDEX('SUMMARY STAT'!$A$11:$BL$34,MATCH('RESULTS SCALE'!$D$2,'SUMMARY STAT'!$A$11:$A$34,0),MATCH('RESULTS SCALE'!A38,'SUMMARY STAT'!$A$11:$BL$11,0))","v":5},"R5",{"$f":"Table3[[#This Row],[HIGH]]","v":5},{"$f":"Table3[[#This Row],[LOW]]","v":5},{"$f":"INDEX('SUMMARY STAT'!$A$11:$BL$34,MATCH('RESULTS SCALE'!$H$2,'SUMMARY STAT'!$A$11:$A$34,0),MATCH('RESULTS SCALE'!A38,'SUMMARY STAT'!$A$11:$BL$11,0))","v":5},"R5",{"$f":"Table3[[#This Row],[HIGH]]","v":5},{"$f":"Table3[[#This Row],[LOW]]","v":5},{"$f":"INDEX('SUMMARY STAT'!$A$11:$BL$34,MATCH('RESULTS SCALE'!$L$2,'SUMMARY STAT'!$A$11:$A$34,0),MATCH('RESULTS SCALE'!A38,'SUMMARY STAT'!$A$11:$BL$11,0))","v":0}]
["R6",{"$f":"INDEX('SUMMARY STAT'!$A$11:$BL$34,MATCH('RESULTS SCALE'!$B$2,'SUMMARY STAT'!$A$11:$A$34,0),MATCH('RESULTS SCALE'!A39,'SUMMARY STAT'!$A$11:$BL$11,0))","v":4},{"$f":"INDEX('SUMMARY STAT'!$A$11:$BL$34,MATCH('RESULTS SCALE'!$C$2,'SUMMARY STAT'!$A$11:$A$34,0),MATCH('RESULTS SCALE'!A39,'SUMMARY STAT'!$A$11:$BL$11,0))","v":4},{"$f":"INDEX('SUMMARY STAT'!$A$11:$BL$34,MATCH('RESULTS SCALE'!$D$2,'SUMMARY STAT'!$A$11:$A$34,0),MATCH('RESULTS SCALE'!A39,'SUMMARY STAT'!$A$11:$BL$11,0))","v":4},"R6",{"$f":"Table3[[#This Row],[HIGH]]","v":4},{"$f":"Table3[[#This Row],[LOW]]","v":4},{"$f":"INDEX('SUMMARY STAT'!$A$11:$BL$34,MATCH('RESULTS SCALE'!$H$2,'SUMMARY STAT'!$A$11:$A$34,0),MATCH('RESULTS SCALE'!A39,'SUMMARY STAT'!$A$11:$BL$11,0))","v":4},"R6",{"$f":"Table3[[#This Row],[HIGH]]","v":4},{"$f":"Table3[[#This Row],[LOW]]","v":4},{"$f":"INDEX('SUMMARY STAT'!$A$11:$BL$34,MATCH('RESULTS SCALE'!$L$2,'SUMMARY STAT'!$A$11:$A$34,0),MATCH('RESULTS SCALE'!A39,'SUMMARY STAT'!$A$11:$BL$11,0))","v":0}]
["R7",{"$f":"INDEX('SUMMARY STAT'!$A$11:$BL$34,MATCH('RESULTS SCALE'!$B$2,'SUMMARY STAT'!$A$11:$A$34,0),MATCH('RESULTS SCALE'!A40,'SUMMARY STAT'!$A$11:$BL$11,0))","v":3},{"$f":"INDEX('SUMMARY STAT'!$A$11:$BL$34,MATCH('RESULTS SCALE'!$C$2,'SUMMARY STAT'!$A$11:$A$34,0),MATCH('RESULTS SCALE'!A40,'SUMMARY STAT'!$A$11:$BL$11,0))","v":3},{"$f":"INDEX('SUMMARY STAT'!$A$11:$BL$34,MATCH('RESULTS SCALE'!$D$2,'SUMMARY STAT'!$A$11:$A$34,0),MATCH('RESULTS SCALE'!A40,'SUMMARY STAT'!$A$11:$BL$11,0))","v":3},"R7",{"$f":"Table3[[#This Row],[HIGH]]","v":3},{"$f":"Table3[[#This Row],[LOW]]","v":3},{"$f":"INDEX('SUMMARY STAT'!$A$11:$BL$34,MATCH('RESULTS SCALE'!$H$2,'SUMMARY STAT'!$A$11:$A$34,0),MATCH('RESULTS SCALE'!A40,'SUMMARY STAT'!$A$11:$BL$11,0))","v":3},"R7",{"$f":"Table3[[#This Row],[HIGH]]","v":3},{"$f":"Table3[[#This Row],[LOW]]","v":3},{"$f":"INDEX('SUMMARY STAT'!$A$11:$BL$34,MATCH('RESULTS SCALE'!$L$2,'SUMMARY STAT'!$A$11:$A$34,0),MATCH('RESULTS SCALE'!A40,'SUMMARY STAT'!$A$11:$BL$11,0))","v":0}]
["RT1",{"$f":"INDEX('SUMMARY STAT'!$A$11:$BL$34,MATCH('RESULTS SCALE'!$B$2,'SUMMARY STAT'!$A$11:$A$34,0),MATCH('RESULTS SCALE'!A41,'SUMMARY STAT'!$A$11:$BL$11,0))","v":4},{"$f":"INDEX('SUMMARY STAT'!$A$11:$BL$34,MATCH('RESULTS SCALE'!$C$2,'SUMMARY STAT'!$A$11:$A$34,0),MATCH('RESULTS SCALE'!A41,'SUMMARY STAT'!$A$11:$BL$11,0))","v":4},{"$f":"INDEX('SUMMARY STAT'!$A$11:$BL$34,MATCH('RESULTS SCALE'!$D$2,'SUMMARY STAT'!$A$11:$A$34,0),MATCH('RESULTS SCALE'!A41,'SUMMARY STAT'!$A$11:$BL$11,0))","v":4},"RT1",{"$f":"Table3[[#This Row],[HIGH]]","v":4},{"$f":"Table3[[#This Row],[LOW]]","v":4},{"$f":"INDEX('SUMMARY STAT'!$A$11:$BL$34,MATCH('RESULTS SCALE'!$H$2,'SUMMARY STAT'!$A$11:$A$34,0),MATCH('RESULTS SCALE'!A41,'SUMMARY STAT'!$A$11:$BL$11,0))","v":4},"RT1",{"$f":"Table3[[#This Row],[HIGH]]","v":4},{"$f":"Table3[[#This Row],[LOW]]","v":4},{"$f":"INDEX('SUMMARY STAT'!$A$11:$BL$34,MATCH('RESULTS SCALE'!$L$2,'SUMMARY STAT'!$A$11:$A$34,0),MATCH('RESULTS SCALE'!A41,'SUMMARY STAT'!$A$11:$BL$11,0))","v":0}]
["RT2",{"$f":"INDEX('SUMMARY STAT'!$A$11:$BL$34,MATCH('RESULTS SCALE'!$B$2,'SUMMARY STAT'!$A$11:$A$34,0),MATCH('RESULTS SCALE'!A42,'SUMMARY STAT'!$A$11:$BL$11,0))","v":2},{"$f":"INDEX('SUMMARY STAT'!$A$11:$BL$34,MATCH('RESULTS SCALE'!$C$2,'SUMMARY STAT'!$A$11:$A$34,0),MATCH('RESULTS SCALE'!A42,'SUMMARY STAT'!$A$11:$BL$11,0))","v":2},{"$f":"INDEX('SUMMARY STAT'!$A$11:$BL$34,MATCH('RESULTS SCALE'!$D$2,'SUMMARY STAT'!$A$11:$A$34,0),MATCH('RESULTS SCALE'!A42,'SUMMARY STAT'!$A$11:$BL$11,0))","v":2},"RT2",{"$f":"Table3[[#This Row],[HIGH]]","v":2},{"$f":"Table3[[#This Row],[LOW]]","v":2},{"$f":"INDEX('SUMMARY STAT'!$A$11:$BL$34,MATCH('RESULTS SCALE'!$H$2,'SUMMARY STAT'!$A$11:$A$34,0),MATCH('RESULTS SCALE'!A42,'SUMMARY STAT'!$A$11:$BL$11,0))","v":2},"RT2",{"$f":"Table3[[#This Row],[HIGH]]","v":2},{"$f":"Table3[[#This Row],[LOW]]","v":2},{"$f":"INDEX('SUMMARY STAT'!$A$11:$BL$34,MATCH('RESULTS SCALE'!$L$2,'SUMMARY STAT'!$A$11:$A$34,0),MATCH('RESULTS SCALE'!A42,'SUMMARY STAT'!$A$11:$BL$11,0))","v":2}]
["RT3",{"$f":"INDEX('SUMMARY STAT'!$A$11:$BL$34,MATCH('RESULTS SCALE'!$B$2,'SUMMARY STAT'!$A$11:$A$34,0),MATCH('RESULTS SCALE'!A43,'SUMMARY STAT'!$A$11:$BL$11,0))","v":2},{"$f":"INDEX('SUMMARY STAT'!$A$11:$BL$34,MATCH('RESULTS SCALE'!$C$2,'SUMMARY STAT'!$A$11:$A$34,0),MATCH('RESULTS SCALE'!A43,'SUMMARY STAT'!$A$11:$BL$11,0))","v":2},{"$f":"INDEX('SUMMARY STAT'!$A$11:$BL$34,MATCH('RESULTS SCALE'!$D$2,'SUMMARY STAT'!$A$11:$A$34,0),MATCH('RESULTS SCALE'!A43,'SUMMARY STAT'!$A$11:$BL$11,0))","v":2},"RT3",{"$f":"Table3[[#This Row],[HIGH]]","v":2},{"$f":"Table3[[#This Row],[LOW]]","v":2},{"$f":"INDEX('SUMMARY STAT'!$A$11:$BL$34,MATCH('RESULTS SCALE'!$H$2,'SUMMARY STAT'!$A$11:$A$34,0),MATCH('RESULTS SCALE'!A43,'SUMMARY STAT'!$A$11:$BL$11,0))","v":2},"RT3",{"$f":"Table3[[#This Row],[HIGH]]","v":2},{"$f":"Table3[[#This Row],[LOW]]","v":2},{"$f":"INDEX('SUMMARY STAT'!$A$11:$BL$34,MATCH('RESULTS SCALE'!$L$2,'SUMMARY STAT'!$A$11:$A$34,0),MATCH('RESULTS SCALE'!A43,'SUMMARY STAT'!$A$11:$BL$11,0))","v":0}]
["P1",{"$f":"INDEX('SUMMARY STAT'!$A$11:$BL$34,MATCH('RESULTS SCALE'!$B$2,'SUMMARY STAT'!$A$11:$A$34,0),MATCH('RESULTS SCALE'!A44,'SUMMARY STAT'!$A$11:$BL$11,0))","v":4},{"$f":"INDEX('SUMMARY STAT'!$A$11:$BL$34,MATCH('RESULTS SCALE'!$C$2,'SUMMARY STAT'!$A$11:$A$34,0),MATCH('RESULTS SCALE'!A44,'SUMMARY STAT'!$A$11:$BL$11,0))","v":4},{"$f":"INDEX('SUMMARY STAT'!$A$11:$BL$34,MATCH('RESULTS SCALE'!$D$2,'SUMMARY STAT'!$A$11:$A$34,0),MATCH('RESULTS SCALE'!A44,'SUMMARY STAT'!$A$11:$BL$11,0))","v":4},"P1",{"$f":"Table3[[#This Row],[HIGH]]","v":4},{"$f":"Table3[[#This Row],[LOW]]","v":4},{"$f":"INDEX('SUMMARY STAT'!$A$11:$BL$34,MATCH('RESULTS SCALE'!$H$2,'SUMMARY STAT'!$A$11:$A$34,0),MATCH('RESULTS SCALE'!A44,'SUMMARY STAT'!$A$11:$BL$11,0))","v":4},"P1",{"$f":"Table3[[#This Row],[HIGH]]","v":4},{"$f":"Table3[[#This Row],[LOW]]","v":4},{"$f":"INDEX('SUMMARY STAT'!$A$11:$BL$34,MATCH('RESULTS SCALE'!$L$2,'SUMMARY STAT'!$A$11:$A$34,0),MATCH('RESULTS SCALE'!A44,'SUMMARY STAT'!$A$11:$BL$11,0))","v":4}]
["P2",{"$f":"INDEX('SUMMARY STAT'!$A$11:$BL$34,MATCH('RESULTS SCALE'!$B$2,'SUMMARY STAT'!$A$11:$A$34,0),MATCH('RESULTS SCALE'!A45,'SUMMARY STAT'!$A$11:$BL$11,0))","v":3},{"$f":"INDEX('SUMMARY STAT'!$A$11:$BL$34,MATCH('RESULTS SCALE'!$C$2,'SUMMARY STAT'!$A$11:$A$34,0),MATCH('RESULTS SCALE'!A45,'SUMMARY STAT'!$A$11:$BL$11,0))","v":3},{"$f":"INDEX('SUMMARY STAT'!$A$11:$BL$34,MATCH('RESULTS SCALE'!$D$2,'SUMMARY STAT'!$A$11:$A$34,0),MATCH('RESULTS SCALE'!A45,'SUMMARY STAT'!$A$11:$BL$11,0))","v":3},"P2",{"$f":"Table3[[#This Row],[HIGH]]","v":3},{"$f":"Table3[[#This Row],[LOW]]","v":3},{"$f":"INDEX('SUMMARY STAT'!$A$11:$BL$34,MATCH('RESULTS SCALE'!$H$2,'SUMMARY STAT'!$A$11:$A$34,0),MATCH('RESULTS SCALE'!A45,'SUMMARY STAT'!$A$11:$BL$11,0))","v":3},"P2",{"$f":"Table3[[#This Row],[HIGH]]","v":3},{"$f":"Table3[[#This Row],[LOW]]","v":3},{"$f":"INDEX('SUMMARY STAT'!$A$11:$BL$34,MATCH('RESULTS SCALE'!$L$2,'SUMMARY STAT'!$A$11:$A$34,0),MATCH('RESULTS SCALE'!A45,'SUMMARY STAT'!$A$11:$BL$11,0))","v":3}]
["P3",{"$f":"INDEX('SUMMARY STAT'!$A$11:$BL$34,MATCH('RESULTS SCALE'!$B$2,'SUMMARY STAT'!$A$11:$A$34,0),MATCH('RESULTS SCALE'!A46,'SUMMARY STAT'!$A$11:$BL$11,0))","v":2},{"$f":"INDEX('SUMMARY STAT'!$A$11:$BL$34,MATCH('RESULTS SCALE'!$C$2,'SUMMARY STAT'!$A$11:$A$34,0),MATCH('RESULTS SCALE'!A46,'SUMMARY STAT'!$A$11:$BL$11,0))","v":2},{"$f":"INDEX('SUMMARY STAT'!$A$11:$BL$34,MATCH('RESULTS SCALE'!$D$2,'SUMMARY STAT'!$A$11:$A$34,0),MATCH('RESULTS SCALE'!A46,'SUMMARY STAT'!$A$11:$BL$11,0))","v":2},"P3",{"$f":"Table3[[#This Row],[HIGH]]","v":2},{"$f":"Table3[[#This Row],[LOW]]","v":2},{"$f":"INDEX('SUMMARY STAT'!$A$11:$BL$34,MATCH('RESULTS SCALE'!$H$2,'SUMMARY STAT'!$A$11:$A$34,0),MATCH('RESULTS SCALE'!A46,'SUMMARY STAT'!$A$11:$BL$11,0))","v":2},"P3",{"$f":"Table3[[#This Row],[HIGH]]","v":2},{"$f":"Table3[[#This Row],[LOW]]","v":2},{"$f":"INDEX('SUMMARY STAT'!$A$11:$BL$34,MATCH('RESULTS SCALE'!$L$2,'SUMMARY STAT'!$A$11:$A$34,0),MATCH('RESULTS SCALE'!A46,'SUMMARY STAT'!$A$11:$BL$11,0))","v":0}]
["P4",{"$f":"INDEX('SUMMARY STAT'!$A$11:$BL$34,MATCH('RESULTS SCALE'!$B$2,'SUMMARY STAT'!$A$11:$A$34,0),MATCH('RESULTS SCALE'!A47,'SUMMARY STAT'!$A$11:$BL$11,0))","v":1},{"$f":"INDEX('SUMMARY STAT'!$A$11:$BL$34,MATCH('RESULTS SCALE'!$C$2,'SUMMARY STAT'!$A$11:$A$34,0),MATCH('RESULTS SCALE'!A47,'SUMMARY STAT'!$A$11:$BL$11,0))","v":1},{"$f":"INDEX('SUMMARY STAT'!$A$11:$BL$34,MATCH('RESULTS SCALE'!$D$2,'SUMMARY STAT'!$A$11:$A$34,0),MATCH('RESULTS SCALE'!A47,'SUMMARY STAT'!$A$11:$BL$11,0))","v":1},"P4",{"$f":"Table3[[#This Row],[HIGH]]","v":1},{"$f":"Table3[[#This Row],[LOW]]","v":1},{"$f":"INDEX('SUMMARY STAT'!$A$11:$BL$34,MATCH('RESULTS SCALE'!$H$2,'SUMMARY STAT'!$A$11:$A$34,0),MATCH('RESULTS SCALE'!A47,'SUMMARY STAT'!$A$11:$BL$11,0))","v":1},"P4",{"$f":"Table3[[#This Row],[HIGH]]","v":1},{"$f":"Table3[[#This Row],[LOW]]","v":1},{"$f":"INDEX('SUMMARY STAT'!$A$11:$BL$34,MATCH('RESULTS SCALE'!$L$2,'SUMMARY STAT'!$A$11:$A$34,0),MATCH('RESULTS SCALE'!A47,'SUMMARY STAT'!$A$11:$BL$11,0))","v":0}]
["MP1",{"$f":"INDEX('SUMMARY STAT'!$A$11:$BL$34,MATCH('RESULTS SCALE'!$B$2,'SUMMARY STAT'!$A$11:$A$34,0),MATCH('RESULTS SCALE'!A48,'SUMMARY STAT'!$A$11:$BL$11,0))","v":3},{"$f":"INDEX('SUMMARY STAT'!$A$11:$BL$34,MATCH('RESULTS SCALE'!$C$2,'SUMMARY STAT'!$A$11:$A$34,0),MATCH('RESULTS SCALE'!A48,'SUMMARY STAT'!$A$11:$BL$11,0))","v":3},{"$f":"INDEX('SUMMARY STAT'!$A$11:$BL$34,MATCH('RESULTS SCALE'!$D$2,'SUMMARY STAT'!$A$11:$A$34,0),MATCH('RESULTS SCALE'!A48,'SUMMARY STAT'!$A$11:$BL$11,0))","v":3},"MP1",{"$f":"Table3[[#This Row],[HIGH]]","v":3},{"$f":"Table3[[#This Row],[LOW]]","v":3},{"$f":"INDEX('SUMMARY STAT'!$A$11:$BL$34,MATCH('RESULTS SCALE'!$H$2,'SUMMARY STAT'!$A$11:$A$34,0),MATCH('RESULTS SCALE'!A48,'SUMMARY STAT'!$A$11:$BL$11,0))","v":3},"MP1",{"$f":"Table3[[#This Row],[HIGH]]","v":3},{"$f":"Table3[[#This Row],[LOW]]","v":3},{"$f":"INDEX('SUMMARY STAT'!$A$11:$BL$34,MATCH('RESULTS SCALE'!$L$2,'SUMMARY STAT'!$A$11:$A$34,0),MATCH('RESULTS SCALE'!A48,'SUMMARY STAT'!$A$11:$BL$11,0))","v":0}]
["MP2",{"$f":"INDEX('SUMMARY STAT'!$A$11:$BL$34,MATCH('RESULTS SCALE'!$B$2,'SUMMARY STAT'!$A$11:$A$34,0),MATCH('RESULTS SCALE'!A49,'SUMMARY STAT'!$A$11:$BL$11,0))","v":4},{"$f":"INDEX('SUMMARY STAT'!$A$11:$BL$34,MATCH('RESULTS SCALE'!$C$2,'SUMMARY STAT'!$A$11:$A$34,0),MATCH('RESULTS SCALE'!A49,'SUMMARY STAT'!$A$11:$BL$11,0))","v":4},{"$f":"INDEX('SUMMARY STAT'!$A$11:$BL$34,MATCH('RESULTS SCALE'!$D$2,'SUMMARY STAT'!$A$11:$A$34,0),MATCH('RESULTS SCALE'!A49,'SUMMARY STAT'!$A$11:$BL$11,0))","v":4},"MP2",{"$f":"Table3[[#This Row],[HIGH]]","v":4},{"$f":"Table3[[#This Row],[LOW]]","v":4},{"$f":"INDEX('SUMMARY STAT'!$A$11:$BL$34,MATCH('RESULTS SCALE'!$H$2,'SUMMARY STAT'!$A$11:$A$34,0),MATCH('RESULTS SCALE'!A49,'SUMMARY STAT'!$A$11:$BL$11,0))","v":4},"MP2",{"$f":"Table3[[#This Row],[HIGH]]","v":4},{"$f":"Table3[[#This Row],[LOW]]","v":4},{"$f":"INDEX('SUMMARY STAT'!$A$11:$BL$34,MATCH('RESULTS SCALE'!$L$2,'SUMMARY STAT'!$A$11:$A$34,0),MATCH('RESULTS SCALE'!A49,'SUMMARY STAT'!$A$11:$BL$11,0))","v":0}]
["MP3",{"$f":"INDEX('SUMMARY STAT'!$A$11:$BL$34,MATCH('RESULTS SCALE'!$B$2,'SUMMARY STAT'!$A$11:$A$34,0),MATCH('RESULTS SCALE'!A50,'SUMMARY STAT'!$A$11:$BL$11,0))","v":3},{"$f":"INDEX('SUMMARY STAT'!$A$11:$BL$34,MATCH('RESULTS SCALE'!$C$2,'SUMMARY STAT'!$A$11:$A$34,0),MATCH('RESULTS SCALE'!A50,'SUMMARY STAT'!$A$11:$BL$11,0))","v":3},{"$f":"INDEX('SUMMARY STAT'!$A$11:$BL$34,MATCH('RESULTS SCALE'!$D$2,'SUMMARY STAT'!$A$11:$A$34,0),MATCH('RESULTS SCALE'!A50,'SUMMARY STAT'!$A$11:$BL$11,0))","v":3},"MP3",{"$f":"Table3[[#This Row],[HIGH]]","v":3},{"$f":"Table3[[#This Row],[LOW]]","v":3},{"$f":"INDEX('SUMMARY STAT'!$A$11:$BL$34,MATCH('RESULTS SCALE'!$H$2,'SUMMARY STAT'!$A$11:$A$34,0),MATCH('RESULTS SCALE'!A50,'SUMMARY STAT'!$A$11:$BL$11,0))","v":3},"MP3",{"$f":"Table3[[#This Row],[HIGH]]","v":3},{"$f":"Table3[[#This Row],[LOW]]","v":3},{"$f":"INDEX('SUMMARY STAT'!$A$11:$BL$34,MATCH('RESULTS SCALE'!$L$2,'SUMMARY STAT'!$A$11:$A$34,0),MATCH('RESULTS SCALE'!A50,'SUMMARY STAT'!$A$11:$BL$11,0))","v":0}]
["MP4",{"$f":"INDEX('SUMMARY STAT'!$A$11:$BL$34,MATCH('RESULTS SCALE'!$B$2,'SUMMARY STAT'!$A$11:$A$34,0),MATCH('RESULTS SCALE'!A51,'SUMMARY STAT'!$A$11:$BL$11,0))","v":1},{"$f":"INDEX('SUMMARY STAT'!$A$11:$BL$34,MATCH('RESULTS SCALE'!$C$2,'SUMMARY STAT'!$A$11:$A$34,0),MATCH('RESULTS SCALE'!A51,'SUMMARY STAT'!$A$11:$BL$11,0))","v":1},{"$f":"INDEX('SUMMARY STAT'!$A$11:$BL$34,MATCH('RESULTS SCALE'!$D$2,'SUMMARY STAT'!$A$11:$A$34,0),MATCH('RESULTS SCALE'!A51,'SUMMARY STAT'!$A$11:$BL$11,0))","v":1},"MP4",{"$f":"Table3[[#This Row],[HIGH]]","v":1},{"$f":"Table3[[#This Row],[LOW]]","v":1},{"$f":"INDEX('SUMMARY STAT'!$A$11:$BL$34,MATCH('RESULTS SCALE'!$H$2,'SUMMARY STAT'!$A$11:$A$34,0),MATCH('RESULTS SCALE'!A51,'SUMMARY STAT'!$A$11:$BL$11,0))","v":1},"MP4",{"$f":"Table3[[#This Row],[HIGH]]","v":1},{"$f":"Table3[[#This Row],[LOW]]","v":1},{"$f":"INDEX('SUMMARY STAT'!$A$11:$BL$34,MATCH('RESULTS SCALE'!$L$2,'SUMMARY STAT'!$A$11:$A$34,0),MATCH('RESULTS SCALE'!A51,'SUMMARY STAT'!$A$11:$BL$11,0))","v":0}]
["MP5",{"$f":"INDEX('SUMMARY STAT'!$A$11:$BL$34,MATCH('RESULTS SCALE'!$B$2,'SUMMARY STAT'!$A$11:$A$34,0),MATCH('RESULTS SCALE'!A52,'SUMMARY STAT'!$A$11:$BL$11,0))","v":2},{"$f":"INDEX('SUMMARY STAT'!$A$11:$BL$34,MATCH('RESULTS SCALE'!$C$2,'SUMMARY STAT'!$A$11:$A$34,0),MATCH('RESULTS SCALE'!A52,'SUMMARY STAT'!$A$11:$BL$11,0))","v":2},{"$f":"INDEX('SUMMARY STAT'!$A$11:$BL$34,MATCH('RESULTS SCALE'!$D$2,'SUMMARY STAT'!$A$11:$A$34,0),MATCH('RESULTS SCALE'!A52,'SUMMARY STAT'!$A$11:$BL$11,0))","v":2},"MP5",{"$f":"Table3[[#This Row],[HIGH]]","v":2},{"$f":"Table3[[#This Row],[LOW]]","v":2},{"$f":"INDEX('SUMMARY STAT'!$A$11:$BL$34,MATCH('RESULTS SCALE'!$H$2,'SUMMARY STAT'!$A$11:$A$34,0),MATCH('RESULTS SCALE'!A52,'SUMMARY STAT'!$A$11:$BL$11,0))","v":2},"MP5",{"$f":"Table3[[#This Row],[HIGH]]","v":2},{"$f":"Table3[[#This Row],[LOW]]","v":2},{"$f":"INDEX('SUMMARY STAT'!$A$11:$BL$34,MATCH('RESULTS SCALE'!$L$2,'SUMMARY STAT'!$A$11:$A$34,0),MATCH('RESULTS SCALE'!A52,'SUMMARY STAT'!$A$11:$BL$11,0))","v":0}]
["MP6",{"$f":"INDEX('SUMMARY STAT'!$A$11:$BL$34,MATCH('RESULTS SCALE'!$B$2,'SUMMARY STAT'!$A$11:$A$34,0),MATCH('RESULTS SCALE'!A53,'SUMMARY STAT'!$A$11:$BL$11,0))","v":3},{"$f":"INDEX('SUMMARY STAT'!$A$11:$BL$34,MATCH('RESULTS SCALE'!$C$2,'SUMMARY STAT'!$A$11:$A$34,0),MATCH('RESULTS SCALE'!A53,'SUMMARY STAT'!$A$11:$BL$11,0))","v":3},{"$f":"INDEX('SUMMARY STAT'!$A$11:$BL$34,MATCH('RESULTS SCALE'!$D$2,'SUMMARY STAT'!$A$11:$A$34,0),MATCH('RESULTS SCALE'!A53,'SUMMARY STAT'!$A$11:$BL$11,0))","v":3},"MP6",{"$f":"Table3[[#This Row],[HIGH]]","v":3},{"$f":"Table3[[#This Row],[LOW]]","v":3},{"$f":"INDEX('SUMMARY STAT'!$A$11:$BL$34,MATCH('RESULTS SCALE'!$H$2,'SUMMARY STAT'!$A$11:$A$34,0),MATCH('RESULTS SCALE'!A53,'SUMMARY STAT'!$A$11:$BL$11,0))","v":3},"MP6",{"$f":"Table3[[#This Row],[HIGH]]","v":3},{"$f":"Table3[[#This Row],[LOW]]","v":3},{"$f":"INDEX('SUMMARY STAT'!$A$11:$BL$34,MATCH('RESULTS SCALE'!$L$2,'SUMMARY STAT'!$A$11:$A$34,0),MATCH('RESULTS SCALE'!A53,'SUMMARY STAT'!$A$11:$BL$11,0))","v":0}]
["MP7",{"$f":"INDEX('SUMMARY STAT'!$A$11:$BL$34,MATCH('RESULTS SCALE'!$B$2,'SUMMARY STAT'!$A$11:$A$34,0),MATCH('RESULTS SCALE'!A54,'SUMMARY STAT'!$A$11:$BL$11,0))","v":2},{"$f":"INDEX('SUMMARY STAT'!$A$11:$BL$34,MATCH('RESULTS SCALE'!$C$2,'SUMMARY STAT'!$A$11:$A$34,0),MATCH('RESULTS SCALE'!A54,'SUMMARY STAT'!$A$11:$BL$11,0))","v":2},{"$f":"INDEX('SUMMARY STAT'!$A$11:$BL$34,MATCH('RESULTS SCALE'!$D$2,'SUMMARY STAT'!$A$11:$A$34,0),MATCH('RESULTS SCALE'!A54,'SUMMARY STAT'!$A$11:$BL$11,0))","v":2},"MP7",{"$f":"Table3[[#This Row],[HIGH]]","v":2},{"$f":"Table3[[#This Row],[LOW]]","v":2},{"$f":"INDEX('SUMMARY STAT'!$A$11:$BL$34,MATCH('RESULTS SCALE'!$H$2,'SUMMARY STAT'!$A$11:$A$34,0),MATCH('RESULTS SCALE'!A54,'SUMMARY STAT'!$A$11:$BL$11,0))","v":2},"MP7",{"$f":"Table3[[#This Row],[HIGH]]","v":2},{"$f":"Table3[[#This Row],[LOW]]","v":2},{"$f":"INDEX('SUMMARY STAT'!$A$11:$BL$34,MATCH('RESULTS SCALE'!$L$2,'SUMMARY STAT'!$A$11:$A$34,0),MATCH('RESULTS SCALE'!A54,'SUMMARY STAT'!$A$11:$BL$11,0))","v":0}]
["MP8",{"$f":"INDEX('SUMMARY STAT'!$A$11:$BL$34,MATCH('RESULTS SCALE'!$B$2,'SUMMARY STAT'!$A$11:$A$34,0),MATCH('RESULTS SCALE'!A55,'SUMMARY STAT'!$A$11:$BL$11,0))","v":3},{"$f":"INDEX('SUMMARY STAT'!$A$11:$BL$34,MATCH('RESULTS SCALE'!$C$2,'SUMMARY STAT'!$A$11:$A$34,0),MATCH('RESULTS SCALE'!A55,'SUMMARY STAT'!$A$11:$BL$11,0))","v":3},{"$f":"INDEX('SUMMARY STAT'!$A$11:$BL$34,MATCH('RESULTS SCALE'!$D$2,'SUMMARY STAT'!$A$11:$A$34,0),MATCH('RESULTS SCALE'!A55,'SUMMARY STAT'!$A$11:$BL$11,0))","v":3},"MP8",{"$f":"Table3[[#This Row],[HIGH]]","v":3},{"$f":"Table3[[#This Row],[LOW]]","v":3},{"$f":"INDEX('SUMMARY STAT'!$A$11:$BL$34,MATCH('RESULTS SCALE'!$H$2,'SUMMARY STAT'!$A$11:$A$34,0),MATCH('RESULTS SCALE'!A55,'SUMMARY STAT'!$A$11:$BL$11,0))","v":3},"MP8",{"$f":"Table3[[#This Row],[HIGH]]","v":3},{"$f":"Table3[[#This Row],[LOW]]","v":3},{"$f":"INDEX('SUMMARY STAT'!$A$11:$BL$34,MATCH('RESULTS SCALE'!$L$2,'SUMMARY STAT'!$A$11:$A$34,0),MATCH('RESULTS SCALE'!A55,'SUMMARY STAT'!$A$11:$BL$11,0))","v":0}]
["MP9",{"$f":"INDEX('SUMMARY STAT'!$A$11:$BL$34,MATCH('RESULTS SCALE'!$B$2,'SUMMARY STAT'!$A$11:$A$34,0),MATCH('RESULTS SCALE'!A56,'SUMMARY STAT'!$A$11:$BL$11,0))","v":3},{"$f":"INDEX('SUMMARY STAT'!$A$11:$BL$34,MATCH('RESULTS SCALE'!$C$2,'SUMMARY STAT'!$A$11:$A$34,0),MATCH('RESULTS SCALE'!A56,'SUMMARY STAT'!$A$11:$BL$11,0))","v":3},{"$f":"INDEX('SUMMARY STAT'!$A$11:$BL$34,MATCH('RESULTS SCALE'!$D$2,'SUMMARY STAT'!$A$11:$A$34,0),MATCH('RESULTS SCALE'!A56,'SUMMARY STAT'!$A$11:$BL$11,0))","v":3},"MP9",{"$f":"Table3[[#This Row],[HIGH]]","v":3},{"$f":"Table3[[#This Row],[LOW]]","v":3},{"$f":"INDEX('SUMMARY STAT'!$A$11:$BL$34,MATCH('RESULTS SCALE'!$H$2,'SUMMARY STAT'!$A$11:$A$34,0),MATCH('RESULTS SCALE'!A56,'SUMMARY STAT'!$A$11:$BL$11,0))","v":3},"MP9",{"$f":"Table3[[#This Row],[HIGH]]","v":3},{"$f":"Table3[[#This Row],[LOW]]","v":3},{"$f":"INDEX('SUMMARY STAT'!$A$11:$BL$34,MATCH('RESULTS SCALE'!$L$2,'SUMMARY STAT'!$A$11:$A$34,0),MATCH('RESULTS SCALE'!A56,'SUMMARY STAT'!$A$11:$BL$11,0))","v":0}]
["MP10",{"$f":"INDEX('SUMMARY STAT'!$A$11:$BL$34,MATCH('RESULTS SCALE'!$B$2,'SUMMARY STAT'!$A$11:$A$34,0),MATCH('RESULTS SCALE'!A57,'SUMMARY STAT'!$A$11:$BL$11,0))","v":1},{"$f":"INDEX('SUMMARY STAT'!$A$11:$BL$34,MATCH('RESULTS SCALE'!$C$2,'SUMMARY STAT'!$A$11:$A$34,0),MATCH('RESULTS SCALE'!A57,'SUMMARY STAT'!$A$11:$BL$11,0))","v":1},{"$f":"INDEX('SUMMARY STAT'!$A$11:$BL$34,MATCH('RESULTS SCALE'!$D$2,'SUMMARY STAT'!$A$11:$A$34,0),MATCH('RESULTS SCALE'!A57,'SUMMARY STAT'!$A$11:$BL$11,0))","v":1},"MP10",{"$f":"Table3[[#This Row],[HIGH]]","v":1},{"$f":"Table3[[#This Row],[LOW]]","v":1},{"$f":"INDEX('SUMMARY STAT'!$A$11:$BL$34,MATCH('RESULTS SCALE'!$H$2,'SUMMARY STAT'!$A$11:$A$34,0),MATCH('RESULTS SCALE'!A57,'SUMMARY STAT'!$A$11:$BL$11,0))","v":1},"MP10",{"$f":"Table3[[#This Row],[HIGH]]","v":1},{"$f":"Table3[[#This Row],[LOW]]","v":1},{"$f":"INDEX('SUMMARY STAT'!$A$11:$BL$34,MATCH('RESULTS SCALE'!$L$2,'SUMMARY STAT'!$A$11:$A$34,0),MATCH('RESULTS SCALE'!A57,'SUMMARY STAT'!$A$11:$BL$11,0))","v":0}]
["MP11",{"$f":"INDEX('SUMMARY STAT'!$A$11:$BL$34,MATCH('RESULTS SCALE'!$B$2,'SUMMARY STAT'!$A$11:$A$34,0),MATCH('RESULTS SCALE'!A58,'SUMMARY STAT'!$A$11:$BL$11,0))","v":2},{"$f":"INDEX('SUMMARY STAT'!$A$11:$BL$34,MATCH('RESULTS SCALE'!$C$2,'SUMMARY STAT'!$A$11:$A$34,0),MATCH('RESULTS SCALE'!A58,'SUMMARY STAT'!$A$11:$BL$11,0))","v":2},{"$f":"INDEX('SUMMARY STAT'!$A$11:$BL$34,MATCH('RESULTS SCALE'!$D$2,'SUMMARY STAT'!$A$11:$A$34,0),MATCH('RESULTS SCALE'!A58,'SUMMARY STAT'!$A$11:$BL$11,0))","v":2},"MP11",{"$f":"Table3[[#This Row],[HIGH]]","v":2},{"$f":"Table3[[#This Row],[LOW]]","v":2},{"$f":"INDEX('SUMMARY STAT'!$A$11:$BL$34,MATCH('RESULTS SCALE'!$H$2,'SUMMARY STAT'!$A$11:$A$34,0),MATCH('RESULTS SCALE'!A58,'SUMMARY STAT'!$A$11:$BL$11,0))","v":2},"MP11",{"$f":"Table3[[#This Row],[HIGH]]","v":2},{"$f":"Table3[[#This Row],[LOW]]","v":2},{"$f":"INDEX('SUMMARY STAT'!$A$11:$BL$34,MATCH('RESULTS SCALE'!$L$2,'SUMMARY STAT'!$A$11:$A$34,0),MATCH('RESULTS SCALE'!A58,'SUMMARY STAT'!$A$11:$BL$11,0))","v":0}]
["MP12",{"$f":"INDEX('SUMMARY STAT'!$A$11:$BL$34,MATCH('RESULTS SCALE'!$B$2,'SUMMARY STAT'!$A$11:$A$34,0),MATCH('RESULTS SCALE'!A59,'SUMMARY STAT'!$A$11:$BL$11,0))","v":5},{"$f":"INDEX('SUMMARY STAT'!$A$11:$BL$34,MATCH('RESULTS SCALE'!$C$2,'SUMMARY STAT'!$A$11:$A$34,0),MATCH('RESULTS SCALE'!A59,'SUMMARY STAT'!$A$11:$BL$11,0))","v":5},{"$f":"INDEX('SUMMARY STAT'!$A$11:$BL$34,MATCH('RESULTS SCALE'!$D$2,'SUMMARY STAT'!$A$11:$A$34,0),MATCH('RESULTS SCALE'!A59,'SUMMARY STAT'!$A$11:$BL$11,0))","v":5},"MP12",{"$f":"Table3[[#This Row],[HIGH]]","v":5},{"$f":"Table3[[#This Row],[LOW]]","v":5},{"$f":"INDEX('SUMMARY STAT'!$A$11:$BL$34,MATCH('RESULTS SCALE'!$H$2,'SUMMARY STAT'!$A$11:$A$34,0),MATCH('RESULTS SCALE'!A59,'SUMMARY STAT'!$A$11:$BL$11,0))","v":5},"MP12",{"$f":"Table3[[#This Row],[HIGH]]","v":5},{"$f":"Table3[[#This Row],[LOW]]","v":5},{"$f":"INDEX('SUMMARY STAT'!$A$11:$BL$34,MATCH('RESULTS SCALE'!$L$2,'SUMMARY STAT'!$A$11:$A$34,0),MATCH('RESULTS SCALE'!A59,'SUMMARY STAT'!$A$11:$BL$11,0))","v":0}]
["T1",{"$f":"INDEX('SUMMARY STAT'!$A$11:$BL$34,MATCH('RESULTS SCALE'!$B$2,'SUMMARY STAT'!$A$11:$A$34,0),MATCH('RESULTS SCALE'!A60,'SUMMARY STAT'!$A$11:$BL$11,0))","v":2},{"$f":"INDEX('SUMMARY STAT'!$A$11:$BL$34,MATCH('RESULTS SCALE'!$C$2,'SUMMARY STAT'!$A$11:$A$34,0),MATCH('RESULTS SCALE'!A60,'SUMMARY STAT'!$A$11:$BL$11,0))","v":2},{"$f":"INDEX('SUMMARY STAT'!$A$11:$BL$34,MATCH('RESULTS SCALE'!$D$2,'SUMMARY STAT'!$A$11:$A$34,0),MATCH('RESULTS SCALE'!A60,'SUMMARY STAT'!$A$11:$BL$11,0))","v":2},"T1",{"$f":"Table3[[#This Row],[HIGH]]","v":2},{"$f":"Table3[[#This Row],[LOW]]","v":2},{"$f":"INDEX('SUMMARY STAT'!$A$11:$BL$34,MATCH('RESULTS SCALE'!$H$2,'SUMMARY STAT'!$A$11:$A$34,0),MATCH('RESULTS SCALE'!A60,'SUMMARY STAT'!$A$11:$BL$11,0))","v":2},"T1",{"$f":"Table3[[#This Row],[HIGH]]","v":2},{"$f":"Table3[[#This Row],[LOW]]","v":2},{"$f":"INDEX('SUMMARY STAT'!$A$11:$BL$34,MATCH('RESULTS SCALE'!$L$2,'SUMMARY STAT'!$A$11:$A$34,0),MATCH('RESULTS SCALE'!A60,'SUMMARY STAT'!$A$11:$BL$11,0))","v":2}]
["T2",{"$f":"INDEX('SUMMARY STAT'!$A$11:$BL$34,MATCH('RESULTS SCALE'!$B$2,'SUMMARY STAT'!$A$11:$A$34,0),MATCH('RESULTS SCALE'!A61,'SUMMARY STAT'!$A$11:$BL$11,0))","v":2},{"$f":"INDEX('SUMMARY STAT'!$A$11:$BL$34,MATCH('RESULTS SCALE'!$C$2,'SUMMARY STAT'!$A$11:$A$34,0),MATCH('RESULTS SCALE'!A61,'SUMMARY STAT'!$A$11:$BL$11,0))","v":2},{"$f":"INDEX('SUMMARY STAT'!$A$11:$BL$34,MATCH('RESULTS SCALE'!$D$2,'SUMMARY STAT'!$A$11:$A$34,0),MATCH('RESULTS SCALE'!A61,'SUMMARY STAT'!$A$11:$BL$11,0))","v":2},"T2",{"$f":"Table3[[#This Row],[HIGH]]","v":2},{"$f":"Table3[[#This Row],[LOW]]","v":2},{"$f":"INDEX('SUMMARY STAT'!$A$11:$BL$34,MATCH('RESULTS SCALE'!$H$2,'SUMMARY STAT'!$A$11:$A$34,0),MATCH('RESULTS SCALE'!A61,'SUMMARY STAT'!$A$11:$BL$11,0))","v":2},"T2",{"$f":"Table3[[#This Row],[HIGH]]","v":2},{"$f":"Table3[[#This Row],[LOW]]","v":2},{"$f":"INDEX('SUMMARY STAT'!$A$11:$BL$34,MATCH('RESULTS SCALE'!$L$2,'SUMMARY STAT'!$A$11:$A$34,0),MATCH('RESULTS SCALE'!A61,'SUMMARY STAT'!$A$11:$BL$11,0))","v":0}]
["T3",{"$f":"INDEX('SUMMARY STAT'!$A$11:$BL$34,MATCH('RESULTS SCALE'!$B$2,'SUMMARY STAT'!$A$11:$A$34,0),MATCH('RESULTS SCALE'!A62,'SUMMARY STAT'!$A$11:$BL$11,0))","v":2},{"$f":"INDEX('SUMMARY STAT'!$A$11:$BL$34,MATCH('RESULTS SCALE'!$C$2,'SUMMARY STAT'!$A$11:$A$34,0),MATCH('RESULTS SCALE'!A62,'SUMMARY STAT'!$A$11:$BL$11,0))","v":2},{"$f":"INDEX('SUMMARY STAT'!$A$11:$BL$34,MATCH('RESULTS SCALE'!$D$2,'SUMMARY STAT'!$A$11:$A$34,0),MATCH('RESULTS SCALE'!A62,'SUMMARY STAT'!$A$11:$BL$11,0))","v":2},"T3",{"$f":"Table3[[#This Row],[HIGH]]","v":2},{"$f":"Table3[[#This Row],[LOW]]","v":2},{"$f":"INDEX('SUMMARY STAT'!$A$11:$BL$34,MATCH('RESULTS SCALE'!$H$2,'SUMMARY STAT'!$A$11:$A$34,0),MATCH('RESULTS SCALE'!A62,'SUMMARY STAT'!$A$11:$BL$11,0))","v":2},"T3",{"$f":"Table3[[#This Row],[HIGH]]","v":2},{"$f":"Table3[[#This Row],[LOW]]","v":2},{"$f":"INDEX('SUMMARY STAT'!$A$11:$BL$34,MATCH('RESULTS SCALE'!$L$2,'SUMMARY STAT'!$A$11:$A$34,0),MATCH('RESULTS SCALE'!A62,'SUMMARY STAT'!$A$11:$BL$11,0))","v":0}]
["T4",{"$f":"INDEX('SUMMARY STAT'!$A$11:$BL$34,MATCH('RESULTS SCALE'!$B$2,'SUMMARY STAT'!$A$11:$A$34,0),MATCH('RESULTS SCALE'!A63,'SUMMARY STAT'!$A$11:$BL$11,0))","v":1},{"$f":"INDEX('SUMMARY STAT'!$A$11:$BL$34,MATCH('RESULTS SCALE'!$C$2,'SUMMARY STAT'!$A$11:$A$34,0),MATCH('RESULTS SCALE'!A63,'SUMMARY STAT'!$A$11:$BL$11,0))","v":1},{"$f":"INDEX('SUMMARY STAT'!$A$11:$BL$34,MATCH('RESULTS SCALE'!$D$2,'SUMMARY STAT'!$A$11:$A$34,0),MATCH('RESULTS SCALE'!A63,'SUMMARY STAT'!$A$11:$BL$11,0))","v":1},"T4",{"$f":"Table3[[#This Row],[HIGH]]","v":1},{"$f":"Table3[[#This Row],[LOW]]","v":1},{"$f":"INDEX('SUMMARY STAT'!$A$11:$BL$34,MATCH('RESULTS SCALE'!$H$2,'SUMMARY STAT'!$A$11:$A$34,0),MATCH('RESULTS SCALE'!A63,'SUMMARY STAT'!$A$11:$BL$11,0))","v":1},"T4",{"$f":"Table3[[#This Row],[HIGH]]","v":1},{"$f":"Table3[[#This Row],[LOW]]","v":1},{"$f":"INDEX('SUMMARY STAT'!$A$11:$BL$34,MATCH('RESULTS SCALE'!$L$2,'SUMMARY STAT'!$A$11:$A$34,0),MATCH('RESULTS SCALE'!A63,'SUMMARY STAT'!$A$11:$BL$11,0))","v":0}]
["TECH1",{"$f":"INDEX('SUMMARY STAT'!$A$11:$BL$34,MATCH('RESULTS SCALE'!$B$2,'SUMMARY STAT'!$A$11:$A$34,0),MATCH('RESULTS SCALE'!A64,'SUMMARY STAT'!$A$11:$BL$11,0))","v":3},{"$f":"INDEX('SUMMARY STAT'!$A$11:$BL$34,MATCH('RESULTS SCALE'!$C$2,'SUMMARY STAT'!$A$11:$A$34,0),MATCH('RESULTS SCALE'!A64,'SUMMARY STAT'!$A$11:$BL$11,0))","v":3},{"$f":"INDEX('SUMMARY STAT'!$A$11:$BL$34,MATCH('RESULTS SCALE'!$D$2,'SUMMARY STAT'!$A$11:$A$34,0),MATCH('RESULTS SCALE'!A64,'SUMMARY STAT'!$A$11:$BL$11,0))","v":3},"TECH1",{"$f":"Table3[[#This Row],[HIGH]]","v":3},{"$f":"Table3[[#This Row],[LOW]]","v":3},{"$f":"INDEX('SUMMARY STAT'!$A$11:$BL$34,MATCH('RESULTS SCALE'!$H$2,'SUMMARY STAT'!$A$11:$A$34,0),MATCH('RESULTS SCALE'!A64,'SUMMARY STAT'!$A$11:$BL$11,0))","v":3},"TECH1",{"$f":"Table3[[#This Row],[HIGH]]","v":3},{"$f":"Table3[[#This Row],[LOW]]","v":3},{"$f":"INDEX('SUMMARY STAT'!$A$11:$BL$34,MATCH('RESULTS SCALE'!$L$2,'SUMMARY STAT'!$A$11:$A$34,0),MATCH('RESULTS SCALE'!A64,'SUMMARY STAT'!$A$11:$BL$11,0))","v":3}]

{"sheet":"INTERPRETATION","index":5,"n_rows":241,"n_cols":8,"rows_kept":241,"cut":false,"hidden":false,"merged":[[1,7,2,7],[4,7,5,7]]}
["INTERPRETATION:",null,null,null,null,null,"DO NOT MOVE"]
[null,null,null,null,null,null,"Single Division","ALWAYS RESELECT on the Results Scale tab"]
["SECTION 1","Low/high average (average value is 2- or 4+): single division (or entire company if selected)",null,null,null,null,{"$f":"'RESULTS SCALE'!W3","v":"Business1"}]
[]
["These are areas of strong cultural identity for the division (or entire company if selected).  It is more significant if the standard ",null,null,null,null,null,"Multiple Divisions","ALWAYS RESELECT 2 divisions to compare"]
["deviation is small, meaning that responses are similar/tightly distributed around the average. (Standard deviation of nil",null,null,null,null,null,"B1-B2"]
["means that all responses included in the count were the same.)"]
[]
["They represent either strengths or threats, depending on whether they are aligned with strategy and project objectives."]
[]
["If nothing is identified in the table, either there is significant cultural diversity (see sections 3 and 4), or there is a lack of "]
["strong cultural identity (section 5)."]
[]
["Review the list below and assess whether action is required to align cultural identity with strategic objectives."]
["Note that these are averages and whether to take action may also be impacted by whether the population is skewed by"]
["a few extreme responses (see median), and whether there is significant variability in responses (see standard deviation)."]
[]
["The following questions scored here for the selected division (high/low is on the highlighted end of the scale):"]
["Note that the mode value is for the entire company, not by division.  Mode of 0 means there isn't a mode."]
["Count is the number of valid responses included in the average."]
[]
["Question","1","5","AVG","MEDIAN","ST DEV","COUNT"]
["S1","People/culture/organizational capability focused","Market/profitability/shareholder value focused",2,2,0,1]
["S2","People understand and are focused on the long-term mission & strategy ","People are focused on doing business as usual or managing crises",4,4,0,1]
["S3","Outcome-driven","Process-driven",2,2,0,1]
["S5","Short-term profit orientation","Long-term value orientation",4,4,0,1]
["S6","Customer and market driven","Technology driven",2,2,0,1]
["S7","Fast and flexible response / MVP approach","Quality, rigid process, and proven approaches paramount",2,2,0,1]
["I2","Structured and planned","Sensing and emotionally-driven",2,2,0,1]
["D1","Formal long-term planning","\"Gut feels\"; responsive and opportunistic",2,2,0,1]
["D3","Authority is key","Constructive conflict is key",2,2,0,1]
["C1","Family-like","Business-like",2,2,0,1]
["C3","Cult-like","Independent thinkers",4,4,0,1]
["C4","Psychologically safe at all levels; open debate; all ideas welcome","Psychologically safe at the top; guarded lower levels; little debate; ideas tied to proven expertise",2,2,0,1]
["C5","Informal / personable","Formal, business-like and task-oriented",2,2,0,1]
["C6","Collaborative","Competitive",2,2,0,1]
["C7","Flexible ","Rigid / punctual",2,2,0,1]
["C8","Polite/indirect","Blunt/direct (can be perceived as \"offensive\" by outsiders)",1,1,0,1]
["C9","Openly and directly discuss problems, mistakes, challenges as a team","Team members problem solve individually before bringing up issues with the team",2,2,0,1]
["C10","Candidly voice authentic opinions","Avoid conflict ",2,2,0,1]
["C12","Adaptable to change and opportunities to learn and grow; tolerant of ambiguity and uncertainty","Does not welcome change, focused on getting things done",2,2,0,1]
["C14","Rigid silos ","Cross-functional cooperation",1,1,0,1]
["C15","High trust","Low trust",1,1,0,1]
["L1","Formal / structured programs","Informal programs adapted to individual needs",2,2,0,1]
["L2","Considerable opportunity for learning and development","Limited opportunity for deep learning; limited role mobility",2,2,0,1]
["R1","Individual performance","Individual performance plus team and organizational performance",2,2,0,1]
["R2","Performance expectations top-down","Performance expectations co-developed",4,4,0,1]
["R3","Seniority-based","Performance-based",4,4,0,1]
["R4","Performance standards and expectations are clear","Performance standards and expectations are vague and ambiguous",2,2,0,1]
["R5","Compensation is above market","Compensation is below market",5,5,0,1]
["R6","Compensation gaps across levels are narrower than average","Compensation gaps across levels are wider than average",4,4,0,1]
["RT1","Risk averse; punitive for mistakes","Calculating risk-taking encouraged and rewarded; mistakes are seen as learning opportunities",4,4,0,1]
["RT2","Innovation is ad hoc; not formally rewarded","Innovation is rewarded and actively funded based on objective criteria",2,2,0,1]
["RT3","Employee ideas are solicited and acted upon","Employee ideas are not acted upon",2,2,0,1]
["P1","Long-term","Short-term",4,4,0,1]
["P3","Proactive, future-oriented and strategic","Reactive and focused on past performance",2,2,0,1]
["P4","Focused on external opportunities and threats","Focused on rigid resource allocation processes ",1,1,0,1]
["MP2","Leaders are hard drivers","Leaders focus on long-term organizational capability",4,4,0,1]
["MP4","Rigid, formal, professional process, policies and procedures","Informal, entrepreneurial processes",1,1,0,1]
["MP5","Command and control leadership style","Transformational leadership style",2,2,0,1]
["MP7","People feel trusted, respected, appreciated, valued","People feel like \"cogs in the wheel\"; replaceable",2,2,0,1]
["MP10","Leaders are actively engaged and help resolve conflict","Leaders are aloof; sink-or-swim approach",1,1,0,1]
["MP11","Leaders are seen as \"servant\"","Leaders are seen as \"self-serving\"",2,2,0,1]
["MP12","Leaders see themselves in the \"parent\" role","Leaders see themselves in the \"equal adult\" role",5,5,0,1]
["T1","Hierarchical ","Flat",2,2,0,1]
["T2","Roles clearly defined and understood","Roles are ambiguous and evolve easily",2,2,0,1]
["T3","Team purpose and mission considered in defining team structure","Seniority considered in defining team structure",2,2,0,1]
["T4","Team meetings are effective at aligning team","Team meetings are seen as a \"resource trap\"",1,1,0,1]
[]
["SECTION 2","Presence of extreme responses (1 or 5): single division (or entire company if selected)"]
[]
["This list includes questions with extreme responses (5 or 1), along with the number of respondents giving them, and question "]
["medians and averages.  Averages 2- and 4+ are also included in table 1 above."]
[]
["This suggests that some respondents perceive/experience/drive cultural extremes for these questions.  If they are consistent with "]
["high/low averages (2- and 4+), it supports the overall cultural identity.  If they are not consistent with averages, it suggests that"]
["some people perceive/experience/drive the culture differently from the average, and their experience/expectations may not be"]
["aligned with the average expectations/experience of the group.  It may be both a threat (i.e., counterproductive) and an opportunity"]
[" (e.g., positive role-modelling)."]
[]
["If there are extreme responses on both ends of the scale, the team may benefit from more clarity in expectations, and specific "]
["direction to align behavior, unless tension is seen as a positive force."]
[]
["Question","1","5","1: COUNT","5: COUNT","AVG","MEDIAN"]
["C8","Polite/indirect","Blunt/direct (can be perceived as \"offensive\" by outsiders)",1,0,1,1]
["C14","Rigid silos ","Cross-functional cooperation",1,0,1,1]
["C15","High trust","Low trust",1,0,1,1]
["R5","Compensation is above market","Compensation is below market",0,1,5,5]
["P4","Focused on external opportunities and threats","Focused on rigid resource allocation processes ",1,0,1,1]
["MP4","Rigid, formal, professional process, policies and procedures","Informal, entrepreneurial processes",1,0,1,1]
["MP10","Leaders are actively engaged and help resolve conflict","Leaders are aloof; sink-or-swim approach",1,0,1,1]
["MP12","Leaders see themselves in the \"parent\" role","Leaders see themselves in the \"equal adult\" role",0,1,5,5]
["T4","Team meetings are effective at aligning team","Team meetings are seen as a \"resource trap\"",1,0,1,1]
[]
["SECTION 3","High variability (standard deviation of SELECTON+): single division (or entire company if selected)"]
[]
["About Standard Deviation"]
["Standard deviation measures the spread of data (i.e., how widely responses are spread on a scale)."]
["Standard deviation of 1.5+ means that there is a 95% probability that responses are within at least 3 points of each other"]
["(e.g., different people may select options 1 and 4, or 2 and 5)."]
[]
["As a comparison, a standard deviation of 0.5 means that responses are within 1 point (so most people respond the same way), "]
["while a standard derivation of 2 means that responses are within 4 points of each other (so different people respond very"]
["differently) (all with a 95% probability)."]
[]
["Note that for this calculation, a sample standard deviation is used.  If a sample is small relative to all people in the division "]
["(see count above), then it is more difficult to conclude that these results are similar to what would be found if all the people "]
["in the division were polled.  If a population is large, then usually we need 30 samples to make a valid conclusion."]
["This also explains why the calculated standard deviation is somewhat larger than the difference between the actual high and low"]
["responses.  Also, when the sample is small, the calculated sample standard deviation will be relatively larger than for a bigger sample. The "]
["sample formula corrects for the bias present in small samples.  As your sample grows, consider selecting a smaller reporting threshold"]
["for standard derivation."]
[]
["There is significant response variability in these areas within a single division (or entire company if selected), potentially resulting"]
["in employee stress and suboptimal performance.  It may also be due to individual differences in team member's needs and how they"]
["perceive/experience the current culture in light of these needs.  To optimize performance, it is best to align culture with both the "]
["mission/strategy and employee needs."]
[]
["Clear communication and conflict resolution strategies may be more important in these areas for the selected division."]
["It is possible that different functional areas (e.g., marketing vs. operations) have cultural silos with different cultural identities."]
["For example, marketing and sales may be a higher stress function that requires less innovation, more social/EQ effort,"]
["and more top-down, hard driving leadership to get sales growth.  Competitive vs. cooperative behavior may also be function-specific."]
["It is useful to assess specific functional areas to determine if changes are needed to improve engagement and results."]
[]
["Approaches similar to section 4 are useful."]
[]
["The following questions scored here for the selected division/company:"]
[]
["Question","1","5","Count","High","Low","Standard Deviation"]
[]
[]
["SECTION 4","High variability (standard deviation of SELECTION+): two-division comparison"]
[]
["Note that this section compares average results for two divisions.  This means that there are only two observations used, "]
["and the standard deviation measures the actual spread between these two average data points (e.g., a standard deviation of "]
["1.5+ means that the averages for the divisions being compared are at least 3 points apart).  Because of the averaging,"]
["it is helpful to set standard deviation to a lower threshold, to identify variances that are not \"averaged out\" within the divisional"]
["results.  The default standard deviation is set to 0.5.  It is highly sensitive to cultural differences although may pickup more subtle ones."]
["Exercise caution when the number of responses is small and the standard deviation is closer to 0.5."]
[]
["\"Count\" below is all responses obtained for the entire company."]
[]
["There is significant variability in these areas, potentially resulting in cultural identities within the selected divisions closer to opposite "]
["ends of the scale."]
[]
["These areas are more likely to BOTH cause conflict/friction and result in integration benefits."]
["Clear communication and conflict resolution strategies may be more important in these areas for the selected divisions."]
["Recommended solutions are focused on three steps:"]
["1) Define the culture context most important to the strategy and project objectives.  If differences are in style only (e.g., intense "]
["vs. low-key; polite/indirect vs. blunt/direct), acknowledge the differences and promote respect for (\"do not judge\") both operating styles."]
["These styles are more innate to organizational personalities.  It is more productive to reconcile, rather than change them."]
["2) Identify best practices in divisions most aligned with strategy and project objectives."]
["3) Implement across all divisions.  If cultural change required is significant, consider whether the existing culture can be "]
["accommodated.  For example, family-like vs. business-like cultures can be very core to loyalty, morale and commitment."]
["When changing such cultures, it is important to retain and foster the \"ties that bind\"; it must be clear why changes are "]
["being introduced and why are they beneficial to the combined company and people individually (the \"me\" factor)."]
["It is important not to damage key relationships and trust, while focusing on hard results."]
[]
["The following questions scored here for the selected divisions:"]
[]
["Question","1","5","Count (total company)","Division 1 Average","Division 2 Average","Standard Deviation"]
["S1","People/culture/organizational capability focused","Market/profitability/shareholder value focused",2,2,4,1]
["S2","People understand and are focused on the long-term mission & strategy ","People are focused on doing business as usual or managing crises",2,4,3,0.5]
["S4","Growth stage of lifecycle","Decline and disruption stage of lifecycle",2,3,2,0.5]
["S5","Short-term profit orientation","Long-term value orientation",2,4,3,0.5]
["S6","Customer and market driven","Technology driven",2,2,4,1]
["S7","Fast and flexible response / MVP approach","Quality, rigid process, and proven approaches paramount",2,2,3,0.5]
["I2","Structured and planned","Sensing and emotionally-driven",2,2,4,1]
["I3","Open and candid","Filtered",2,3,2,0.5]
["D1","Formal long-term planning","\"Gut feels\"; responsive and opportunistic",2,2,4,1]
["D2","Top-down","Distributed / Consensual",2,3,2,0.5]
["D3","Authority is key","Constructive conflict is key",2,2,3,0.5]
["C1","Family-like","Business-like",2,2,4,1]
["C2","Passion and intuition driven","Logical and data driven",2,3,2,0.5]
["C3","Cult-like","Independent thinkers",2,4,3,0.5]
["C4","Psychologically safe at all levels; open debate; all ideas welcome","Psychologically safe at the top; guarded lower levels; little debate; ideas tied to proven expertise",2,2,4,1]
["C5","Informal / personable","Formal, business-like and task-oriented",2,2,3,0.5]
["C6","Collaborative","Competitive",2,2,3,0.5]
["C8","Polite/indirect","Blunt/direct (can be perceived as \"offensive\" by outsiders)",2,1,2,0.5]
["C9","Openly and directly discuss problems, mistakes, challenges as a team","Team members problem solve individually before bringing up issues with the team",2,2,3,0.5]
["C10","Candidly voice authentic opinions","Avoid conflict ",2,2,4,1]
["C11","Intense, high-energy","Low-key, pensive, quiet, subdued",2,3,4,0.5]
["C12","Adaptable to change and opportunities to learn and grow; tolerant of ambiguity and uncertainty","Does not welcome change, focused on getting things done",2,2,3,0.5]
["C13","\"Posturing\" with leaders is important","Informality and debate / minimal political \"games\"",2,3,2,0.5]
["C14","Rigid silos ","Cross-functional cooperation",2,1,3,1]
["C15","High trust","Low trust",2,1,3,1]
["L1","Formal / structured programs","Informal programs adapted to individual needs",2,2,4,1]
["L2","Considerable opportunity for learning and development","Limited opportunity for deep learning; limited role mobility",2,2,4,1]
["L3","Training tied to current roles","Training tied to current roles, future roles and overall strategic direction of the business",2,3,1,1]
["R1","Individual performance","Individual performance plus team and organizational performance",2,2,3,0.5]
["R2","Performance expectations top-down","Performance expectations co-developed",2,4,2,1]
["R5","Compensation is above market","Compensation is below market",2,5,4,0.5]
["R6","Compensation gaps across levels are narrower than average","Compensation gaps across levels are wider than average",2,4,3,0.5]
["R7","Feedback is more focused on performance management/improvement","Feedback is more focused on growth",2,3,2,0.5]
["RT1","Risk averse; punitive for mistakes","Calculating risk-taking encouraged and rewarded; mistakes are seen as learning opportunities",2,4,3,0.5]
["RT3","Employee ideas are solicited and acted upon","Employee ideas are not acted upon",2,2,4,1]
["P3","Proactive, future-oriented and strategic","Reactive and focused on past performance",2,2,3,0.5]
["P4","Focused on external opportunities and threats","Focused on rigid resource allocation processes ",2,1,2,0.5]
["MP1","Leadership is transparent and humble","Leadership is opaque and charismatic",2,3,2,0.5]
["MP2","Leaders are hard drivers","Leaders focus on long-term organizational capability",2,4,2,1]
["MP3","High levels of mentoring and coaching","Mentoring and coaching is highly selective ",2,3,5,1]
["MP4","Rigid, formal, professional process, policies and procedures","Informal, entrepreneurial processes",2,1,5,2]
["MP5","Command and control leadership style","Transformational leadership style",2,2,3,0.5]
["MP6","Cost reduction and efficiency driven","Quality driven",2,3,2,0.5]
["MP7","People feel trusted, respected, appreciated, valued","People feel like \"cogs in the wheel\"; replaceable",2,2,4,1]
["MP8","Low stress","High stress/burnout ",2,3,4,0.5]
["MP9","Learning orientation","Performance orientation",2,3,4,0.5]
["MP10","Leaders are actively engaged and help resolve conflict","Leaders are aloof; sink-or-swim approach",2,1,3,1]
["MP11","Leaders are seen as \"servant\"","Leaders are seen as \"self-serving\"",2,2,4,1]
["MP12","Leaders see themselves in the \"parent\" role","Leaders see themselves in the \"equal adult\" role",2,5,2,1.5]
["T2","Roles clearly defined and understood","Roles are ambiguous and evolve easily",2,2,4,1]
["T3","Team purpose and mission considered in defining team structure","Seniority considered in defining team structure",2,2,3,0.5]
["T4","Team meetings are effective at aligning team","Team meetings are seen as a \"resource trap\"",2,1,4,1.5]
[]
[]
["SECTION 5","Average scores (average over 2 and less than 4): single division (or entire company if selected)"]
[]
["These areas may represent either areas of flexibility or unclear cultural identity.  Note that mode represents value for the entire"]
["company, not by division."]
[]
["Review the list below and assess whether action is required to create/align cultural identify with strategic objectives."]
[]
["The following questions scored here for the selected division:"]
[]
["Question","1","5","AVG","MEDIAN","MODE","COUNT"]
["S4","Growth stage of lifecycle","Decline and disruption stage of lifecycle",3,3,0,1]
["I1","Information flow is centrally orchestrated (to the leader for decision-making; from the leader for direction)","Information flow is distributed and adapted by different people (team members determine how they share and distribute information for different issues; information flow is free)",3,3,3,1]
["I3","Open and candid","Filtered",3,3,0,1]
["D2","Top-down","Distributed / Consensual",3,3,0,1]
["C2","Passion and intuition driven","Logical and data driven",3,3,0,1]
["C11","Intense, high-energy","Low-key, pensive, quiet, subdued",3,3,0,1]
["C13","\"Posturing\" with leaders is important","Informality and debate / minimal political \"games\"",3,3,0,1]
["L3","Training tied to current roles","Training tied to current roles, future roles and overall strategic direction of the business",3,3,0,1]
["R7","Feedback is more focused on performance management/improvement","Feedback is more focused on growth",3,3,0,1]
["P2","Data use and analysis are maximized using advanced collection tools, skills and technology","Data use and analysis are minimal",3,3,3,1]
["MP1","Leadership is transparent and humble","Leadership is opaque and charismatic",3,3,0,1]
["MP3","High levels of mentoring and coaching","Mentoring and coaching is highly selective ",3,3,0,1]
["MP6","Cost reduction and efficiency driven","Quality driven",3,3,0,1]
["MP8","Low stress","High stress/burnout ",3,3,0,1]
["MP9","Learning orientation","Performance orientation",3,3,0,1]
["TECH1","State-of-the-art driven","Compliance-driven",3,3,3,1]

{"sheet":"DIVISIONAL COMPARISON","index":6,"n_rows":6,"n_cols":2,"rows_kept":6,"cut":false,"hidden":false,"merged":[]}
[]
[]
["COMPARE CODES:"]
["BIAS","Divisions are not significantly different but one division is more biased towards one end of the scale"]
["SAME","The divisions are aligned"]
["CONFLICT","The difference in average scores for the two divisions is statistically significant"]

{"sheet":"SUMMARY STAT","index":7,"n_rows":34,"n_cols":64,"rows_kept":34,"cut":false,"hidden":false,"merged":[]}
["Business","Business1"]
["Business","Business2"]
["Business","Business3"]
["Business","Business4"]
["Business","CompanyTotal"]
["Respondent / Question","Business","S1","S2","S3","S4","S5","S6","S7","I1","I2","I3","D1","D2","D3","C1","C2","C3","C4","C5","C6","C7","C8","C9","C10","C11","C12","C13","C14","C15","L1","L2","L3","R1","R2","R3","R4","R5","R6","R7","RT1","RT2","RT3","P1","P2","P3","P4","MP1","MP2","MP3","MP4","MP5","MP6","MP7","MP8","MP9","MP10","MP11","MP12","T1","T2","T3","T4","TECH1"]
[1,"Business1",2,4,2,3,4,2,2,3,2,3,2,3,2,2,3,4,2,2,2,2,1,2,2,3,2,3,1,1,2,2,3,2,4,4,2,5,4,3,4,2,2,4,3,2,1,3,4,3,1,2,3,2,3,3,1,2,5,2,2,2,1,3]
[2,"Business2",4,3,2,2,3,4,3,3,4,2,4,2,3,4,2,3,4,3,3,2,2,3,4,4,3,2,3,3,4,4,1,3,2,4,2,4,3,2,3,2,4,4,3,3,2,2,2,5,5,3,2,4,4,4,3,4,2,2,4,3,4,3]
[]
[]
["Question","Application","S1","S2","S3","S4","S5","S6","S7","I1","I2","I3","D1","D2","D3","C1","C2","C3","C4","C5","C6","C7","C8","C9","C10","C11","C12","C13","C14","C15","L1","L2","L3","R1","R2","R3","R4","R5","R6","R7","RT1","RT2","RT3","P1","P2","P3","P4","MP1","MP2","MP3","MP4","MP5","MP6","MP7","MP8","MP9","MP10","MP11","MP12","T1","T2","T3","T4","TECH1"]
["AVERAGE","visible",{"$f":"_xlfn.AGGREGATE(1,3,(summarystat[S1]))","v":2},{"$f":"_xlfn.AGGREGATE(1,3,(summarystat[S2]))","v":4},{"$f":"_xlfn.AGGREGATE(1,3,(summarystat[S3]))","v":2},{"$f":"_xlfn.AGGREGATE(1,3,(summarystat[S4]))","v":3},{"$f":"_xlfn.AGGREGATE(1,3,(summarystat[S5]))","v":4},{"$f":"_xlfn.AGGREGATE(1,3,(summarystat[S6]))","v":2},{"$f":"_xlfn.AGGREGATE(1,3,(summarystat[S7]))","v":2},{"$f":"_xlfn.AGGREGATE(1,3,(summarystat[I1]))","v":3},{"$f":"_xlfn.AGGREGATE(1,3,(summarystat[I2]))","v":2},{"$f":"_xlfn.AGGREGATE(1,3,(summarystat[I3]))","v":3},{"$f":"_xlfn.AGGREGATE(1,3,(summarystat[D1]))","v":2},{"$f":"_xlfn.AGGREGATE(1,3,(summarystat[D2]))","v":3},{"$f":"_xlfn.AGGREGATE(1,3,(summarystat[D3]))","v":2},{"$f":"_xlfn.AGGREGATE(1,3,(summarystat[C1]))","v":2},{"$f":"_xlfn.AGGREGATE(1,3,(summarystat[C2]))","v":3},{"$f":"_xlfn.AGGREGATE(1,3,(summarystat[C3]))","v":4},{"$f":"_xlfn.AGGREGATE(1,3,(summarystat[C4]))","v":2},{"$f":"_xlfn.AGGREGATE(1,3,(summarystat[C5]))","v":2},{"$f":"_xlfn.AGGREGATE(1,3,(summarystat[C6]))","v":2},{"$f":"_xlfn.AGGREGATE(1,3,(summarystat[C7]))","v":2},{"$f":"_xlfn.AGGREGATE(1,3,(summarystat[C8]))","v":1},{"$f":"_xlfn.AGGREGATE(1,3,(summarystat[C9]))","v":2},{"$f":"_xlfn.AGGREGATE(1,3,(summarystat[C10]))","v":2},{"$f":"_xlfn.AGGREGATE(1,3,(summarystat[C11]))","v":3},{"$f":"_xlfn.AGGREGATE(1,3,(summarystat[C12]))","v":2},{"$f":"_xlfn.AGGREGATE(1,3,(summarystat[C13]))","v":3},{"$f":"_xlfn.AGGREGATE(1,3,(summarystat[C14]))","v":1},{"$f":"_xlfn.AGGREGATE(1,3,(summarystat[C15]))","v":1},{"$f":"_xlfn.AGGREGATE(1,3,(summarystat[L1]))","v":2},{"$f":"_xlfn.AGGREGATE(1,3,(summarystat[L2]))","v":2},{"$f":"_xlfn.AGGREGATE(1,3,(summarystat[L3]))","v":3},{"$f":"_xlfn.AGGREGATE(1,3,(summarystat[R1]))","v":2},{"$f":"_xlfn.AGGREGATE(1,3,(summarystat[R2]))","v":4},{"$f":"_xlfn.AGGREGATE(1,3,(summarystat[R3]))","v":4},{"$f":"_xlfn.AGGREGATE(1,3,(summarystat[R4]))","v":2},{"$f":"_xlfn.AGGREGATE(1,3,(summarystat[R5]))","v":5},{"$f":"_xlfn.AGGREGATE(1,3,(summarystat[R6]))","v":4},{"$f":"_xlfn.AGGREGATE(1,3,(summarystat[R7]))","v":3},{"$f":"_xlfn.AGGREGATE(1,3,(summarystat[RT1]))","v":4},{"$f":"_xlfn.AGGREGATE(1,3,(summarystat[RT2]))","v":2},{"$f":"_xlfn.AGGREGATE(1,3,(summarystat[RT3]))","v":2},{"$f":"_xlfn.AGGREGATE(1,3,(summarystat[P1]))","v":4},{"$f":"_xlfn.AGGREGATE(1,3,(summarystat[P2]))","v":3},{"$f":"_xlfn.AGGREGATE(1,3,(summarystat[P3]))","v":2},{"$f":"_xlfn.AGGREGATE(1,3,(summarystat[P4]))","v":1},{"$f":"_xlfn.AGGREGATE(1,3,(summarystat[MP1]))","v":3},{"$f":"_xlfn.AGGREGATE(1,3,(summarystat[MP2]))","v":4},{"$f":"_xlfn.AGGREGATE(1,3,(summarystat[MP3]))","v":3},{"$f":"_xlfn.AGGREGATE(1,3,(summarystat[MP4]))","v":1},{"$f":"_xlfn.AGGREGATE(1,3,(summarystat[MP5]))","v":2},{"$f":"_xlfn.AGGREGATE(1,3,(summarystat[MP6]))","v":3},{"$f":"_xlfn.AGGREGATE(1,3,(summarystat[MP7]))","v":2},{"$f":"_xlfn.AGGREGATE(1,3,(summarystat[MP8]))","v":3},{"$f":"_xlfn.AGGREGATE(1,3,(summarystat[MP9]))","v":3},{"$f":"_xlfn.AGGREGATE(1,3,(summarystat[MP10]))","v":1},{"$f":"_xlfn.AGGREGATE(1,3,(summarystat[MP11]))","v":2},{"$f":"_xlfn.AGGREGATE(1,3,(summarystat[MP12]))","v":5},{"$f":"_xlfn.AGGREGATE(1,3,(summarystat[T1]))","v":2},{"$f":"_xlfn.AGGREGATE(1,3,(summarystat[T2]))","v":2},{"$f":"_xlfn.AGGREGATE(1,3,(summarystat[T3]))","v":2},{"$f":"_xlfn.AGGREGATE(1,3,(summarystat[T4]))","v":1},{"$f":"_xlfn.AGGREGATE(1,3,(summarystat[TECH1]))","v":3}]
["MEDIAN","visible",{"$f":"_xlfn.AGGREGATE(12,3,(summarystat[S1]))","v":2},{"$f":"_xlfn.AGGREGATE(12,3,(summarystat[S2]))","v":4},{"$f":"_xlfn.AGGREGATE(12,3,(summarystat[S3]))","v":2},{"$f":"_xlfn.AGGREGATE(12,3,(summarystat[S4]))","v":3},{"$f":"_xlfn.AGGREGATE(12,3,(summarystat[S5]))","v":4},{"$f":"_xlfn.AGGREGATE(12,3,(summarystat[S6]))","v":2},{"$f":"_xlfn.AGGREGATE(12,3,(summarystat[S7]))","v":2},{"$f":"_xlfn.AGGREGATE(12,3,(summarystat[I1]))","v":3},{"$f":"_xlfn.AGGREGATE(12,3,(summarystat[I2]))","v":2},{"$f":"_xlfn.AGGREGATE(12,3,(summarystat[I3]))","v":3},{"$f":"_xlfn.AGGREGATE(12,3,(summarystat[D1]))","v":2},{"$f":"_xlfn.AGGREGATE(12,3,(summarystat[D2]))","v":3},{"$f":"_xlfn.AGGREGATE(12,3,(summarystat[D3]))","v":2},{"$f":"_xlfn.AGGREGATE(12,3,(summarystat[C1]))","v":2},{"$f":"_xlfn.AGGREGATE(12,3,(summarystat[C2]))","v":3},{"$f":"_xlfn.AGGREGATE(12,3,(summarystat[C3]))","v":4},{"$f":"_xlfn.AGGREGATE(12,3,(summarystat[C4]))","v":2},{"$f":"_xlfn.AGGREGATE(12,3,(summarystat[C5]))","v":2},{"$f":"_xlfn.AGGREGATE(12,3,(summarystat[C6]))","v":2},{"$f":"_xlfn.AGGREGATE(12,3,(summarystat[C7]))","v":2},{"$f":"_xlfn.AGGREGATE(12,3,(summarystat[C8]))","v":1},{"$f":"_xlfn.AGGREGATE(12,3,(summarystat[C9]))","v":2},{"$f":"_xlfn.AGGREGATE(12,3,(summarystat[C10]))","v":2},{"$f":"_xlfn.AGGREGATE(12,3,(summarystat[C11]))","v":3},{"$f":"_xlfn.AGGREGATE(12,3,(summarystat[C12]))","v":2},{"$f":"_xlfn.AGGREGATE(12,3,(summarystat[C13]))","v":3},{"$f":"_xlfn.AGGREGATE(12,3,(summarystat[C14]))","v":1},{"$f":"_xlfn.AGGREGATE(12,3,(summarystat[C15]))","v":1},{"$f":"_xlfn.AGGREGATE(12,3,(summarystat[L1]))","v":2},{"$f":"_xlfn.AGGREGATE(12,3,(summarystat[L2]))","v":2},{"$f":"_xlfn.AGGREGATE(12,3,(summarystat[L3]))","v":3},{"$f":"_xlfn.AGGREGATE(12,3,(summarystat[R1]))","v":2},{"$f":"_xlfn.AGGREGATE(12,3,(summarystat[R2]))","v":4},{"$f":"_xlfn.AGGREGATE(12,3,(summarystat[R3]))","v":4},{"$f":"_xlfn.AGGREGATE(12,3,(summarystat[R4]))","v":2},{"$f":"_xlfn.AGGREGATE(12,3,(summarystat[R5]))","v":5},{"$f":"_xlfn.AGGREGATE(12,3,(summarystat[R6]))","v":4},{"$f":"_xlfn.AGGREGATE(12,3,(summarystat[R7]))","v":3},{"$f":"_xlfn.AGGREGATE(12,3,(summarystat[RT1]))","v":4},{"$f":"_xlfn.AGGREGATE(12,3,(summarystat[RT2]))","v":2},{"$f":"_xlfn.AGGREGATE(12,3,(summarystat[RT3]))","v":2},{"$f":"_xlfn.AGGREGATE(12,3,(summarystat[P1]))","v":4},{"$f":"_xlfn.AGGREGATE(12,3,(summarystat[P2]))","v":3},{"$f":"_xlfn.AGGREGATE(12,3,(summarystat[P3]))","v":2},{"$f":"_xlfn.AGGREGATE(12,3,(summarystat[P4]))","v":1},{"$f":"_xlfn.AGGREGATE(12,3,(summarystat[MP1]))","v":3},{"$f":"_xlfn.AGGREGATE(12,3,(summarystat[MP2]))","v":4},{"$f":"_xlfn.AGGREGATE(12,3,(summarystat[MP3]))","v":3},{"$f":"_xlfn.AGGREGATE(12,3,(summarystat[MP4]))","v":1},{"$f":"_xlfn.AGGREGATE(12,3,(summarystat[MP5]))","v":2},{"$f":"_xlfn.AGGREGATE(12,3,(summarystat[MP6]))","v":3},{"$f":"_xlfn.AGGREGATE(12,3,(summarystat[MP7]))","v":2},{"$f":"_xlfn.AGGREGATE(12,3,(summarystat[MP8]))","v":3},{"$f":"_xlfn.AGGREGATE(12,3,(summarystat[MP9]))","v":3},{"$f":"_xlfn.AGGREGATE(12,3,(summarystat[MP10]))","v":1},{"$f":"_xlfn.AGGREGATE(12,3,(summarystat[MP11]))","v":2},{"$f":"_xlfn.AGGREGATE(12,3,(summarystat[MP12]))","v":5},{"$f":"_xlfn.AGGREGATE(12,3,(summarystat[T1]))","v":2},{"$f":"_xlfn.AGGREGATE(12,3,(summarystat[T2]))","v":2},{"$f":"_xlfn.AGGREGATE(12,3,(summarystat[T3]))","v":2},{"$f":"_xlfn.AGGREGATE(12,3,(summarystat[T4]))","v":1},{"$f":"_xlfn.AGGREGATE(12,3,(summarystat[TECH1]))","v":3}]
["MODE","all",{"$f":"IFERROR(MODE(summarystat[S1]),0)","v":0},{"$f":"IFERROR(MODE(summarystat[S2]),0)","v":0},{"$f":"IFERROR(MODE(summarystat[S3]),0)","v":2},{"$f":"IFERROR(MODE(summarystat[S4]),0)","v":0},{"$f":"IFERROR(MODE(summarystat[S5]),0)","v":0},{"$f":"IFERROR(MODE(summarystat[S6]),0)","v":0},{"$f":"IFERROR(MODE(summarystat[S7]),0)","v":0},{"$f":"IFERROR(MODE(summarystat[I1]),0)","v":3},{"$f":"IFERROR(MODE(summarystat[I2]),0)","v":0},{"$f":"IFERROR(MODE(summarystat[I3]),0)","v":0},{"$f":"IFERROR(MODE(summarystat[D1]),0)","v":0},{"$f":"IFERROR(MODE(summarystat[D2]),0)","v":0},{"$f":"IFERROR(MODE(summarystat[D3]),0)","v":0},{"$f":"IFERROR(MODE(summarystat[C1]),0)","v":0},{"$f":"IFERROR(MODE(summarystat[C2]),0)","v":0},{"$f":"IFERROR(MODE(summarystat[C3]),0)","v":0},{"$f":"IFERROR(MODE(summarystat[C4]),0)","v":0},{"$f":"IFERROR(MODE(summarystat[C5]),0)","v":0},{"$f":"IFERROR(MODE(summarystat[C6]),0)","v":0},{"$f":"IFERROR(MODE(summarystat[C7]),0)","v":2},{"$f":"IFERROR(MODE(summarystat[C8]),0)","v":0},{"$f":"IFERROR(MODE(summarystat[C9]),0)","v":0},{"$f":"IFERROR(MODE(summarystat[C10]),0)","v":0},{"$f":"IFERROR(MODE(summarystat[C11]),0)","v":0},{"$f":"IFERROR(MODE(summarystat[C12]),0)","v":0},{"$f":"IFERROR(MODE(summarystat[C13]),0)","v":0},{"$f":"IFERROR(MODE(summarystat[C14]),0)","v":0},{"$f":"IFERROR(MODE(summarystat[C15]),0)","v":0},{"$f":"IFERROR(MODE(summarystat[L1]),0)","v":0},{"$f":"IFERROR(MODE(summarystat[L2]),0)","v":0},{"$f":"IFERROR(MODE(summarystat[L3]),0)","v":0},{"$f":"IFERROR(MODE(summarystat[R1]),0)","v":0},{"$f":"IFERROR(MODE(summarystat[R2]),0)","v":0},{"$f":"IFERROR(MODE(summarystat[R3]),0)","v":4},{"$f":"IFERROR(MODE(summarystat[R4]),0)","v":2},{"$f":"IFERROR(MODE(summarystat[R5]),0)","v":0},{"$f":"IFERROR(MODE(summarystat[R6]),0)","v":0},{"$f":"IFERROR(MODE(summarystat[R7]),0)","v":0},{"$f":"IFERROR(MODE(summarystat[RT1]),0)","v":0},{"$f":"IFERROR(MODE(summarystat[RT2]),0)","v":2},{"$f":"IFERROR(MODE(summarystat[RT3]),0)","v":0},{"$f":"IFERROR(MODE(summarystat[P1]),0)","v":4},{"$f":"IFERROR(MODE(summarystat[P2]),0)","v":3},{"$f":"IFERROR(MODE(summarystat[P3]),0)","v":0},{"$f":"IFERROR(MODE(summarystat[P4]),0)","v":0},{"$f":"IFERROR(MODE(summarystat[MP1]),0)","v":0},{"$f":"IFERROR(MODE(summarystat[MP2]),0)","v":0},{"$f":"IFERROR(MODE(summarystat[MP3]),0)","v":0},{"$f":"IFERROR(MODE(summarystat[MP4]),0)","v":0},{"$f":"IFERROR(MODE(summarystat[MP5]),0)","v":0},{"$f":"IFERROR(MODE(summarystat[MP6]),0)","v":0},{"$f":"IFERROR(MODE(summarystat[MP7]),0)","v":0},{"$f":"IFERROR(MODE(summarystat[MP8]),0)","v":0},{"$f":"IFERROR(MODE(summarystat[MP9]),0)","v":0},{"$f":"IFERROR(MODE(summarystat[MP10]),0)","v":0},{"$f":"IFERROR(MODE(summarystat[MP11]),0)","v":0},{"$f":"IFERROR(MODE(summarystat[MP12]),0)","v":0},{"$f":"IFERROR(MODE(summarystat[T1]),0)","v":2},{"$f":"IFERROR(MODE(summarystat[T2]),0)","v":0},{"$f":"IFERROR(MODE(summarystat[T3]),0)","v":0},{"$f":"IFERROR(MODE(summarystat[T4]),0)","v":0},{"$f":"IFERROR(MODE(summarystat[TECH1]),0)","v":3}]
["HIGH","visible",{"$f":"_xlfn.AGGREGATE(4,3,(summarystat[S1]))","v":2},{"$f":"_xlfn.AGGREGATE(4,3,(summarystat[S2]))","v":4},{"$f":"_xlfn.AGGREGATE(4,3,(summarystat[S3]))","v":2},{"$f":"_xlfn.AGGREGATE(4,3,(summarystat[S4]))","v":3},{"$f":"_xlfn.AGGREGATE(4,3,(summarystat[S5]))","v":4},{"$f":"_xlfn.AGGREGATE(4,3,(summarystat[S6]))","v":2},{"$f":"_xlfn.AGGREGATE(4,3,(summarystat[S7]))","v":2},{"$f":"_xlfn.AGGREGATE(4,3,(summarystat[I1]))","v":3},{"$f":"_xlfn.AGGREGATE(4,3,(summarystat[I2]))","v":2},{"$f":"_xlfn.AGGREGATE(4,3,(summarystat[I3]))","v":3},{"$f":"_xlfn.AGGREGATE(4,3,(summarystat[D1]))","v":2},{"$f":"_xlfn.AGGREGATE(4,3,(summarystat[D2]))","v":3},{"$f":"_xlfn.AGGREGATE(4,3,(summarystat[D3]))","v":2},{"$f":"_xlfn.AGGREGATE(4,3,(summarystat[C1]))","v":2},{"$f":"_xlfn.AGGREGATE(4,3,(summarystat[C2]))","v":3},{"$f":"_xlfn.AGGREGATE(4,3,(summarystat[C3]))","v":4},{"$f":"_xlfn.AGGREGATE(4,3,(summarystat[C4]))","v":2},{"$f":"_xlfn.AGGREGATE(4,3,(summarystat[C5]))","v":2},{"$f":"_xlfn.AGGREGATE(4,3,(summarystat[C6]))","v":2},{"$f":"_xlfn.AGGREGATE(4,3,(summarystat[C7]))","v":2},{"$f":"_xlfn.AGGREGATE(4,3,(summarystat[C8]))","v":1},{"$f":"_xlfn.AGGREGATE(4,3,(summarystat[C9]))","v":2},{"$f":"_xlfn.AGGREGATE(4,3,(summarystat[C10]))","v":2},{"$f":"_xlfn.AGGREGATE(4,3,(summarystat[C11]))","v":3},{"$f":"_xlfn.AGGREGATE(4,3,(summarystat[C12]))","v":2},{"$f":"_xlfn.AGGREGATE(4,3,(summarystat[C13]))","v":3},{"$f":"_xlfn.AGGREGATE(4,3,(summarystat[C14]))","v":1},{"$f":"_xlfn.AGGREGATE(4,3,(summarystat[C15]))","v":1},{"$f":"_xlfn.AGGREGATE(4,3,(summarystat[L1]))","v":2},{"$f":"_xlfn.AGGREGATE(4,3,(summarystat[L2]))","v":2},{"$f":"_xlfn.AGGREGATE(4,3,(summarystat[L3]))","v":3},{"$f":"_xlfn.AGGREGATE(4,3,(summarystat[R1]))","v":2},{"$f":"_xlfn.AGGREGATE(4,3,(summarystat[R2]))","v":4},{"$f":"_xlfn.AGGREGATE(4,3,(summarystat[R3]))","v":4},{"$f":"_xlfn.AGGREGATE(4,3,(summarystat[R4]))","v":2},{"$f":"_xlfn.AGGREGATE(4,3,(summarystat[R5]))","v":5},{"$f":"_xlfn.AGGREGATE(4,3,(summarystat[R6]))","v":4},{"$f":"_xlfn.AGGREGATE(4,3,(summarystat[R7]))","v":3},{"$f":"_xlfn.AGGREGATE(4,3,(summarystat[RT1]))","v":4},{"$f":"_xlfn.AGGREGATE(4,3,(summarystat[RT2]))","v":2},{"$f":"_xlfn.AGGREGATE(4,3,(summarystat[RT3]))","v":2},{"$f":"_xlfn.AGGREGATE(4,3,(summarystat[P1]))","v":4},{"$f":"_xlfn.AGGREGATE(4,3,(summarystat[P2]))","v":3},{"$f":"_xlfn.AGGREGATE(4,3,(summarystat[P3]))","v":2},{"$f":"_xlfn.AGGREGATE(4,3,(summarystat[P4]))","v":1},{"$f":"_xlfn.AGGREGATE(4,3,(summarystat[MP1]))","v":3},{"$f":"_xlfn.AGGREGATE(4,3,(summarystat[MP2]))","v":4},{"$f":"_xlfn.AGGREGATE(4,3,(summarystat[MP3]))","v":3},{"$f":"_xlfn.AGGREGATE(4,3,(summarystat[MP4]))","v":1},{"$f":"_xlfn.AGGREGATE(4,3,(summarystat[MP5]))","v":2},{"$f":"_xlfn.AGGREGATE(4,3,(summarystat[MP6]))","v":3},{"$f":"_xlfn.AGGREGATE(4,3,(summarystat[MP7]))","v":2},{"$f":"_xlfn.AGGREGATE(4,3,(summarystat[MP8]))","v":3},{"$f":"_xlfn.AGGREGATE(4,3,(summarystat[MP9]))","v":3},{"$f":"_xlfn.AGGREGATE(4,3,(summarystat[MP10]))","v":1},{"$f":"_xlfn.AGGREGATE(4,3,(summarystat[MP11]))","v":2},{"$f":"_xlfn.AGGREGATE(4,3,(summarystat[MP12]))","v":5},{"$f":"_xlfn.AGGREGATE(4,3,(summarystat[T1]))","v":2},{"$f":"_xlfn.AGGREGATE(4,3,(summarystat[T2]))","v":2},{"$f":"_xlfn.AGGREGATE(4,3,(summarystat[T3]))","v":2},{"$f":"_xlfn.AGGREGATE(4,3,(summarystat[T4]))","v":1},{"$f":"_xlfn.AGGREGATE(4,3,(summarystat[TECH1]))","v":3}]
["LOW","visible",{"$f":"_xlfn.AGGREGATE(5,3,(summarystat[S1]))","v":2},{"$f":"_xlfn.AGGREGATE(5,3,(summarystat[S2]))","v":4},{"$f":"_xlfn.AGGREGATE(5,3,(summarystat[S3]))","v":2},{"$f":"_xlfn.AGGREGATE(5,3,(summarystat[S4]))","v":3},{"$f":"_xlfn.AGGREGATE(5,3,(summarystat[S5]))","v":4},{"$f":"_xlfn.AGGREGATE(5,3,(summarystat[S6]))","v":2},{"$f":"_xlfn.AGGREGATE(5,3,(summarystat[S7]))","v":2},{"$f":"_xlfn.AGGREGATE(5,3,(summarystat[I1]))","v":3},{"$f":"_xlfn.AGGREGATE(5,3,(summarystat[I2]))","v":2},{"$f":"_xlfn.AGGREGATE(5,3,(summarystat[I3]))","v":3},{"$f":"_xlfn.AGGREGATE(5,3,(summarystat[D1]))","v":2},{"$f":"_xlfn.AGGREGATE(5,3,(summarystat[D2]))","v":3},{"$f":"_xlfn.AGGREGATE(5,3,(summarystat[D3]))","v":2},{"$f":"_xlfn.AGGREGATE(5,3,(summarystat[C1]))","v":2},{"$f":"_xlfn.AGGREGATE(5,3,(summarystat[C2]))","v":3},{"$f":"_xlfn.AGGREGATE(5,3,(summarystat[C3]))","v":4},{"$f":"_xlfn.AGGREGATE(5,3,(summarystat[C4]))","v":2},{"$f":"_xlfn.AGGREGATE(5,3,(summarystat[C5]))","v":2},{"$f":"_xlfn.AGGREGATE(5,3,(summarystat[C6]))","v":2},{"$f":"_xlfn.AGGREGATE(5,3,(summarystat[C7]))","v":2},{"$f":"_xlfn.AGGREGATE(5,3,(summarystat[C8]))","v":1},{"$f":"_xlfn.AGGREGATE(5,3,(summarystat[C9]))","v":2},{"$f":"_xlfn.AGGREGATE(5,3,(summarystat[C10]))","v":2},{"$f":"_xlfn.AGGREGATE(5,3,(summarystat[C11]))","v":3},{"$f":"_xlfn.AGGREGATE(5,3,(summarystat[C12]))","v":2},{"$f":"_xlfn.AGGREGATE(5,3,(summarystat[C13]))","v":3},{"$f":"_xlfn.AGGREGATE(5,3,(summarystat[C14]))","v":1},{"$f":"_xlfn.AGGREGATE(5,3,(summarystat[C15]))","v":1},{"$f":"_xlfn.AGGREGATE(5,3,(summarystat[L1]))","v":2},{"$f":"_xlfn.AGGREGATE(5,3,(summarystat[L2]))","v":2},{"$f":"_xlfn.AGGREGATE(5,3,(summarystat[L3]))","v":3},{"$f":"_xlfn.AGGREGATE(5,3,(summarystat[R1]))","v":2},{"$f":"_xlfn.AGGREGATE(5,3,(summarystat[R2]))","v":4},{"$f":"_xlfn.AGGREGATE(5,3,(summarystat[R3]))","v":4},{"$f":"_xlfn.AGGREGATE(5,3,(summarystat[R4]))","v":2},{"$f":"_xlfn.AGGREGATE(5,3,(summarystat[R5]))","v":5},{"$f":"_xlfn.AGGREGATE(5,3,(summarystat[R6]))","v":4},{"$f":"_xlfn.AGGREGATE(5,3,(summarystat[R7]))","v":3},{"$f":"_xlfn.AGGREGATE(5,3,(summarystat[RT1]))","v":4},{"$f":"_xlfn.AGGREGATE(5,3,(summarystat[RT2]))","v":2},{"$f":"_xlfn.AGGREGATE(5,3,(summarystat[RT3]))","v":2},{"$f":"_xlfn.AGGREGATE(5,3,(summarystat[P1]))","v":4},{"$f":"_xlfn.AGGREGATE(5,3,(summarystat[P2]))","v":3},{"$f":"_xlfn.AGGREGATE(5,3,(summarystat[P3]))","v":2},{"$f":"_xlfn.AGGREGATE(5,3,(summarystat[P4]))","v":1},{"$f":"_xlfn.AGGREGATE(5,3,(summarystat[MP1]))","v":3},{"$f":"_xlfn.AGGREGATE(5,3,(summarystat[MP2]))","v":4},{"$f":"_xlfn.AGGREGATE(5,3,(summarystat[MP3]))","v":3},{"$f":"_xlfn.AGGREGATE(5,3,(summarystat[MP4]))","v":1},{"$f":"_xlfn.AGGREGATE(5,3,(summarystat[MP5]))","v":2},{"$f":"_xlfn.AGGREGATE(5,3,(summarystat[MP6]))","v":3},{"$f":"_xlfn.AGGREGATE(5,3,(summarystat[MP7]))","v":2},{"$f":"_xlfn.AGGREGATE(5,3,(summarystat[MP8]))","v":3},{"$f":"_xlfn.AGGREGATE(5,3,(summarystat[MP9]))","v":3},{"$f":"_xlfn.AGGREGATE(5,3,(summarystat[MP10]))","v":1},{"$f":"_xlfn.AGGREGATE(5,3,(summarystat[MP11]))","v":2},{"$f":"_xlfn.AGGREGATE(5,3,(summarystat[MP12]))","v":5},{"$f":"_xlfn.AGGREGATE(5,3,(summarystat[T1]))","v":2},{"$f":"_xlfn.AGGREGATE(5,3,(summarystat[T2]))","v":2},{"$f":"_xlfn.AGGREGATE(5,3,(summarystat[T3]))","v":2},{"$f":"_xlfn.AGGREGATE(5,3,(summarystat[T4]))","v":1},{"$f":"_xlfn.AGGREGATE(5,3,(summarystat[TECH1]))","v":3}]
["ST ERROR","all",{"$f":"STDEV(summarystat[S1])/SQRT(COUNT(summarystat[S1]))","v":1},{"$f":"STDEV(summarystat[S2])/SQRT(COUNT(summarystat[S2]))","v":0.5},{"$f":"STDEV(summarystat[S3])/SQRT(COUNT(summarystat[S3]))","v":0},{"$f":"STDEV(summarystat[S4])/SQRT(COUNT(summarystat[S4]))","v":0.5},{"$f":"STDEV(summarystat[S5])/SQRT(COUNT(summarystat[S5]))","v":0.5},{"$f":"STDEV(summarystat[S6])/SQRT(COUNT(summarystat[S6]))","v":1},{"$f":"STDEV(summarystat[S7])/SQRT(COUNT(summarystat[S7]))","v":0.5},{"$f":"STDEV(summarystat[I1])/SQRT(COUNT(summarystat[I1]))","v":0},{"$f":"STDEV(summarystat[I2])/SQRT(COUNT(summarystat[I2]))","v":1},{"$f":"STDEV(summarystat[I3])/SQRT(COUNT(summarystat[I3]))","v":0.5},{"$f":"STDEV(summarystat[D1])/SQRT(COUNT(summarystat[D1]))","v":1},{"$f":"STDEV(summarystat[D2])/SQRT(COUNT(summarystat[D2]))","v":0.5},{"$f":"STDEV(summarystat[D3])/SQRT(COUNT(summarystat[D3]))","v":0.5},{"$f":"STDEV(summarystat[C1])/SQRT(COUNT(summarystat[C1]))","v":1},{"$f":"STDEV(summarystat[C2])/SQRT(COUNT(summarystat[C2]))","v":0.5},{"$f":"STDEV(summarystat[C3])/SQRT(COUNT(summarystat[C3]))","v":0.5},{"$f":"STDEV(summarystat[C4])/SQRT(COUNT(summarystat[C4]))","v":1},{"$f":"STDEV(summarystat[C5])/SQRT(COUNT(summarystat[C5]))","v":0.5},{"$f":"STDEV(summarystat[C6])/SQRT(COUNT(summarystat[C6]))","v":0.5},{"$f":"STDEV(summarystat[C7])/SQRT(COUNT(summarystat[C7]))","v":0},{"$f":"STDEV(summarystat[C8])/SQRT(COUNT(summarystat[C8]))","v":0.5},{"$f":"STDEV(summarystat[C9])/SQRT(COUNT(summarystat[C9]))","v":0.5},{"$f":"STDEV(summarystat[C10])/SQRT(COUNT(summarystat[C10]))","v":1},{"$f":"STDEV(summarystat[C11])/SQRT(COUNT(summarystat[C11]))","v":0.5},{"$f":"STDEV(summarystat[C12])/SQRT(COUNT(summarystat[C12]))","v":0.5},{"$f":"STDEV(summarystat[C13])/SQRT(COUNT(summarystat[C13]))","v":0.5},{"$f":"STDEV(summarystat[C14])/SQRT(COUNT(summarystat[C14]))","v":1},{"$f":"STDEV(summarystat[C15])/SQRT(COUNT(summarystat[C15]))","v":1},{"$f":"STDEV(summarystat[L1])/SQRT(COUNT(summarystat[L1]))","v":1},{"$f":"STDEV(summarystat[L2])/SQRT(COUNT(summarystat[L2]))","v":1},{"$f":"STDEV(summarystat[L3])/SQRT(COUNT(summarystat[L3]))","v":1},{"$f":"STDEV(summarystat[R1])/SQRT(COUNT(summarystat[R1]))","v":0.5},{"$f":"STDEV(summarystat[R2])/SQRT(COUNT(summarystat[R2]))","v":1},{"$f":"STDEV(summarystat[R3])/SQRT(COUNT(summarystat[R3]))","v":0},{"$f":"STDEV(summarystat[R4])/SQRT(COUNT(summarystat[R4]))","v":0},{"$f":"STDEV(summarystat[R5])/SQRT(COUNT(summarystat[R5]))","v":0.5},{"$f":"STDEV(summarystat[R6])/SQRT(COUNT(summarystat[R6]))","v":0.5},{"$f":"STDEV(summarystat[R7])/SQRT(COUNT(summarystat[R7]))","v":0.5},{"$f":"STDEV(summarystat[RT1])/SQRT(COUNT(summarystat[RT1]))","v":0.5},{"$f":"STDEV(summarystat[RT2])/SQRT(COUNT(summarystat[RT2]))","v":0},{"$f":"STDEV(summarystat[RT3])/SQRT(COUNT(summarystat[RT3]))","v":1},{"$f":"STDEV(summarystat[P1])/SQRT(COUNT(summarystat[P1]))","v":0},{"$f":"STDEV(summarystat[P2])/SQRT(COUNT(summarystat[P2]))","v":0},{"$f":"STDEV(summarystat[P3])/SQRT(COUNT(summarystat[P3]))","v":0.5},{"$f":"STDEV(summarystat[P4])/SQRT(COUNT(summarystat[P4]))","v":0.5},{"$f":"STDEV(summarystat[MP1])/SQRT(COUNT(summarystat[MP1]))","v":0.5},{"$f":"STDEV(summarystat[MP2])/SQRT(COUNT(summarystat[MP2]))","v":1},{"$f":"STDEV(summarystat[MP3])/SQRT(COUNT(summarystat[MP3]))","v":1},{"$f":"STDEV(summarystat[MP4])/SQRT(COUNT(summarystat[MP4]))","v":2},{"$f":"STDEV(summarystat[MP5])/SQRT(COUNT(summarystat[MP5]))","v":0.5},{"$f":"STDEV(summarystat[MP6])/SQRT(COUNT(summarystat[MP6]))","v":0.5},{"$f":"STDEV(summarystat[MP7])/SQRT(COUNT(summarystat[MP7]))","v":1},{"$f":"STDEV(summarystat[MP8])/SQRT(COUNT(summarystat[MP8]))","v":0.5},{"$f":"STDEV(summarystat[MP9])/SQRT(COUNT(summarystat[MP9]))","v":0.5},{"$f":"STDEV(summarystat[MP10])/SQRT(COUNT(summarystat[MP10]))","v":1},{"$f":"STDEV(summarystat[MP11])/SQRT(COUNT(summarystat[MP11]))","v":1},{"$f":"STDEV(summarystat[MP12])/SQRT(COUNT(summarystat[MP12]))","v":1.4999999999999998},{"$f":"STDEV(summarystat[T1])/SQRT(COUNT(summarystat[T1]))","v":0},{"$f":"STDEV(summarystat[T2])/SQRT(COUNT(summarystat[T2]))","v":1},{"$f":"STDEV(summarystat[T3])/SQRT(COUNT(summarystat[T3]))","v":0.5},{"$f":"STDEV(summarystat[T4])/SQRT(COUNT(summarystat[T4]))","v":1.4999999999999998},{"$f":"STDEV(summarystat[TECH1])/SQRT(COUNT(summarystat[TECH1]))","v":0}]
["ST DEV","visible, error as nil",{"$f":"IFERROR(_xlfn.AGGREGATE(7,3,(summarystat[S1])),0)","v":0},{"$f":"IFERROR(_xlfn.AGGREGATE(7,3,(summarystat[S2])),0)","v":0},{"$f":"IFERROR(_xlfn.AGGREGATE(7,3,(summarystat[S3])),0)","v":0},{"$f":"IFERROR(_xlfn.AGGREGATE(7,3,(summarystat[S4])),0)","v":0},{"$f":"IFERROR(_xlfn.AGGREGATE(7,3,(summarystat[S5])),0)","v":0},{"$f":"IFERROR(_xlfn.AGGREGATE(7,3,(summarystat[S6])),0)","v":0},{"$f":"IFERROR(_xlfn.AGGREGATE(7,3,(summarystat[S7])),0)","v":0},{"$f":"IFERROR(_xlfn.AGGREGATE(7,3,(summarystat[I1])),0)","v":0},{"$f":"IFERROR(_xlfn.AGGREGATE(7,3,(summarystat[I2])),0)","v":0},{"$f":"IFERROR(_xlfn.AGGREGATE(7,3,(summarystat[I3])),0)","v":0},{"$f":"IFERROR(_xlfn.AGGREGATE(7,3,(summarystat[D1])),0)","v":0},{"$f":"IFERROR(_xlfn.AGGREGATE(7,3,(summarystat[D2])),0)","v":0},{"$f":"IFERROR(_xlfn.AGGREGATE(7,3,(summarystat[D3])),0)","v":0},{"$f":"IFERROR(_xlfn.AGGREGATE(7,3,(summarystat[C1])),0)","v":0},{"$f":"IFERROR(_xlfn.AGGREGATE(7,3,(summarystat[C2])),0)","v":0},{"$f":"IFERROR(_xlfn.AGGREGATE(7,3,(summarystat[C3])),0)","v":0},{"$f":"IFERROR(_xlfn.AGGREGATE(7,3,(summarystat[C4])),0)","v":0},{"$f":"IFERROR(_xlfn.AGGREGATE(7,3,(summarystat[C5])),0)","v":0},{"$f":"IFERROR(_xlfn.AGGREGATE(7,3,(summarystat[C6])),0)","v":0},{"$f":"IFERROR(_xlfn.AGGREGATE(7,3,(summarystat[C7])),0)","v":0},{"$f":"IFERROR(_xlfn.AGGREGATE(7,3,(summarystat[C8])),0)","v":0},{"$f":"IFERROR(_xlfn.AGGREGATE(7,3,(summarystat[C9])),0)","v":0},{"$f":"IFERROR(_xlfn.AGGREGATE(7,3,(summarystat[C10])),0)","v":0},{"$f":"IFERROR(_xlfn.AGGREGATE(7,3,(summarystat[C11])),0)","v":0},{"$f":"IFERROR(_xlfn.AGGREGATE(7,3,(summarystat[C12])),0)","v":0},{"$f":"IFERROR(_xlfn.AGGREGATE(7,3,(summarystat[C13])),0)","v":0},{"$f":"IFERROR(_xlfn.AGGREGATE(7,3,(summarystat[C14])),0)","v":0},{"$f":"IFERROR(_xlfn.AGGREGATE(7,3,(summarystat[C15])),0)","v":0},{"$f":"IFERROR(_xlfn.AGGREGATE(7,3,(summarystat[L1])),0)","v":0},{"$f":"IFERROR(_xlfn.AGGREGATE(7,3,(summarystat[L2])),0)","v":0},{"$f":"IFERROR(_xlfn.AGGREGATE(7,3,(summarystat[L3])),0)","v":0},{"$f":"IFERROR(_xlfn.AGGREGATE(7,3,(summarystat[R1])),0)","v":0},{"$f":"IFERROR(_xlfn.AGGREGATE(7,3,(summarystat[R2])),0)","v":0},{"$f":"IFERROR(_xlfn.AGGREGATE(7,3,(summarystat[R3])),0)","v":0},{"$f":"IFERROR(_xlfn.AGGREGATE(7,3,(summarystat[R4])),0)","v":0},{"$f":"IFERROR(_xlfn.AGGREGATE(7,3,(summarystat[R5])),0)","v":0},{"$f":"IFERROR(_xlfn.AGGREGATE(7,3,(summarystat[R6])),0)","v":0},{"$f":"IFERROR(_xlfn.AGGREGATE(7,3,(summarystat[R7])),0)","v":0},{"$f":"IFERROR(_xlfn.AGGREGATE(7,3,(summarystat[RT1])),0)","v":0},{"$f":"IFERROR(_xlfn.AGGREGATE(7,3,(summarystat[RT2])),0)","v":0},{"$f":"IFERROR(_xlfn.AGGREGATE(7,3,(summarystat[RT3])),0)","v":0},{"$f":"IFERROR(_xlfn.AGGREGATE(7,3,(summarystat[P1])),0)","v":0},{"$f":"IFERROR(_xlfn.AGGREGATE(7,3,(summarystat[P2])),0)","v":0},{"$f":"IFERROR(_xlfn.AGGREGATE(7,3,(summarystat[P3])),0)","v":0},{"$f":"IFERROR(_xlfn.AGGREGATE(7,3,(summarystat[P4])),0)","v":0},{"$f":"IFERROR(_xlfn.AGGREGATE(7,3,(summarystat[MP1])),0)","v":0},{"$f":"IFERROR(_xlfn.AGGREGATE(7,3,(summarystat[MP2])),0)","v":0},{"$f":"IFERROR(_xlfn.AGGREGATE(7,3,(summarystat[MP3])),0)","v":0},{"$f":"IFERROR(_xlfn.AGGREGATE(7,3,(summarystat[MP4])),0)","v":0},{"$f":"IFERROR(_xlfn.AGGREGATE(7,3,(summarystat[MP5])),0)","v":0},{"$f":"IFERROR(_xlfn.AGGREGATE(7,3,(summarystat[MP6])),0)","v":0},{"$f":"IFERROR(_xlfn.AGGREGATE(7,3,(summarystat[MP7])),0)","v":0},{"$f":"IFERROR(_xlfn.AGGREGATE(7,3,(summarystat[MP8])),0)","v":0},{"$f":"IFERROR(_xlfn.AGGREGATE(7,3,(summarystat[MP9])),0)","v":0},{"$f":"IFERROR(_xlfn.AGGREGATE(7,3,(summarystat[MP10])),0)","v":0},{"$f":"IFERROR(_xlfn.AGGREGATE(7,3,(summarystat[MP11])),0)","v":0},{"$f":"IFERROR(_xlfn.AGGREGATE(7,3,(summarystat[MP12])),0)","v":0},{"$f":"IFERROR(_xlfn.AGGREGATE(7,3,(summarystat[T1])),0)","v":0},{"$f":"IFERROR(_xlfn.AGGREGATE(7,3,(summarystat[T2])),0)","v":0},{"$f":"IFERROR(_xlfn.AGGREGATE(7,3,(summarystat[T3])),0)","v":0},{"$f":"IFERROR(_xlfn.AGGREGATE(7,3,(summarystat[T4])),0)","v":0},{"$f":"IFERROR(_xlfn.AGGREGATE(7,3,(summarystat[TECH1])),0)","v":0}]
["COUNT","valid visible",{"$f":"_xlfn.AGGREGATE(2,3,(summarystat[S1]))","v":1},{"$f":"_xlfn.AGGREGATE(2,3,(summarystat[S2]))","v":1},{"$f":"_xlfn.AGGREGATE(2,3,(summarystat[S3]))","v":1},{"$f":"_xlfn.AGGREGATE(2,3,(summarystat[S4]))","v":1},{"$f":"_xlfn.AGGREGATE(2,3,(summarystat[S5]))","v":1},{"$f":"_xlfn.AGGREGATE(2,3,(summarystat[S6]))","v":1},{"$f":"_xlfn.AGGREGATE(2,3,(summarystat[S7]))","v":1},{"$f":"_xlfn.AGGREGATE(2,3,(summarystat[I1]))","v":1},{"$f":"_xlfn.AGGREGATE(2,3,(summarystat[I2]))","v":1},{"$f":"_xlfn.AGGREGATE(2,3,(summarystat[I3]))","v":1},{"$f":"_xlfn.AGGREGATE(2,3,(summarystat[D1]))","v":1},{"$f":"_xlfn.AGGREGATE(2,3,(summarystat[D2]))","v":1},{"$f":"_xlfn.AGGREGATE(2,3,(summarystat[D3]))","v":1},{"$f":"_xlfn.AGGREGATE(2,3,(summarystat[C1]))","v":1},{"$f":"_xlfn.AGGREGATE(2,3,(summarystat[C2]))","v":1},{"$f":"_xlfn.AGGREGATE(2,3,(summarystat[C3]))","v":1},{"$f":"_xlfn.AGGREGATE(2,3,(summarystat[C4]))","v":1},{"$f":"_xlfn.AGGREGATE(2,3,(summarystat[C5]))","v":1},{"$f":"_xlfn.AGGREGATE(2,3,(summarystat[C6]))","v":1},{"$f":"_xlfn.AGGREGATE(2,3,(summarystat[C7]))","v":1},{"$f":"_xlfn.AGGREGATE(2,3,(summarystat[C8]))","v":1},{"$f":"_xlfn.AGGREGATE(2,3,(summarystat[C9]))","v":1},{"$f":"_xlfn.AGGREGATE(2,3,(summarystat[C10]))","v":1},{"$f":"_xlfn.AGGREGATE(2,3,(summarystat[C11]))","v":1},{"$f":"_xlfn.AGGREGATE(2,3,(summarystat[C12]))","v":1},{"$f":"_xlfn.AGGREGATE(2,3,(summarystat[C13]))","v":1},{"$f":"_xlfn.AGGREGATE(2,3,(summarystat[C14]))","v":1},{"$f":"_xlfn.AGGREGATE(2,3,(summarystat[C15]))","v":1},{"$f":"_xlfn.AGGREGATE(2,3,(summarystat[L1]))","v":1},{"$f":"_xlfn.AGGREGATE(2,3,(summarystat[L2]))","v":1},{"$f":"_xlfn.AGGREGATE(2,3,(summarystat[L3]))","v":1},{"$f":"_xlfn.AGGREGATE(2,3,(summarystat[R1]))","v":1},{"$f":"_xlfn.AGGREGATE(2,3,(summarystat[R2]))","v":1},{"$f":"_xlfn.AGGREGATE(2,3,(summarystat[R3]))","v":1},{"$f":"_xlfn.AGGREGATE(2,3,(summarystat[R4]))","v":1},{"$f":"_xlfn.AGGREGATE(2,3,(summarystat[R5]))","v":1},{"$f":"_xlfn.AGGREGATE(2,3,(summarystat[R6]))","v":1},{"$f":"_xlfn.AGGREGATE(2,3,(summarystat[R7]))","v":1},{"$f":"_xlfn.AGGREGATE(2,3,(summarystat[RT1]))","v":1},{"$f":"_xlfn.AGGREGATE(2,3,(summarystat[RT2]))","v":1},{"$f":"_xlfn.AGGREGATE(2,3,(summarystat[RT3]))","v":1},{"$f":"_xlfn.AGGREGATE(2,3,(summarystat[P1]))","v":1},{"$f":"_xlfn.AGGREGATE(2,3,(summarystat[P2]))","v":1},{"$f":"_xlfn.AGGREGATE(2,3,(summarystat[P3]))","v":1},{"$f":"_xlfn.AGGREGATE(2,3,(summarystat[P4]))","v":1},{"$f":"_xlfn.AGGREGATE(2,3,(summarystat[MP1]))","v":1},{"$f":"_xlfn.AGGREGATE(2,3,(summarystat[MP2]))","v":1},{"$f":"_xlfn.AGGREGATE(2,3,(summarystat[MP3]))","v":1},{"$f":"_xlfn.AGGREGATE(2,3,(summarystat[MP4]))","v":1},{"$f":"_xlfn.AGGREGATE(2,3,(summarystat[MP5]))","v":1},{"$f":"_xlfn.AGGREGATE(2,3,(summarystat[MP6]))","v":1},{"$f":"_xlfn.AGGREGATE(2,3,(summarystat[MP7]))","v":1},{"$f":"_xlfn.AGGREGATE(2,3,(summarystat[MP8]))","v":1},{"$f":"_xlfn.AGGREGATE(2,3,(summarystat[MP9]))","v":1},{"$f":"_xlfn.AGGREGATE(2,3,(summarystat[MP10]))","v":1},{"$f":"_xlfn.AGGREGATE(2,3,(summarystat[MP11]))","v":1},{"$f":"_xlfn.AGGREGATE(2,3,(summarystat[MP12]))","v":1},{"$f":"_xlfn.AGGREGATE(2,3,(summarystat[T1]))","v":1},{"$f":"_xlfn.AGGREGATE(2,3,(summarystat[T2]))","v":1},{"$f":"_xlfn.AGGREGATE(2,3,(summarystat[T3]))","v":1},{"$f":"_xlfn.AGGREGATE(2,3,(summarystat[T4]))","v":1},{"$f":"_xlfn.AGGREGATE(2,3,(summarystat[TECH1]))","v":1}]
["AVERAGEB1","Business1",{"$f":"AVERAGEIFS(summarystat[S1],summarystat[Business],descriptivestats[[#This Row],[Application]],summarystat[S1],\">=0\")","v":2},{"$f":"AVERAGEIFS(summarystat[S2],summarystat[Business],descriptivestats[[#This Row],[Application]],summarystat[S2],\">=0\")","v":4},{"$f":"AVERAGEIFS(summarystat[S3],summarystat[Business],descriptivestats[[#This Row],[Application]],summarystat[S3],\">=0\")","v":2},{"$f":"AVERAGEIFS(summarystat[S4],summarystat[Business],descriptivestats[[#This Row],[Application]],summarystat[S4],\">=0\")","v":3},{"$f":"AVERAGEIFS(summarystat[S5],summarystat[Business],descriptivestats[[#This Row],[Application]],summarystat[S5],\">=0\")","v":4},{"$f":"AVERAGEIFS(summarystat[S6],summarystat[Business],descriptivestats[[#This Row],[Application]],summarystat[S6],\">=0\")","v":2},{"$f":"AVERAGEIFS(summarystat[S7],summarystat[Business],descriptivestats[[#This Row],[Application]],summarystat[S7],\">=0\")","v":2},{"$f":"AVERAGEIFS(summarystat[I1],summarystat[Business],descriptivestats[[#This Row],[Application]],summarystat[I1],\">=0\")","v":3},{"$f":"AVERAGEIFS(summarystat[I2],summarystat[Business],descriptivestats[[#This Row],[Application]],summarystat[I2],\">=0\")","v":2},{"$f":"AVERAGEIFS(summarystat[I3],summarystat[Business],descriptivestats[[#This Row],[Application]],summarystat[I3],\">=0\")","v":3},{"$f":"AVERAGEIFS(summarystat[D1],summarystat[Business],descriptivestats[[#This Row],[Application]],summarystat[D1],\">=0\")","v":2},{"$f":"AVERAGEIFS(summarystat[D2],summarystat[Business],descriptivestats[[#This Row],[Application]],summarystat[D2],\">=0\")","v":3},{"$f":"AVERAGEIFS(summarystat[D3],summarystat[Business],descriptivestats[[#This Row],[Application]],summarystat[D3],\">=0\")","v":2},{"$f":"AVERAGEIFS(summarystat[C1],summarystat[Business],descriptivestats[[#This Row],[Application]],summarystat[C1],\">=0\")","v":2},{"$f":"AVERAGEIFS(summarystat[C2],summarystat[Business],descriptivestats[[#This Row],[Application]],summarystat[C2],\">=0\")","v":3},{"$f":"AVERAGEIFS(summarystat[C3],summarystat[Business],descriptivestats[[#This Row],[Application]],summarystat[C3],\">=0\")","v":4},{"$f":"AVERAGEIFS(summarystat[C4],summarystat[Business],descriptivestats[[#This Row],[Application]],summarystat[C4],\">=0\")","v":2},{"$f":"AVERAGEIFS(summarystat[C5],summarystat[Business],descriptivestats[[#This Row],[Application]],summarystat[C5],\">=0\")","v":2},{"$f":"AVERAGEIFS(summarystat[C6],summarystat[Business],descriptivestats[[#This Row],[Application]],summarystat[C6],\">=0\")","v":2},{"$f":"AVERAGEIFS(summarystat[C7],summarystat[Business],descriptivestats[[#This Row],[Application]],summarystat[C7],\">=0\")","v":2},{"$f":"AVERAGEIFS(summarystat[C8],summarystat[Business],descriptivestats[[#This Row],[Application]],summarystat[C8],\">=0\")","v":1},{"$f":"AVERAGEIFS(summarystat[C9],summarystat[Business],descriptivestats[[#This Row],[Application]],summarystat[C9],\">=0\")","v":2},{"$f":"AVERAGEIFS(summarystat[C10],summarystat[Business],descriptivestats[[#This Row],[Application]],summarystat[C10],\">=0\")","v":2},{"$f":"AVERAGEIFS(summarystat[C11],summarystat[Business],descriptivestats[[#This Row],[Application]],summarystat[C11],\">=0\")","v":3},{"$f":"AVERAGEIFS(summarystat[C12],summarystat[Business],descriptivestats[[#This Row],[Application]],summarystat[C12],\">=0\")","v":2},{"$f":"AVERAGEIFS(summarystat[C13],summarystat[Business],descriptivestats[[#This Row],[Application]],summarystat[C13],\">=0\")","v":3},{"$f":"AVERAGEIFS(summarystat[C14],summarystat[Business],descriptivestats[[#This Row],[Application]],summarystat[C14],\">=0\")","v":1},{"$f":"AVERAGEIFS(summarystat[C15],summarystat[Business],descriptivestats[[#This Row],[Application]],summarystat[C15],\">=0\")","v":1},{"$f":"AVERAGEIFS(summarystat[L1],summarystat[Business],descriptivestats[[#This Row],[Application]],summarystat[L1],\">=0\")","v":2},{"$f":"AVERAGEIFS(summarystat[L2],summarystat[Business],descriptivestats[[#This Row],[Application]],summarystat[L2],\">=0\")","v":2},{"$f":"AVERAGEIFS(summarystat[L3],summarystat[Business],descriptivestats[[#This Row],[Application]],summarystat[L3],\">=0\")","v":3},{"$f":"AVERAGEIFS(summarystat[R1],summarystat[Business],descriptivestats[[#This Row],[Application]],summarystat[R1],\">=0\")","v":2},{"$f":"AVERAGEIFS(summarystat[R2],summarystat[Business],descriptivestats[[#This Row],[Application]],summarystat[R2],\">=0\")","v":4},{"$f":"AVERAGEIFS(summarystat[R3],summarystat[Business],descriptivestats[[#This Row],[Application]],summarystat[R3],\">=0\")","v":4},{"$f":"AVERAGEIFS(summarystat[R4],summarystat[Business],descriptivestats[[#This Row],[Application]],summarystat[R4],\">=0\")","v":2},{"$f":"AVERAGEIFS(summarystat[R5],summarystat[Business],descriptivestats[[#This Row],[Application]],summarystat[R5],\">=0\")","v":5},{"$f":"AVERAGEIFS(summarystat[R6],summarystat[Business],descriptivestats[[#This Row],[Application]],summarystat[R6],\">=0\")","v":4},{"$f":"AVERAGEIFS(summarystat[R7],summarystat[Business],descriptivestats[[#This Row],[Application]],summarystat[R7],\">=0\")","v":3},{"$f":"AVERAGEIFS(summarystat[RT1],summarystat[Business],descriptivestats[[#This Row],[Application]],summarystat[RT1],\">=0\")","v":4},{"$f":"AVERAGEIFS(summarystat[RT2],summarystat[Business],descriptivestats[[#This Row],[Application]],summarystat[RT2],\">=0\")","v":2},{"$f":"AVERAGEIFS(summarystat[RT3],summarystat[Business],descriptivestats[[#This Row],[Application]],summarystat[RT3],\">=0\")","v":2},{"$f":"AVERAGEIFS(summarystat[P1],summarystat[Business],descriptivestats[[#This Row],[Application]],summarystat[P1],\">=0\")","v":4},{"$f":"AVERAGEIFS(summarystat[P2],summarystat[Business],descriptivestats[[#This Row],[Application]],summarystat[P2],\">=0\")","v":3},{"$f":"AVERAGEIFS(summarystat[P3],summarystat[Business],descriptivestats[[#This Row],[Application]],summarystat[P3],\">=0\")","v":2},{"$f":"AVERAGEIFS(summarystat[P4],summarystat[Business],descriptivestats[[#This Row],[Application]],summarystat[P4],\">=0\")","v":1},{"$f":"AVERAGEIFS(summarystat[MP1],summarystat[Business],descriptivestats[[#This Row],[Application]],summarystat[MP1],\">=0\")","v":3},{"$f":"AVERAGEIFS(summarystat[MP2],summarystat[Business],descriptivestats[[#This Row],[Application]],summarystat[MP2],\">=0\")","v":4},{"$f":"AVERAGEIFS(summarystat[MP3],summarystat[Business],descriptivestats[[#This Row],[Application]],summarystat[MP3],\">=0\")","v":3},{"$f":"AVERAGEIFS(summarystat[MP4],summarystat[Business],descriptivestats[[#This Row],[Application]],summarystat[MP4],\">=0\")","v":1},{"$f":"AVERAGEIFS(summarystat[MP5],summarystat[Business],descriptivestats[[#This Row],[Application]],summarystat[MP5],\">=0\")","v":2},{"$f":"AVERAGEIFS(summarystat[MP6],summarystat[Business],descriptivestats[[#This Row],[Application]],summarystat[MP6],\">=0\")","v":3},{"$f":"AVERAGEIFS(summarystat[MP7],summarystat[Business],descriptivestats[[#This Row],[Application]],summarystat[MP7],\">=0\")","v":2},{"$f":"AVERAGEIFS(summarystat[MP8],summarystat[Business],descriptivestats[[#This Row],[Application]],summarystat[MP8],\">=0\")","v":3},{"$f":"AVERAGEIFS(summarystat[MP9],summarystat[Business],descriptivestats[[#This Row],[Application]],summarystat[MP9],\">=0\")","v":3},{"$f":"AVERAGEIFS(summarystat[MP10],summarystat[Business],descriptivestats[[#This Row],[Application]],summarystat[MP10],\">=0\")","v":1},{"$f":"AVERAGEIFS(summarystat[MP11],summarystat[Business],descriptivestats[[#This Row],[Application]],summarystat[MP11],\">=0\")","v":2},{"$f":"AVERAGEIFS(summarystat[MP12],summarystat[Business],descriptivestats[[#This Row],[Application]],summarystat[MP12],\">=0\")","v":5},{"$f":"AVERAGEIFS(summarystat[T1],summarystat[Business],descriptivestats[[#This Row],[Application]],summarystat[T1],\">=0\")","v":2},{"$f":"AVERAGEIFS(summarystat[T2],summarystat[Business],descriptivestats[[#This Row],[Application]],summarystat[T2],\">=0\")","v":2},{"$f":"AVERAGEIFS(summarystat[T3],summarystat[Business],descriptivestats[[#This Row],[Application]],summarystat[T3],\">=0\")","v":2},{"$f":"AVERAGEIFS(summarystat[T4],summarystat[Business],descriptivestats[[#This Row],[Application]],summarystat[T4],\">=0\")","v":1},{"$f":"AVERAGEIFS(summarystat[TECH1],summarystat[Business],descriptivestats[[#This Row],[Application]],summarystat[TECH1],\">=0\")","v":3}]
["AVERAGEB2","Business2",{"$f":"AVERAGEIFS(summarystat[S1],summarystat[Business],descriptivestats[[#This Row],[Application]],summarystat[S1],\">=0\")","v":4},{"$f":"AVERAGEIFS(summarystat[S2],summarystat[Business],descriptivestats[[#This Row],[Application]],summarystat[S2],\">=0\")","v":3},{"$f":"AVERAGEIFS(summarystat[S3],summarystat[Business],descriptivestats[[#This Row],[Application]],summarystat[S3],\">=0\")","v":2},{"$f":"AVERAGEIFS(summarystat[S4],summarystat[Business],descriptivestats[[#This Row],[Application]],summarystat[S4],\">=0\")","v":2},{"$f":"AVERAGEIFS(summarystat[S5],summarystat[Business],descriptivestats[[#This Row],[Application]],summarystat[S5],\">=0\")","v":3},{"$f":"AVERAGEIFS(summarystat[S6],summarystat[Business],descriptivestats[[#This Row],[Application]],summarystat[S6],\">=0\")","v":4},{"$f":"AVERAGEIFS(summarystat[S7],summarystat[Business],descriptivestats[[#This Row],[Application]],summarystat[S7],\">=0\")","v":3},{"$f":"AVERAGEIFS(summarystat[I1],summarystat[Business],descriptivestats[[#This Row],[Application]],summarystat[I1],\">=0\")","v":3},{"$f":"AVERAGEIFS(summarystat[I2],summarystat[Business],descriptivestats[[#This Row],[Application]],summarystat[I2],\">=0\")","v":4},{"$f":"AVERAGEIFS(summarystat[I3],summarystat[Business],descriptivestats[[#This Row],[Application]],summarystat[I3],\">=0\")","v":2},{"$f":"AVERAGEIFS(summarystat[D1],summarystat[Business],descriptivestats[[#This Row],[Application]],summarystat[D1],\">=0\")","v":4},{"$f":"AVERAGEIFS(summarystat[D2],summarystat[Business],descriptivestats[[#This Row],[Application]],summarystat[D2],\">=0\")","v":2},{"$f":"AVERAGEIFS(summarystat[D3],summarystat[Business],descriptivestats[[#This Row],[Application]],summarystat[D3],\">=0\")","v":3},{"$f":"AVERAGEIFS(summarystat[C1],summarystat[Business],descriptivestats[[#This Row],[Application]],summarystat[C1],\">=0\")","v":4},{"$f":"AVERAGEIFS(summarystat[C2],summarystat[Business],descriptivestats[[#This Row],[Application]],summarystat[C2],\">=0\")","v":2},{"$f":"AVERAGEIFS(summarystat[C3],summarystat[Business],descriptivestats[[#This Row],[Application]],summarystat[C3],\">=0\")","v":3},{"$f":"AVERAGEIFS(summarystat[C4],summarystat[Business],descriptivestats[[#This Row],[Application]],summarystat[C4],\">=0\")","v":4},{"$f":"AVERAGEIFS(summarystat[C5],summarystat[Business],descriptivestats[[#This Row],[Application]],summarystat[C5],\">=0\")","v":3},{"$f":"AVERAGEIFS(summarystat[C6],summarystat[Business],descriptivestats[[#This Row],[Application]],summarystat[C6],\">=0\")","v":3},{"$f":"AVERAGEIFS(summarystat[C7],summarystat[Business],descriptivestats[[#This Row],[Application]],summarystat[C7],\">=0\")","v":2},{"$f":"AVERAGEIFS(summarystat[C8],summarystat[Business],descriptivestats[[#This Row],[Application]],summarystat[C8],\">=0\")","v":2},{"$f":"AVERAGEIFS(summarystat[C9],summarystat[Business],descriptivestats[[#This Row],[Application]],summarystat[C9],\">=0\")","v":3},{"$f":"AVERAGEIFS(summarystat[C10],summarystat[Business],descriptivestats[[#This Row],[Application]],summarystat[C10],\">=0\")","v":4},{"$f":"AVERAGEIFS(summarystat[C11],summarystat[Business],descriptivestats[[#This Row],[Application]],summarystat[C11],\">=0\")","v":4},{"$f":"AVERAGEIFS(summarystat[C12],summarystat[Business],descriptivestats[[#This Row],[Application]],summarystat[C12],\">=0\")","v":3},{"$f":"AVERAGEIFS(summarystat[C13],summarystat[Business],descriptivestats[[#This Row],[Application]],summarystat[C13],\">=0\")","v":2},{"$f":"AVERAGEIFS(summarystat[C14],summarystat[Business],descriptivestats[[#This Row],[Application]],summarystat[C14],\">=0\")","v":3},{"$f":"AVERAGEIFS(summarystat[C15],summarystat[Business],descriptivestats[[#This Row],[Application]],summarystat[C15],\">=0\")","v":3},{"$f":"AVERAGEIFS(summarystat[L1],summarystat[Business],descriptivestats[[#This Row],[Application]],summarystat[L1],\">=0\")","v":4},{"$f":"AVERAGEIFS(summarystat[L2],summarystat[Business],descriptivestats[[#This Row],[Application]],summarystat[L2],\">=0\")","v":4},{"$f":"AVERAGEIFS(summarystat[L3],summarystat[Business],descriptivestats[[#This Row],[Application]],summarystat[L3],\">=0\")","v":1},{"$f":"AVERAGEIFS(summarystat[R1],summarystat[Business],descriptivestats[[#This Row],[Application]],summarystat[R1],\">=0\")","v":3},{"$f":"AVERAGEIFS(summarystat[R2],summarystat[Business],descriptivestats[[#This Row],[Application]],summarystat[R2],\">=0\")","v":2},{"$f":"AVERAGEIFS(summarystat[R3],summarystat[Business],descriptivestats[[#This Row],[Application]],summarystat[R3],\">=0\")","v":4},{"$f":"AVERAGEIFS(summarystat[R4],summarystat[Business],descriptivestats[[#This Row],[Application]],summarystat[R4],\">=0\")","v":2},{"$f":"AVERAGEIFS(summarystat[R5],summarystat[Business],descriptivestats[[#This Row],[Application]],summarystat[R5],\">=0\")","v":4},{"$f":"AVERAGEIFS(summarystat[R6],summarystat[Business],descriptivestats[[#This Row],[Application]],summarystat[R6],\">=0\")","v":3},{"$f":"AVERAGEIFS(summarystat[R7],summarystat[Business],descriptivestats[[#This Row],[Application]],summarystat[R7],\">=0\")","v":2},{"$f":"AVERAGEIFS(summarystat[RT1],summarystat[Business],descriptivestats[[#This Row],[Application]],summarystat[RT1],\">=0\")","v":3},{"$f":"AVERAGEIFS(summarystat[RT2],summarystat[Business],descriptivestats[[#This Row],[Application]],summarystat[RT2],\">=0\")","v":2},{"$f":"AVERAGEIFS(summarystat[RT3],summarystat[Business],descriptivestats[[#This Row],[Application]],summarystat[RT3],\">=0\")","v":4},{"$f":"AVERAGEIFS(summarystat[P1],summarystat[Business],descriptivestats[[#This Row],[Application]],summarystat[P1],\">=0\")","v":4},{"$f":"AVERAGEIFS(summarystat[P2],summarystat[Business],descriptivestats[[#This Row],[Application]],summarystat[P2],\">=0\")","v":3},{"$f":"AVERAGEIFS(summarystat[P3],summarystat[Business],descriptivestats[[#This Row],[Application]],summarystat[P3],\">=0\")","v":3},{"$f":"AVERAGEIFS(summarystat[P4],summarystat[Business],descriptivestats[[#This Row],[Application]],summarystat[P4],\">=0\")","v":2},{"$f":"AVERAGEIFS(summarystat[MP1],summarystat[Business],descriptivestats[[#This Row],[Application]],summarystat[MP1],\">=0\")","v":2},{"$f":"AVERAGEIFS(summarystat[MP2],summarystat[Business],descriptivestats[[#This Row],[Application]],summarystat[MP2],\">=0\")","v":2},{"$f":"AVERAGEIFS(summarystat[MP3],summarystat[Business],descriptivestats[[#This Row],[Application]],summarystat[MP3],\">=0\")","v":5},{"$f":"AVERAGEIFS(summarystat[MP4],summarystat[Business],descriptivestats[[#This Row],[Application]],summarystat[MP4],\">=0\")","v":5},{"$f":"AVERAGEIFS(summarystat[MP5],summarystat[Business],descriptivestats[[#This Row],[Application]],summarystat[MP5],\">=0\")","v":3},{"$f":"AVERAGEIFS(summarystat[MP6],summarystat[Business],descriptivestats[[#This Row],[Application]],summarystat[MP6],\">=0\")","v":2},{"$f":"AVERAGEIFS(summarystat[MP7],summarystat[Business],descriptivestats[[#This Row],[Application]],summarystat[MP7],\">=0\")","v":4},{"$f":"AVERAGEIFS(summarystat[MP8],summarystat[Business],descriptivestats[[#This Row],[Application]],summarystat[MP8],\">=0\")","v":4},{"$f":"AVERAGEIFS(summarystat[MP9],summarystat[Business],descriptivestats[[#This Row],[Application]],summarystat[MP9],\">=0\")","v":4},{"$f":"AVERAGEIFS(summarystat[MP10],summarystat[Business],descriptivestats[[#This Row],[Application]],summarystat[MP10],\">=0\")","v":3},{"$f":"AVERAGEIFS(summarystat[MP11],summarystat[Business],descriptivestats[[#This Row],[Application]],summarystat[MP11],\">=0\")","v":4},{"$f":"AVERAGEIFS(summarystat[MP12],summarystat[Business],descriptivestats[[#This Row],[Application]],summarystat[MP12],\">=0\")","v":2},{"$f":"AVERAGEIFS(summarystat[T1],summarystat[Business],descriptivestats[[#This Row],[Application]],summarystat[T1],\">=0\")","v":2},{"$f":"AVERAGEIFS(summarystat[T2],summarystat[Business],descriptivestats[[#This Row],[Application]],summarystat[T2],\">=0\")","v":4},{"$f":"AVERAGEIFS(summarystat[T3],summarystat[Business],descriptivestats[[#This Row],[Application]],summarystat[T3],\">=0\")","v":3},{"$f":"AVERAGEIFS(summarystat[T4],summarystat[Business],descriptivestats[[#This Row],[Application]],summarystat[T4],\">=0\")","v":4},{"$f":"AVERAGEIFS(summarystat[TECH1],summarystat[Business],descriptivestats[[#This Row],[Application]],summarystat[TECH1],\">=0\")","v":3}]
["AVERAGEB3","Business3",{"$f":"AVERAGEIFS(summarystat[S1],summarystat[Business],descriptivestats[[#This Row],[Application]],summarystat[S1],\">=0\")","v":{"$error":"#DIV/0!"}},{"$f":"AVERAGEIFS(summarystat[S2],summarystat[Business],descriptivestats[[#This Row],[Application]],summarystat[S2],\">=0\")","v":{"$error":"#DIV/0!"}},{"$f":"AVERAGEIFS(summarystat[S3],summarystat[Business],descriptivestats[[#This Row],[Application]],summarystat[S3],\">=0\")","v":{"$error":"#DIV/0!"}},{"$f":"AVERAGEIFS(summarystat[S4],summarystat[Business],descriptivestats[[#This Row],[Application]],summarystat[S4],\">=0\")","v":{"$error":"#DIV/0!"}},{"$f":"AVERAGEIFS(summarystat[S5],summarystat[Business],descriptivestats[[#This Row],[Application]],summarystat[S5],\">=0\")","v":{"$error":"#DIV/0!"}},{"$f":"AVERAGEIFS(summarystat[S6],summarystat[Business],descriptivestats[[#This Row],[Application]],summarystat[S6],\">=0\")","v":{"$error":"#DIV/0!"}},{"$f":"AVERAGEIFS(summarystat[S7],summarystat[Business],descriptivestats[[#This Row],[Application]],summarystat[S7],\">=0\")","v":{"$error":"#DIV/0!"}},{"$f":"AVERAGEIFS(summarystat[I1],summarystat[Business],descriptivestats[[#This Row],[Application]],summarystat[I1],\">=0\")","v":{"$error":"#DIV/0!"}},{"$f":"AVERAGEIFS(summarystat[I2],summarystat[Business],descriptivestats[[#This Row],[Application]],summarystat[I2],\">=0\")","v":{"$error":"#DIV/0!"}},{"$f":"AVERAGEIFS(summarystat[I3],summarystat[Business],descriptivestats[[#This Row],[Application]],summarystat[I3],\">=0\")","v":{"$error":"#DIV/0!"}},{"$f":"AVERAGEIFS(summarystat[D1],summarystat[Business],descriptivestats[[#This Row],[Application]],summarystat[D1],\">=0\")","v":{"$error":"#DIV/0!"}},{"$f":"AVERAGEIFS(summarystat[D2],summarystat[Business],descriptivestats[[#This Row],[Application]],summarystat[D2],\">=0\")","v":{"$error":"#DIV/0!"}},{"$f":"AVERAGEIFS(summarystat[D3],summarystat[Business],descriptivestats[[#This Row],[Application]],summarystat[D3],\">=0\")","v":{"$error":"#DIV/0!"}},{"$f":"AVERAGEIFS(summarystat[C1],summarystat[Business],descriptivestats[[#This Row],[Application]],summarystat[C1],\">=0\")","v":{"$error":"#DIV/0!"}},{"$f":"AVERAGEIFS(summarystat[C2],summarystat[Business],descriptivestats[[#This Row],[Application]],summarystat[C2],\">=0\")","v":{"$error":"#DIV/0!"}},{"$f":"AVERAGEIFS(summarystat[C3],summarystat[Business],descriptivestats[[#This Row],[Application]],summarystat[C3],\">=0\")","v":{"$error":"#DIV/0!"}},{"$f":"AVERAGEIFS(summarystat[C4],summarystat[Business],descriptivestats[[#This Row],[Application]],summarystat[C4],\">=0\")","v":{"$error":"#DIV/0!"}},{"$f":"AVERAGEIFS(summarystat[C5],summarystat[Business],descriptivestats[[#This Row],[Application]],summarystat[C5],\">=0\")","v":{"$error":"#DIV/0!"}},{"$f":"AVERAGEIFS(summarystat[C6],summarystat[Business],descriptivestats[[#This Row],[Application]],summarystat[C6],\">=0\")","v":{"$error":"#DIV/0!"}},{"$f":"AVERAGEIFS(summarystat[C7],summarystat[Business],descriptivestats[[#This Row],[Application]],summarystat[C7],\">=0\")","v":{"$error":"#DIV/0!"}},{"$f":"AVERAGEIFS(summarystat[C8],summarystat[Business],descriptivestats[[#This Row],[Application]],summarystat[C8],\">=0\")","v":{"$error":"#DIV/0!"}},{"$f":"AVERAGEIFS(summarystat[C9],summarystat[Business],descriptivestats[[#This Row],[Application]],summarystat[C9],\">=0\")","v":{"$error":"#DIV/0!"}},{"$f":"AVERAGEIFS(summarystat[C10],summarystat[Business],descriptivestats[[#This Row],[Application]],summarystat[C10],\">=0\")","v":{"$error":"#DIV/0!"}},{"$f":"AVERAGEIFS(summarystat[C11],summarystat[Business],descriptivestats[[#This Row],[Application]],summarystat[C11],\">=0\")","v":{"$error":"#DIV/0!"}},{"$f":"AVERAGEIFS(summarystat[C12],summarystat[Business],descriptivestats[[#This Row],[Application]],summarystat[C12],\">=0\")","v":{"$error":"#DIV/0!"}},{"$f":"AVERAGEIFS(summarystat[C13],summarystat[Business],descriptivestats[[#This Row],[Application]],summarystat[C13],\">=0\")","v":{"$error":"#DIV/0!"}},{"$f":"AVERAGEIFS(summarystat[C14],summarystat[Business],descriptivestats[[#This Row],[Application]],summarystat[C14],\">=0\")","v":{"$error":"#DIV/0!"}},{"$f":"AVERAGEIFS(summarystat[C15],summarystat[Business],descriptivestats[[#This Row],[Application]],summarystat[C15],\">=0\")","v":{"$error":"#DIV/0!"}},{"$f":"AVERAGEIFS(summarystat[L1],summarystat[Business],descriptivestats[[#This Row],[Application]],summarystat[L1],\">=0\")","v":{"$error":"#DIV/0!"}},{"$f":"AVERAGEIFS(summarystat[L2],summarystat[Business],descriptivestats[[#This Row],[Application]],summarystat[L2],\">=0\")","v":{"$error":"#DIV/0!"}},{"$f":"AVERAGEIFS(summarystat[L3],summarystat[Business],descriptivestats[[#This Row],[Application]],summarystat[L3],\">=0\")","v":{"$error":"#DIV/0!"}},{"$f":"AVERAGEIFS(summarystat[R1],summarystat[Business],descriptivestats[[#This Row],[Application]],summarystat[R1],\">=0\")","v":{"$error":"#DIV/0!"}},{"$f":"AVERAGEIFS(summarystat[R2],summarystat[Business],descriptivestats[[#This Row],[Application]],summarystat[R2],\">=0\")","v":{"$error":"#DIV/0!"}},{"$f":"AVERAGEIFS(summarystat[R3],summarystat[Business],descriptivestats[[#This Row],[Application]],summarystat[R3],\">=0\")","v":{"$error":"#DIV/0!"}},{"$f":"AVERAGEIFS(summarystat[R4],summarystat[Business],descriptivestats[[#This Row],[Application]],summarystat[R4],\">=0\")","v":{"$error":"#DIV/0!"}},{"$f":"AVERAGEIFS(summarystat[R5],summarystat[Business],descriptivestats[[#This Row],[Application]],summarystat[R5],\">=0\")","v":{"$error":"#DIV/0!"}},{"$f":"AVERAGEIFS(summarystat[R6],summarystat[Business],descriptivestats[[#This Row],[Application]],summarystat[R6],\">=0\")","v":{"$error":"#DIV/0!"}},{"$f":"AVERAGEIFS(summarystat[R7],summarystat[Business],descriptivestats[[#This Row],[Application]],summarystat[R7],\">=0\")","v":{"$error":"#DIV/0!"}},{"$f":"AVERAGEIFS(summarystat[RT1],summarystat[Business],descriptivestats[[#This Row],[Application]],summarystat[RT1],\">=0\")","v":{"$error":"#DIV/0!"}},{"$f":"AVERAGEIFS(summarystat[RT2],summarystat[Business],descriptivestats[[#This Row],[Application]],summarystat[RT2],\">=0\")","v":{"$error":"#DIV/0!"}},{"$f":"AVERAGEIFS(summarystat[RT3],summarystat[Business],descriptivestats[[#This Row],[Application]],summarystat[RT3],\">=0\")","v":{"$error":"#DIV/0!"}},{"$f":"AVERAGEIFS(summarystat[P1],summarystat[Business],descriptivestats[[#This Row],[Application]],summarystat[P1],\">=0\")","v":{"$error":"#DIV/0!"}},{"$f":"AVERAGEIFS(summarystat[P2],summarystat[Business],descriptivestats[[#This Row],[Application]],summarystat[P2],\">=0\")","v":{"$error":"#DIV/0!"}},{"$f":"AVERAGEIFS(summarystat[P3],summarystat[Business],descriptivestats[[#This Row],[Application]],summarystat[P3],\">=0\")","v":{"$error":"#DIV/0!"}},{"$f":"AVERAGEIFS(summarystat[P4],summarystat[Business],descriptivestats[[#This Row],[Application]],summarystat[P4],\">=0\")","v":{"$error":"#DIV/0!"}},{"$f":"AVERAGEIFS(summarystat[MP1],summarystat[Business],descriptivestats[[#This Row],[Application]],summarystat[MP1],\">=0\")","v":{"$error":"#DIV/0!"}},{"$f":"AVERAGEIFS(summarystat[MP2],summarystat[Business],descriptivestats[[#This Row],[Application]],summarystat[MP2],\">=0\")","v":{"$error":"#DIV/0!"}},{"$f":"AVERAGEIFS(summarystat[MP3],summarystat[Business],descriptivestats[[#This Row],[Application]],summarystat[MP3],\">=0\")","v":{"$error":"#DIV/0!"}},{"$f":"AVERAGEIFS(summarystat[MP4],summarystat[Business],descriptivestats[[#This Row],[Application]],summarystat[MP4],\">=0\")","v":{"$error":"#DIV/0!"}},{"$f":"AVERAGEIFS(summarystat[MP5],summarystat[Business],descriptivestats[[#This Row],[Application]],summarystat[MP5],\">=0\")","v":{"$error":"#DIV/0!"}},{"$f":"AVERAGEIFS(summarystat[MP6],summarystat[Business],descriptivestats[[#This Row],[Application]],summarystat[MP6],\">=0\")","v":{"$error":"#DIV/0!"}},{"$f":"AVERAGEIFS(summarystat[MP7],summarystat[Business],descriptivestats[[#This Row],[Application]],summarystat[MP7],\">=0\")","v":{"$error":"#DIV/0!"}},{"$f":"AVERAGEIFS(summarystat[MP8],summarystat[Business],descriptivestats[[#This Row],[Application]],summarystat[MP8],\">=0\")","v":{"$error":"#DIV/0!"}},{"$f":"AVERAGEIFS(summarystat[MP9],summarystat[Business],descriptivestats[[#This Row],[Application]],summarystat[MP9],\">=0\")","v":{"$error":"#DIV/0!"}},{"$f":"AVERAGEIFS(summarystat[MP10],summarystat[Business],descriptivestats[[#This Row],[Application]],summarystat[MP10],\">=0\")","v":{"$error":"#DIV/0!"}},{"$f":"AVERAGEIFS(summarystat[MP11],summarystat[Business],descriptivestats[[#This Row],[Application]],summarystat[MP11],\">=0\")","v":{"$error":"#DIV/0!"}},{"$f":"AVERAGEIFS(summarystat[MP12],summarystat[Business],descriptivestats[[#This Row],[Application]],summarystat[MP12],\">=0\")","v":{"$error":"#DIV/0!"}},{"$f":"AVERAGEIFS(summarystat[T1],summarystat[Business],descriptivestats[[#This Row],[Application]],summarystat[T1],\">=0\")","v":{"$error":"#DIV/0!"}},{"$f":"AVERAGEIFS(summarystat[T2],summarystat[Business],descriptivestats[[#This Row],[Application]],summarystat[T2],\">=0\")","v":{"$error":"#DIV/0!"}},{"$f":"AVERAGEIFS(summarystat[T3],summarystat[Business],descriptivestats[[#This Row],[Application]],summarystat[T3],\">=0\")","v":{"$error":"#DIV/0!"}},{"$f":"AVERAGEIFS(summarystat[T4],summarystat[Business],descriptivestats[[#This Row],[Application]],summarystat[T4],\">=0\")","v":{"$error":"#DIV/0!"}},{"$f":"AVERAGEIFS(summarystat[TECH1],summarystat[Business],descriptivestats[[#This Row],[Application]],summarystat[TECH1],\">=0\")","v":{"$error":"#DIV/0!"}}]
["AVERAGEB4","Business4",{"$f":"AVERAGEIFS(summarystat[S1],summarystat[Business],descriptivestats[[#This Row],[Application]],summarystat[S1],\">=0\")","v":{"$error":"#DIV/0!"}},{"$f":"AVERAGEIFS(summarystat[S2],summarystat[Business],descriptivestats[[#This Row],[Application]],summarystat[S2],\">=0\")","v":{"$error":"#DIV/0!"}},{"$f":"AVERAGEIFS(summarystat[S3],summarystat[Business],descriptivestats[[#This Row],[Application]],summarystat[S3],\">=0\")","v":{"$error":"#DIV/0!"}},{"$f":"AVERAGEIFS(summarystat[S4],summarystat[Business],descriptivestats[[#This Row],[Application]],summarystat[S4],\">=0\")","v":{"$error":"#DIV/0!"}},{"$f":"AVERAGEIFS(summarystat[S5],summarystat[Business],descriptivestats[[#This Row],[Application]],summarystat[S5],\">=0\")","v":{"$error":"#DIV/0!"}},{"$f":"AVERAGEIFS(summarystat[S6],summarystat[Business],descriptivestats[[#This Row],[Application]],summarystat[S6],\">=0\")","v":{"$error":"#DIV/0!"}},{"$f":"AVERAGEIFS(summarystat[S7],summarystat[Business],descriptivestats[[#This Row],[Application]],summarystat[S7],\">=0\")","v":{"$error":"#DIV/0!"}},{"$f":"AVERAGEIFS(summarystat[I1],summarystat[Business],descriptivestats[[#This Row],[Application]],summarystat[I1],\">=0\")","v":{"$error":"#DIV/0!"}},{"$f":"AVERAGEIFS(summarystat[I2],summarystat[Business],descriptivestats[[#This Row],[Application]],summarystat[I2],\">=0\")","v":{"$error":"#DIV/0!"}},{"$f":"AVERAGEIFS(summarystat[I3],summarystat[Business],descriptivestats[[#This Row],[Application]],summarystat[I3],\">=0\")","v":{"$error":"#DIV/0!"}},{"$f":"AVERAGEIFS(summarystat[D1],summarystat[Business],descriptivestats[[#This Row],[Application]],summarystat[D1],\">=0\")","v":{"$error":"#DIV/0!"}},{"$f":"AVERAGEIFS(summarystat[D2],summarystat[Business],descriptivestats[[#This Row],[Application]],summarystat[D2],\">=0\")","v":{"$error":"#DIV/0!"}},{"$f":"AVERAGEIFS(summarystat[D3],summarystat[Business],descriptivestats[[#This Row],[Application]],summarystat[D3],\">=0\")","v":{"$error":"#DIV/0!"}},{"$f":"AVERAGEIFS(summarystat[C1],summarystat[Business],descriptivestats[[#This Row],[Application]],summarystat[C1],\">=0\")","v":{"$error":"#DIV/0!"}},{"$f":"AVERAGEIFS(summarystat[C2],summarystat[Business],descriptivestats[[#This Row],[Application]],summarystat[C2],\">=0\")","v":{"$error":"#DIV/0!"}},{"$f":"AVERAGEIFS(summarystat[C3],summarystat[Business],descriptivestats[[#This Row],[Application]],summarystat[C3],\">=0\")","v":{"$error":"#DIV/0!"}},{"$f":"AVERAGEIFS(summarystat[C4],summarystat[Business],descriptivestats[[#This Row],[Application]],summarystat[C4],\">=0\")","v":{"$error":"#DIV/0!"}},{"$f":"AVERAGEIFS(summarystat[C5],summarystat[Business],descriptivestats[[#This Row],[Application]],summarystat[C5],\">=0\")","v":{"$error":"#DIV/0!"}},{"$f":"AVERAGEIFS(summarystat[C6],summarystat[Business],descriptivestats[[#This Row],[Application]],summarystat[C6],\">=0\")","v":{"$error":"#DIV/0!"}},{"$f":"AVERAGEIFS(summarystat[C7],summarystat[Business],descriptivestats[[#This Row],[Application]],summarystat[C7],\">=0\")","v":{"$error":"#DIV/0!"}},{"$f":"AVERAGEIFS(summarystat[C8],summarystat[Business],descriptivestats[[#This Row],[Application]],summarystat[C8],\">=0\")","v":{"$error":"#DIV/0!"}},{"$f":"AVERAGEIFS(summarystat[C9],summarystat[Business],descriptivestats[[#This Row],[Application]],summarystat[C9],\">=0\")","v":{"$error":"#DIV/0!"}},{"$f":"AVERAGEIFS(summarystat[C10],summarystat[Business],descriptivestats[[#This Row],[Application]],summarystat[C10],\">=0\")","v":{"$error":"#DIV/0!"}},{"$f":"AVERAGEIFS(summarystat[C11],summarystat[Business],descriptivestats[[#This Row],[Application]],summarystat[C11],\">=0\")","v":{"$error":"#DIV/0!"}},{"$f":"AVERAGEIFS(summarystat[C12],summarystat[Business],descriptivestats[[#This Row],[Application]],summarystat[C12],\">=0\")","v":{"$error":"#DIV/0!"}},{"$f":"AVERAGEIFS(summarystat[C13],summarystat[Business],descriptivestats[[#This Row],[Application]],summarystat[C13],\">=0\")","v":{"$error":"#DIV/0!"}},{"$f":"AVERAGEIFS(summarystat[C14],summarystat[Business],descriptivestats[[#This Row],[Application]],summarystat[C14],\">=0\")","v":{"$error":"#DIV/0!"}},{"$f":"AVERAGEIFS(summarystat[C15],summarystat[Business],descriptivestats[[#This Row],[Application]],summarystat[C15],\">=0\")","v":{"$error":"#DIV/0!"}},{"$f":"AVERAGEIFS(summarystat[L1],summarystat[Business],descriptivestats[[#This Row],[Application]],summarystat[L1],\">=0\")","v":{"$error":"#DIV/0!"}},{"$f":"AVERAGEIFS(summarystat[L2],summarystat[Business],descriptivestats[[#This Row],[Application]],summarystat[L2],\">=0\")","v":{"$error":"#DIV/0!"}},{"$f":"AVERAGEIFS(summarystat[L3],summarystat[Business],descriptivestats[[#This Row],[Application]],summarystat[L3],\">=0\")","v":{"$error":"#DIV/0!"}},{"$f":"AVERAGEIFS(summarystat[R1],summarystat[Business],descriptivestats[[#This Row],[Application]],summarystat[R1],\">=0\")","v":{"$error":"#DIV/0!"}},{"$f":"AVERAGEIFS(summarystat[R2],summarystat[Business],descriptivestats[[#This Row],[Application]],summarystat[R2],\">=0\")","v":{"$error":"#DIV/0!"}},{"$f":"AVERAGEIFS(summarystat[R3],summarystat[Business],descriptivestats[[#This Row],[Application]],summarystat[R3],\">=0\")","v":{"$error":"#DIV/0!"}},{"$f":"AVERAGEIFS(summarystat[R4],summarystat[Business],descriptivestats[[#This Row],[Application]],summarystat[R4],\">=0\")","v":{"$error":"#DIV/0!"}},{"$f":"AVERAGEIFS(summarystat[R5],summarystat[Business],descriptivestats[[#This Row],[Application]],summarystat[R5],\">=0\")","v":{"$error":"#DIV/0!"}},{"$f":"AVERAGEIFS(summarystat[R6],summarystat[Business],descriptivestats[[#This Row],[Application]],summarystat[R6],\">=0\")","v":{"$error":"#DIV/0!"}},{"$f":"AVERAGEIFS(summarystat[R7],summarystat[Business],descriptivestats[[#This Row],[Application]],summarystat[R7],\">=0\")","v":{"$error":"#DIV/0!"}},{"$f":"AVERAGEIFS(summarystat[RT1],summarystat[Business],descriptivestats[[#This Row],[Application]],summarystat[RT1],\">=0\")","v":{"$error":"#DIV/0!"}},{"$f":"AVERAGEIFS(summarystat[RT2],summarystat[Business],descriptivestats[[#This Row],[Application]],summarystat[RT2],\">=0\")","v":{"$error":"#DIV/0!"}},{"$f":"AVERAGEIFS(summarystat[RT3],summarystat[Business],descriptivestats[[#This Row],[Application]],summarystat[RT3],\">=0\")","v":{"$error":"#DIV/0!"}},{"$f":"AVERAGEIFS(summarystat[P1],summarystat[Business],descriptivestats[[#This Row],[Application]],summarystat[P1],\">=0\")","v":{"$error":"#DIV/0!"}},{"$f":"AVERAGEIFS(summarystat[P2],summarystat[Business],descriptivestats[[#This Row],[Application]],summarystat[P2],\">=0\")","v":{"$error":"#DIV/0!"}},{"$f":"AVERAGEIFS(summarystat[P3],summarystat[Business],descriptivestats[[#This Row],[Application]],summarystat[P3],\">=0\")","v":{"$error":"#DIV/0!"}},{"$f":"AVERAGEIFS(summarystat[P4],summarystat[Business],descriptivestats[[#This Row],[Application]],summarystat[P4],\">=0\")","v":{"$error":"#DIV/0!"}},{"$f":"AVERAGEIFS(summarystat[MP1],summarystat[Business],descriptivestats[[#This Row],[Application]],summarystat[MP1],\">=0\")","v":{"$error":"#DIV/0!"}},{"$f":"AVERAGEIFS(summarystat[MP2],summarystat[Business],descriptivestats[[#This Row],[Application]],summarystat[MP2],\">=0\")","v":{"$error":"#DIV/0!"}},{"$f":"AVERAGEIFS(summarystat[MP3],summarystat[Business],descriptivestats[[#This Row],[Application]],summarystat[MP3],\">=0\")","v":{"$error":"#DIV/0!"}},{"$f":"AVERAGEIFS(summarystat[MP4],summarystat[Business],descriptivestats[[#This Row],[Application]],summarystat[MP4],\">=0\")","v":{"$error":"#DIV/0!"}},{"$f":"AVERAGEIFS(summarystat[MP5],summarystat[Business],descriptivestats[[#This Row],[Application]],summarystat[MP5],\">=0\")","v":{"$error":"#DIV/0!"}},{"$f":"AVERAGEIFS(summarystat[MP6],summarystat[Business],descriptivestats[[#This Row],[Application]],summarystat[MP6],\">=0\")","v":{"$error":"#DIV/0!"}},{"$f":"AVERAGEIFS(summarystat[MP7],summarystat[Business],descriptivestats[[#This Row],[Application]],summarystat[MP7],\">=0\")","v":{"$error":"#DIV/0!"}},{"$f":"AVERAGEIFS(summarystat[MP8],summarystat[Business],descriptivestats[[#This Row],[Application]],summarystat[MP8],\">=0\")","v":{"$error":"#DIV/0!"}},{"$f":"AVERAGEIFS(summarystat[MP9],summarystat[Business],descriptivestats[[#This Row],[Application]],summarystat[MP9],\">=0\")","v":{"$error":"#DIV/0!"}},{"$f":"AVERAGEIFS(summarystat[MP10],summarystat[Business],descriptivestats[[#This Row],[Application]],summarystat[MP10],\">=0\")","v":{"$error":"#DIV/0!"}},{"$f":"AVERAGEIFS(summarystat[MP11],summarystat[Business],descriptivestats[[#This Row],[Application]],summarystat[MP11],\">=0\")","v":{"$error":"#DIV/0!"}},{"$f":"AVERAGEIFS(summarystat[MP12],summarystat[Business],descriptivestats[[#This Row],[Application]],summarystat[MP12],\">=0\")","v":{"$error":"#DIV/0!"}},{"$f":"AVERAGEIFS(summarystat[T1],summarystat[Business],descriptivestats[[#This Row],[Application]],summarystat[T1],\">=0\")","v":{"$error":"#DIV/0!"}},{"$f":"AVERAGEIFS(summarystat[T2],summarystat[Business],descriptivestats[[#This Row],[Application]],summarystat[T2],\">=0\")","v":{"$error":"#DIV/0!"}},{"$f":"AVERAGEIFS(summarystat[T3],summarystat[Business],descriptivestats[[#This Row],[Application]],summarystat[T3],\">=0\")","v":{"$error":"#DIV/0!"}},{"$f":"AVERAGEIFS(summarystat[T4],summarystat[Business],descriptivestats[[#This Row],[Application]],summarystat[T4],\">=0\")","v":{"$error":"#DIV/0!"}},{"$f":"AVERAGEIFS(summarystat[TECH1],summarystat[Business],descriptivestats[[#This Row],[Application]],summarystat[TECH1],\">=0\")","v":{"$error":"#DIV/0!"}}]
["ST DEV of MEAN","B1-B2",{"$f":"IFERROR(_xlfn.STDEV.P(C20:C21),0)","v":1},{"$f":"IFERROR(_xlfn.STDEV.P(D20:D21),0)","v":0.5},0,0.5,0.5,1,0.5,0,1,0.5,1,0.5,0.5,1,0.5,0.5,1,0.5,0.5,0,0.5,0.5,1,0.5,0.5,0.5,1,1,1,1,1,0.5,1,0,0,0.5,0.5,0.5,0.5,0,1,0,0,0.5,0.5,0.5,1,1,2,0.5,0.5,1,0.5,0.5,1,1,1.5,0,1,0.5,1.5,0]
["ST DEV of MEAN","B1-B3",{"$f":"IFERROR(_xlfn.STDEV.P(C20,C22),0)","v":0},{"$f":"IFERROR(_xlfn.STDEV.P(D20,D22),0)","v":0},0,0,0,0,0,0,0,0,0,0,0,0,0,0,0,0,0,0,0,0,0,0,0,0,0,0,0,0,0,0,0,0,0,0,0,0,0,0,0,0,0,0,0,0,0,0,0,0,0,0,0,0,0,0,0,0,0,0,0,0]
["ST DEV of MEAN","B1-B4",{"$f":"IFERROR(_xlfn.STDEV.P(C20,C23),0)","v":0},{"$f":"IFERROR(_xlfn.STDEV.P(D20,D23),0)","v":0},0,0,0,0,0,0,0,0,0,0,0,0,0,0,0,0,0,0,0,0,0,0,0,0,0,0,0,0,0,0,0,0,0,0,0,0,0,0,0,0,0,0,0,0,0,0,0,0,0,0,0,0,0,0,0,0,0,0,0,0]
["ST DEV of MEAN","B2-B3",{"$f":"IFERROR(_xlfn.STDEV.P(C21,C22),0)","v":0},{"$f":"IFERROR(_xlfn.STDEV.P(D21,D22),0)","v":0},0,0,0,0,0,0,0,0,0,0,0,0,0,0,0,0,0,0,0,0,0,0,0,0,0,0,0,0,0,0,0,0,0,0,0,0,0,0,0,0,0,0,0,0,0,0,0,0,0,0,0,0,0,0,0,0,0,0,0,0]
["ST DEV of MEAN","B2-B4",{"$f":"IFERROR(_xlfn.STDEV.P(C21,C23),0)","v":0},{"$f":"IFERROR(_xlfn.STDEV.P(D21,D23),0)","v":0},0,0,0,0,0,0,0,0,0,0,0,0,0,0,0,0,0,0,0,0,0,0,0,0,0,0,0,0,0,0,0,0,0,0,0,0,0,0,0,0,0,0,0,0,0,0,0,0,0,0,0,0,0,0,0,0,0,0,0,0]
["ST DEV of MEAN","B3-B4",{"$f":"IFERROR(_xlfn.STDEV.P(C22,C23),0)","v":0},{"$f":"IFERROR(_xlfn.STDEV.P(D22,D23),0)","v":0},0,0,0,0,0,0,0,0,0,0,0,0,0,0,0,0,0,0,0,0,0,0,0,0,0,0,0,0,0,0,0,0,0,0,0,0,0,0,0,0,0,0,0,0,0,0,0,0,0,0,0,0,0,0,0,0,0,0,0,0]
["COUNT OF 5","valid visible",{"$f":"SUM((IFERROR((summarystat[S1]=5),0)*(SUBTOTAL(103,OFFSET(C$6,ROW(summarystat[S1])-ROW(C$6),)))))","v":0},{"$f":"SUM((IFERROR((summarystat[S2]=5),0)*(SUBTOTAL(103,OFFSET(D$6,ROW(summarystat[S2])-ROW(D$6),)))))","v":0},{"$f":"SUM((IFERROR((summarystat[S3]=5),0)*(SUBTOTAL(103,OFFSET(E$6,ROW(summarystat[S3])-ROW(E$6),)))))","v":0},{"$f":"SUM((IFERROR((summarystat[S4]=5),0)*(SUBTOTAL(103,OFFSET(F$6,ROW(summarystat[S4])-ROW(F$6),)))))","v":0},{"$f":"SUM((IFERROR((summarystat[S5]=5),0)*(SUBTOTAL(103,OFFSET(G$6,ROW(summarystat[S5])-ROW(G$6),)))))","v":0},{"$f":"SUM((IFERROR((summarystat[S6]=5),0)*(SUBTOTAL(103,OFFSET(H$6,ROW(summarystat[S6])-ROW(H$6),)))))","v":0},{"$f":"SUM((IFERROR((summarystat[S7]=5),0)*(SUBTOTAL(103,OFFSET(I$6,ROW(summarystat[S7])-ROW(I$6),)))))","v":0},{"$f":"SUM((IFERROR((summarystat[I1]=5),0)*(SUBTOTAL(103,OFFSET(J$6,ROW(summarystat[I1])-ROW(J$6),)))))","v":0},{"$f":"SUM((IFERROR((summarystat[I2]=5),0)*(SUBTOTAL(103,OFFSET(K$6,ROW(summarystat[I2])-ROW(K$6),)))))","v":0},{"$f":"SUM((IFERROR((summarystat[I3]=5),0)*(SUBTOTAL(103,OFFSET(L$6,ROW(summarystat[I3])-ROW(L$6),)))))","v":0},{"$f":"SUM((IFERROR((summarystat[D1]=5),0)*(SUBTOTAL(103,OFFSET(M$6,ROW(summarystat[D1])-ROW(M$6),)))))","v":0},{"$f":"SUM((IFERROR((summarystat[D2]=5),0)*(SUBTOTAL(103,OFFSET(N$6,ROW(summarystat[D2])-ROW(N$6),)))))","v":0},{"$f":"SUM((IFERROR((summarystat[D3]=5),0)*(SUBTOTAL(103,OFFSET(O$6,ROW(summarystat[D3])-ROW(O$6),)))))","v":0},{"$f":"SUM((IFERROR((summarystat[C1]=5),0)*(SUBTOTAL(103,OFFSET(P$6,ROW(summarystat[C1])-ROW(P$6),)))))","v":0},{"$f":"SUM((IFERROR((summarystat[C2]=5),0)*(SUBTOTAL(103,OFFSET(Q$6,ROW(summarystat[C2])-ROW(Q$6),)))))","v":0},{"$f":"SUM((IFERROR((summarystat[C3]=5),0)*(SUBTOTAL(103,OFFSET(R$6,ROW(summarystat[C3])-ROW(R$6),)))))","v":0},{"$f":"SUM((IFERROR((summarystat[C4]=5),0)*(SUBTOTAL(103,OFFSET(S$6,ROW(summarystat[C4])-ROW(S$6),)))))","v":0},{"$f":"SUM((IFERROR((summarystat[C5]=5),0)*(SUBTOTAL(103,OFFSET(T$6,ROW(summarystat[C5])-ROW(T$6),)))))","v":0},{"$f":"SUM((IFERROR((summarystat[C6]=5),0)*(SUBTOTAL(103,OFFSET(U$6,ROW(summarystat[C6])-ROW(U$6),)))))","v":0},{"$f":"SUM((IFERROR((summarystat[C7]=5),0)*(SUBTOTAL(103,OFFSET(V$6,ROW(summarystat[C7])-ROW(V$6),)))))","v":0},{"$f":"SUM((IFERROR((summarystat[C8]=5),0)*(SUBTOTAL(103,OFFSET(W$6,ROW(summarystat[C8])-ROW(W$6),)))))","v":0},{"$f":"SUM((IFERROR((summarystat[C9]=5),0)*(SUBTOTAL(103,OFFSET(X$6,ROW(summarystat[C9])-ROW(X$6),)))))","v":0},{"$f":"SUM((IFERROR((summarystat[C10]=5),0)*(SUBTOTAL(103,OFFSET(Y$6,ROW(summarystat[C10])-ROW(Y$6),)))))","v":0},{"$f":"SUM((IFERROR((summarystat[C11]=5),0)*(SUBTOTAL(103,OFFSET(Z$6,ROW(summarystat[C11])-ROW(Z$6),)))))","v":0},{"$f":"SUM((IFERROR((summarystat[C12]=5),0)*(SUBTOTAL(103,OFFSET(AA$6,ROW(summarystat[C12])-ROW(AA$6),)))))","v":0},{"$f":"SUM((IFERROR((summarystat[C13]=5),0)*(SUBTOTAL(103,OFFSET(AB$6,ROW(summarystat[C13])-ROW(AB$6),)))))","v":0},{"$f":"SUM((IFERROR((summarystat[C14]=5),0)*(SUBTOTAL(103,OFFSET(AC$6,ROW(summarystat[C14])-ROW(AC$6),)))))","v":0},{"$f":"SUM((IFERROR((summarystat[C15]=5),0)*(SUBTOTAL(103,OFFSET(AD$6,ROW(summarystat[C15])-ROW(AD$6),)))))","v":0},{"$f":"SUM((IFERROR((summarystat[L1]=5),0)*(SUBTOTAL(103,OFFSET(AE$6,ROW(summarystat[L1])-ROW(AE$6),)))))","v":0},{"$f":"SUM((IFERROR((summarystat[L2]=5),0)*(SUBTOTAL(103,OFFSET(AF$6,ROW(summarystat[L2])-ROW(AF$6),)))))","v":0},{"$f":"SUM((IFERROR((summarystat[L3]=5),0)*(SUBTOTAL(103,OFFSET(AG$6,ROW(summarystat[L3])-ROW(AG$6),)))))","v":0},{"$f":"SUM((IFERROR((summarystat[R1]=5),0)*(SUBTOTAL(103,OFFSET(AH$6,ROW(summarystat[R1])-ROW(AH$6),)))))","v":0},{"$f":"SUM((IFERROR((summarystat[R2]=5),0)*(SUBTOTAL(103,OFFSET(AI$6,ROW(summarystat[R2])-ROW(AI$6),)))))","v":0},{"$f":"SUM((IFERROR((summarystat[R3]=5),0)*(SUBTOTAL(103,OFFSET(AJ$6,ROW(summarystat[R3])-ROW(AJ$6),)))))","v":0},{"$f":"SUM((IFERROR((summarystat[R4]=5),0)*(SUBTOTAL(103,OFFSET(AK$6,ROW(summarystat[R4])-ROW(AK$6),)))))","v":0},{"$f":"SUM((IFERROR((summarystat[R5]=5),0)*(SUBTOTAL(103,OFFSET(AL$6,ROW(summarystat[R5])-ROW(AL$6),)))))","v":1},{"$f":"SUM((IFERROR((summarystat[R6]=5),0)*(SUBTOTAL(103,OFFSET(AM$6,ROW(summarystat[R6])-ROW(AM$6),)))))","v":0},{"$f":"SUM((IFERROR((summarystat[R7]=5),0)*(SUBTOTAL(103,OFFSET(AN$6,ROW(summarystat[R7])-ROW(AN$6),)))))","v":0},{"$f":"SUM((IFERROR((summarystat[RT1]=5),0)*(SUBTOTAL(103,OFFSET(AO$6,ROW(summarystat[RT1])-ROW(AO$6),)))))","v":0},{"$f":"SUM((IFERROR((summarystat[RT2]=5),0)*(SUBTOTAL(103,OFFSET(AP$6,ROW(summarystat[RT2])-ROW(AP$6),)))))","v":0},{"$f":"SUM((IFERROR((summarystat[RT3]=5),0)*(SUBTOTAL(103,OFFSET(AQ$6,ROW(summarystat[RT3])-ROW(AQ$6),)))))","v":0},{"$f":"SUM((IFERROR((summarystat[P1]=5),0)*(SUBTOTAL(103,OFFSET(AR$6,ROW(summarystat[P1])-ROW(AR$6),)))))","v":0},{"$f":"SUM((IFERROR((summarystat[P2]=5),0)*(SUBTOTAL(103,OFFSET(AS$6,ROW(summarystat[P2])-ROW(AS$6),)))))","v":0},{"$f":"SUM((IFERROR((summarystat[P3]=5),0)*(SUBTOTAL(103,OFFSET(AT$6,ROW(summarystat[P3])-ROW(AT$6),)))))","v":0},{"$f":"SUM((IFERROR((summarystat[P4]=5),0)*(SUBTOTAL(103,OFFSET(AU$6,ROW(summarystat[P4])-ROW(AU$6),)))))","v":0},{"$f":"SUM((IFERROR((summarystat[MP1]=5),0)*(SUBTOTAL(103,OFFSET(AV$6,ROW(summarystat[MP1])-ROW(AV$6),)))))","v":0},{"$f":"SUM((IFERROR((summarystat[MP2]=5),0)*(SUBTOTAL(103,OFFSET(AW$6,ROW(summarystat[MP2])-ROW(AW$6),)))))","v":0},{"$f":"SUM((IFERROR((summarystat[MP3]=5),0)*(SUBTOTAL(103,OFFSET(AX$6,ROW(summarystat[MP3])-ROW(AX$6),)))))","v":0},{"$f":"SUM((IFERROR((summarystat[MP4]=5),0)*(SUBTOTAL(103,OFFSET(AY$6,ROW(summarystat[MP4])-ROW(AY$6),)))))","v":0},{"$f":"SUM((IFERROR((summarystat[MP5]=5),0)*(SUBTOTAL(103,OFFSET(AZ$6,ROW(summarystat[MP5])-ROW(AZ$6),)))))","v":0},{"$f":"SUM((IFERROR((summarystat[MP6]=5),0)*(SUBTOTAL(103,OFFSET(BA$6,ROW(summarystat[MP6])-ROW(BA$6),)))))","v":0},{"$f":"SUM((IFERROR((summarystat[MP7]=5),0)*(SUBTOTAL(103,OFFSET(BB$6,ROW(summarystat[MP7])-ROW(BB$6),)))))","v":0},{"$f":"SUM((IFERROR((summarystat[MP8]=5),0)*(SUBTOTAL(103,OFFSET(BC$6,ROW(summarystat[MP8])-ROW(BC$6),)))))","v":0},{"$f":"SUM((IFERROR((summarystat[MP9]=5),0)*(SUBTOTAL(103,OFFSET(BD$6,ROW(summarystat[MP9])-ROW(BD$6),)))))","v":0},{"$f":"SUM((IFERROR((summarystat[MP10]=5),0)*(SUBTOTAL(103,OFFSET(BE$6,ROW(summarystat[MP10])-ROW(BE$6),)))))","v":0},{"$f":"SUM((IFERROR((summarystat[MP11]=5),0)*(SUBTOTAL(103,OFFSET(BF$6,ROW(summarystat[MP11])-ROW(BF$6),)))))","v":0},{"$f":"SUM((IFERROR((summarystat[MP12]=5),0)*(SUBTOTAL(103,OFFSET(BG$6,ROW(summarystat[MP12])-ROW(BG$6),)))))","v":1},{"$f":"SUM((IFERROR((summarystat[T1]=5),0)*(SUBTOTAL(103,OFFSET(BH$6,ROW(summarystat[T1])-ROW(BH$6),)))))","v":0},{"$f":"SUM((IFERROR((summarystat[T2]=5),0)*(SUBTOTAL(103,OFFSET(BI$6,ROW(summarystat[T2])-ROW(BI$6),)))))","v":0},{"$f":"SUM((IFERROR((summarystat[T3]=5),0)*(SUBTOTAL(103,OFFSET(BJ$6,ROW(summarystat[T3])-ROW(BJ$6),)))))","v":0},{"$f":"SUM((IFERROR((summarystat[T4]=5),0)*(SUBTOTAL(103,OFFSET(BK$6,ROW(summarystat[T4])-ROW(BK$6),)))))","v":0},{"$f":"SUM((IFERROR((summarystat[TECH1]=5),0)*(SUBTOTAL(103,OFFSET(BL$6,ROW(summarystat[TECH1])-ROW(BL$6),)))))","v":0}]
["COUNT OF 1","valid visible",{"$f":"SUM((IFERROR((summarystat[S1]=1),0)*(SUBTOTAL(103,OFFSET(C$6,ROW(summarystat[S1])-ROW(C$6),)))))","v":0},{"$f":"SUM((IFERROR((summarystat[S2]=1),0)*(SUBTOTAL(103,OFFSET(D$6,ROW(summarystat[S2])-ROW(D$6),)))))","v":0},{"$f":"SUM((IFERROR((summarystat[S3]=1),0)*(SUBTOTAL(103,OFFSET(E$6,ROW(summarystat[S3])-ROW(E$6),)))))","v":0},{"$f":"SUM((IFERROR((summarystat[S4]=1),0)*(SUBTOTAL(103,OFFSET(F$6,ROW(summarystat[S4])-ROW(F$6),)))))","v":0},{"$f":"SUM((IFERROR((summarystat[S5]=1),0)*(SUBTOTAL(103,OFFSET(G$6,ROW(summarystat[S5])-ROW(G$6),)))))","v":0},{"$f":"SUM((IFERROR((summarystat[S6]=1),0)*(SUBTOTAL(103,OFFSET(H$6,ROW(summarystat[S6])-ROW(H$6),)))))","v":0},{"$f":"SUM((IFERROR((summarystat[S7]=1),0)*(SUBTOTAL(103,OFFSET(I$6,ROW(summarystat[S7])-ROW(I$6),)))))","v":0},{"$f":"SUM((IFERROR((summarystat[I1]=1),0)*(SUBTOTAL(103,OFFSET(J$6,ROW(summarystat[I1])-ROW(J$6),)))))","v":0},{"$f":"SUM((IFERROR((summarystat[I2]=1),0)*(SUBTOTAL(103,OFFSET(K$6,ROW(summarystat[I2])-ROW(K$6),)))))","v":0},{"$f":"SUM((IFERROR((summarystat[I3]=1),0)*(SUBTOTAL(103,OFFSET(L$6,ROW(summarystat[I3])-ROW(L$6),)))))","v":0},{"$f":"SUM((IFERROR((summarystat[D1]=1),0)*(SUBTOTAL(103,OFFSET(M$6,ROW(summarystat[D1])-ROW(M$6),)))))","v":0},{"$f":"SUM((IFERROR((summarystat[D2]=1),0)*(SUBTOTAL(103,OFFSET(N$6,ROW(summarystat[D2])-ROW(N$6),)))))","v":0},{"$f":"SUM((IFERROR((summarystat[D3]=1),0)*(SUBTOTAL(103,OFFSET(O$6,ROW(summarystat[D3])-ROW(O$6),)))))","v":0},{"$f":"SUM((IFERROR((summarystat[C1]=1),0)*(SUBTOTAL(103,OFFSET(P$6,ROW(summarystat[C1])-ROW(P$6),)))))","v":0},{"$f":"SUM((IFERROR((summarystat[C2]=1),0)*(SUBTOTAL(103,OFFSET(Q$6,ROW(summarystat[C2])-ROW(Q$6),)))))","v":0},{"$f":"SUM((IFERROR((summarystat[C3]=1),0)*(SUBTOTAL(103,OFFSET(R$6,ROW(summarystat[C3])-ROW(R$6),)))))","v":0},{"$f":"SUM((IFERROR((summarystat[C4]=1),0)*(SUBTOTAL(103,OFFSET(S$6,ROW(summarystat[C4])-ROW(S$6),)))))","v":0},{"$f":"SUM((IFERROR((summarystat[C5]=1),0)*(SUBTOTAL(103,OFFSET(T$6,ROW(summarystat[C5])-ROW(T$6),)))))","v":0},{"$f":"SUM((IFERROR((summarystat[C6]=1),0)*(SUBTOTAL(103,OFFSET(U$6,ROW(summarystat[C6])-ROW(U$6),)))))","v":0},{"$f":"SUM((IFERROR((summarystat[C7]=1),0)*(SUBTOTAL(103,OFFSET(V$6,ROW(summarystat[C7])-ROW(V$6),)))))","v":0},{"$f":"SUM((IFERROR((summarystat[C8]=1),0)*(SUBTOTAL(103,OFFSET(W$6,ROW(summarystat[C8])-ROW(W$6),)))))","v":1},{"$f":"SUM((IFERROR((summarystat[C9]=1),0)*(SUBTOTAL(103,OFFSET(X$6,ROW(summarystat[C9])-ROW(X$6),)))))","v":0},{"$f":"SUM((IFERROR((summarystat[C10]=1),0)*(SUBTOTAL(103,OFFSET(Y$6,ROW(summarystat[C10])-ROW(Y$6),)))))","v":0},{"$f":"SUM((IFERROR((summarystat[C11]=1),0)*(SUBTOTAL(103,OFFSET(Z$6,ROW(summarystat[C11])-ROW(Z$6),)))))","v":0},{"$f":"SUM((IFERROR((summarystat[C12]=1),0)*(SUBTOTAL(103,OFFSET(AA$6,ROW(summarystat[C12])-ROW(AA$6),)))))","v":0},{"$f":"SUM((IFERROR((summarystat[C13]=1),0)*(SUBTOTAL(103,OFFSET(AB$6,ROW(summarystat[C13])-ROW(AB$6),)))))","v":0},{"$f":"SUM((IFERROR((summarystat[C14]=1),0)*(SUBTOTAL(103,OFFSET(AC$6,ROW(summarystat[C14])-ROW(AC$6),)))))","v":1},{"$f":"SUM((IFERROR((summarystat[C15]=1),0)*(SUBTOTAL(103,OFFSET(AD$6,ROW(summarystat[C15])-ROW(AD$6),)))))","v":1},{"$f":"SUM((IFERROR((summarystat[L1]=1),0)*(SUBTOTAL(103,OFFSET(AE$6,ROW(summarystat[L1])-ROW(AE$6),)))))","v":0},{"$f":"SUM((IFERROR((summarystat[L2]=1),0)*(SUBTOTAL(103,OFFSET(AF$6,ROW(summarystat[L2])-ROW(AF$6),)))))","v":0},{"$f":"SUM((IFERROR((summarystat[L3]=1),0)*(SUBTOTAL(103,OFFSET(AG$6,ROW(summarystat[L3])-ROW(AG$6),)))))","v":0},{"$f":"SUM((IFERROR((summarystat[R1]=1),0)*(SUBTOTAL(103,OFFSET(AH$6,ROW(summarystat[R1])-ROW(AH$6),)))))","v":0},{"$f":"SUM((IFERROR((summarystat[R2]=1),0)*(SUBTOTAL(103,OFFSET(AI$6,ROW(summarystat[R2])-ROW(AI$6),)))))","v":0},{"$f":"SUM((IFERROR((summarystat[R3]=1),0)*(SUBTOTAL(103,OFFSET(AJ$6,ROW(summarystat[R3])-ROW(AJ$6),)))))","v":0},{"$f":"SUM((IFERROR((summarystat[R4]=1),0)*(SUBTOTAL(103,OFFSET(AK$6,ROW(summarystat[R4])-ROW(AK$6),)))))","v":0},{"$f":"SUM((IFERROR((summarystat[R5]=1),0)*(SUBTOTAL(103,OFFSET(AL$6,ROW(summarystat[R5])-ROW(AL$6),)))))","v":0},{"$f":"SUM((IFERROR((summarystat[R6]=1),0)*(SUBTOTAL(103,OFFSET(AM$6,ROW(summarystat[R6])-ROW(AM$6),)))))","v":0},{"$f":"SUM((IFERROR((summarystat[R7]=1),0)*(SUBTOTAL(103,OFFSET(AN$6,ROW(summarystat[R7])-ROW(AN$6),)))))","v":0},{"$f":"SUM((IFERROR((summarystat[RT1]=1),0)*(SUBTOTAL(103,OFFSET(AO$6,ROW(summarystat[RT1])-ROW(AO$6),)))))","v":0},{"$f":"SUM((IFERROR((summarystat[RT2]=1),0)*(SUBTOTAL(103,OFFSET(AP$6,ROW(summarystat[RT2])-ROW(AP$6),)))))","v":0},{"$f":"SUM((IFERROR((summarystat[RT3]=1),0)*(SUBTOTAL(103,OFFSET(AQ$6,ROW(summarystat[RT3])-ROW(AQ$6),)))))","v":0},{"$f":"SUM((IFERROR((summarystat[P1]=1),0)*(SUBTOTAL(103,OFFSET(AR$6,ROW(summarystat[P1])-ROW(AR$6),)))))","v":0},{"$f":"SUM((IFERROR((summarystat[P2]=1),0)*(SUBTOTAL(103,OFFSET(AS$6,ROW(summarystat[P2])-ROW(AS$6),)))))","v":0},{"$f":"SUM((IFERROR((summarystat[P3]=1),0)*(SUBTOTAL(103,OFFSET(AT$6,ROW(summarystat[P3])-ROW(AT$6),)))))","v":0},{"$f":"SUM((IFERROR((summarystat[P4]=1),0)*(SUBTOTAL(103,OFFSET(AU$6,ROW(summarystat[P4])-ROW(AU$6),)))))","v":1},{"$f":"SUM((IFERROR((summarystat[MP1]=1),0)*(SUBTOTAL(103,OFFSET(AV$6,ROW(summarystat[MP1])-ROW(AV$6),)))))","v":0},{"$f":"SUM((IFERROR((summarystat[MP2]=1),0)*(SUBTOTAL(103,OFFSET(AW$6,ROW(summarystat[MP2])-ROW(AW$6),)))))","v":0},{"$f":"SUM((IFERROR((summarystat[MP3]=1),0)*(SUBTOTAL(103,OFFSET(AX$6,ROW(summarystat[MP3])-ROW(AX$6),)))))","v":0},{"$f":"SUM((IFERROR((summarystat[MP4]=1),0)*(SUBTOTAL(103,OFFSET(AY$6,ROW(summarystat[MP4])-ROW(AY$6),)))))","v":1},{"$f":"SUM((IFERROR((summarystat[MP5]=1),0)*(SUBTOTAL(103,OFFSET(AZ$6,ROW(summarystat[MP5])-ROW(AZ$6),)))))","v":0},{"$f":"SUM((IFERROR((summarystat[MP6]=1),0)*(SUBTOTAL(103,OFFSET(BA$6,ROW(summarystat[MP6])-ROW(BA$6),)))))","v":0},{"$f":"SUM((IFERROR((summarystat[MP7]=1),0)*(SUBTOTAL(103,OFFSET(BB$6,ROW(summarystat[MP7])-ROW(BB$6),)))))","v":0},{"$f":"SUM((IFERROR((summarystat[MP8]=1),0)*(SUBTOTAL(103,OFFSET(BC$6,ROW(summarystat[MP8])-ROW(BC$6),)))))","v":0},{"$f":"SUM((IFERROR((summarystat[MP9]=1),0)*(SUBTOTAL(103,OFFSET(BD$6,ROW(summarystat[MP9])-ROW(BD$6),)))))","v":0},{"$f":"SUM((IFERROR((summarystat[MP10]=1),0)*(SUBTOTAL(103,OFFSET(BE$6,ROW(summarystat[MP10])-ROW(BE$6),)))))","v":1},{"$f":"SUM((IFERROR((summarystat[MP11]=1),0)*(SUBTOTAL(103,OFFSET(BF$6,ROW(summarystat[MP11])-ROW(BF$6),)))))","v":0},{"$f":"SUM((IFERROR((summarystat[MP12]=1),0)*(SUBTOTAL(103,OFFSET(BG$6,ROW(summarystat[MP12])-ROW(BG$6),)))))","v":0},{"$f":"SUM((IFERROR((summarystat[T1]=1),0)*(SUBTOTAL(103,OFFSET(BH$6,ROW(summarystat[T1])-ROW(BH$6),)))))","v":0},{"$f":"SUM((IFERROR((summarystat[T2]=1),0)*(SUBTOTAL(103,OFFSET(BI$6,ROW(summarystat[T2])-ROW(BI$6),)))))","v":0},{"$f":"SUM((IFERROR((summarystat[T3]=1),0)*(SUBTOTAL(103,OFFSET(BJ$6,ROW(summarystat[T3])-ROW(BJ$6),)))))","v":0},{"$f":"SUM((IFERROR((summarystat[T4]=1),0)*(SUBTOTAL(103,OFFSET(BK$6,ROW(summarystat[T4])-ROW(BK$6),)))))","v":1},{"$f":"SUM((IFERROR((summarystat[TECH1]=1),0)*(SUBTOTAL(103,OFFSET(BL$6,ROW(summarystat[TECH1])-ROW(BL$6),)))))","v":0}]
["COUNT TOTAL","all valid ",{"$f":"_xlfn.AGGREGATE(2,6,summarystat[S1])","v":2},{"$f":"_xlfn.AGGREGATE(2,6,summarystat[S2])","v":2},{"$f":"_xlfn.AGGREGATE(2,6,summarystat[S3])","v":2},{"$f":"_xlfn.AGGREGATE(2,6,summarystat[S4])","v":2},{"$f":"_xlfn.AGGREGATE(2,6,summarystat[S5])","v":2},{"$f":"_xlfn.AGGREGATE(2,6,summarystat[S6])","v":2},{"$f":"_xlfn.AGGREGATE(2,6,summarystat[S7])","v":2},{"$f":"_xlfn.AGGREGATE(2,6,summarystat[I1])","v":2},{"$f":"_xlfn.AGGREGATE(2,6,summarystat[I2])","v":2},{"$f":"_xlfn.AGGREGATE(2,6,summarystat[I3])","v":2},{"$f":"_xlfn.AGGREGATE(2,6,summarystat[D1])","v":2},{"$f":"_xlfn.AGGREGATE(2,6,summarystat[D2])","v":2},{"$f":"_xlfn.AGGREGATE(2,6,summarystat[D3])","v":2},{"$f":"_xlfn.AGGREGATE(2,6,summarystat[C1])","v":2},{"$f":"_xlfn.AGGREGATE(2,6,summarystat[C2])","v":2},{"$f":"_xlfn.AGGREGATE(2,6,summarystat[C3])","v":2},{"$f":"_xlfn.AGGREGATE(2,6,summarystat[C4])","v":2},{"$f":"_xlfn.AGGREGATE(2,6,summarystat[C5])","v":2},{"$f":"_xlfn.AGGREGATE(2,6,summarystat[C6])","v":2},{"$f":"_xlfn.AGGREGATE(2,6,summarystat[C7])","v":2},{"$f":"_xlfn.AGGREGATE(2,6,summarystat[C8])","v":2},{"$f":"_xlfn.AGGREGATE(2,6,summarystat[C9])","v":2},{"$f":"_xlfn.AGGREGATE(2,6,summarystat[C10])","v":2},{"$f":"_xlfn.AGGREGATE(2,6,summarystat[C11])","v":2},{"$f":"_xlfn.AGGREGATE(2,6,summarystat[C12])","v":2},{"$f":"_xlfn.AGGREGATE(2,6,summarystat[C13])","v":2},{"$f":"_xlfn.AGGREGATE(2,6,summarystat[C14])","v":2},{"$f":"_xlfn.AGGREGATE(2,6,summarystat[C15])","v":2},{"$f":"_xlfn.AGGREGATE(2,6,summarystat[L1])","v":2},{"$f":"_xlfn.AGGREGATE(2,6,summarystat[L2])","v":2},{"$f":"_xlfn.AGGREGATE(2,6,summarystat[L3])","v":2},{"$f":"_xlfn.AGGREGATE(2,6,summarystat[R1])","v":2},{"$f":"_xlfn.AGGREGATE(2,6,summarystat[R2])","v":2},{"$f":"_xlfn.AGGREGATE(2,6,summarystat[R3])","v":2},{"$f":"_xlfn.AGGREGATE(2,6,summarystat[R4])","v":2},{"$f":"_xlfn.AGGREGATE(2,6,summarystat[R5])","v":2},{"$f":"_xlfn.AGGREGATE(2,6,summarystat[R6])","v":2},{"$f":"_xlfn.AGGREGATE(2,6,summarystat[R7])","v":2},{"$f":"_xlfn.AGGREGATE(2,6,summarystat[RT1])","v":2},{"$f":"_xlfn.AGGREGATE(2,6,summarystat[RT2])","v":2},{"$f":"_xlfn.AGGREGATE(2,6,summarystat[RT3])","v":2},{"$f":"_xlfn.AGGREGATE(2,6,summarystat[P1])","v":2},{"$f":"_xlfn.AGGREGATE(2,6,summarystat[P2])","v":2},{"$f":"_xlfn.AGGREGATE(2,6,summarystat[P3])","v":2},{"$f":"_xlfn.AGGREGATE(2,6,summarystat[P4])","v":2},{"$f":"_xlfn.AGGREGATE(2,6,summarystat[MP1])","v":2},{"$f":"_xlfn.AGGREGATE(2,6,summarystat[MP2])","v":2},{"$f":"_xlfn.AGGREGATE(2,6,summarystat[MP3])","v":2},{"$f":"_xlfn.AGGREGATE(2,6,summarystat[MP4])","v":2},{"$f":"_xlfn.AGGREGATE(2,6,summarystat[MP5])","v":2},{"$f":"_xlfn.AGGREGATE(2,6,summarystat[MP6])","v":2},{"$f":"_xlfn.AGGREGATE(2,6,summarystat[MP7])","v":2},{"$f":"_xlfn.AGGREGATE(2,6,summarystat[MP8])","v":2},{"$f":"_xlfn.AGGREGATE(2,6,summarystat[MP9])","v":2},{"$f":"_xlfn.AGGREGATE(2,6,summarystat[MP10])","v":2},{"$f":"_xlfn.AGGREGATE(2,6,summarystat[MP11])","v":2},{"$f":"_xlfn.AGGREGATE(2,6,summarystat[MP12])","v":2},{"$f":"_xlfn.AGGREGATE(2,6,summarystat[T1])","v":2},{"$f":"_xlfn.AGGREGATE(2,6,summarystat[T2])","v":2},{"$f":"_xlfn.AGGREGATE(2,6,summarystat[T3])","v":2},{"$f":"_xlfn.AGGREGATE(2,6,summarystat[T4])","v":2},{"$f":"_xlfn.AGGREGATE(2,6,summarystat[TECH1])","v":2}]
["HIGH","all valid ",{"$f":"_xlfn.AGGREGATE(4,6,summarystat[S1])","v":4},{"$f":"_xlfn.AGGREGATE(4,6,summarystat[S2])","v":4},{"$f":"_xlfn.AGGREGATE(4,6,summarystat[S3])","v":2},{"$f":"_xlfn.AGGREGATE(4,6,summarystat[S4])","v":3},{"$f":"_xlfn.AGGREGATE(4,6,summarystat[S5])","v":4},{"$f":"_xlfn.AGGREGATE(4,6,summarystat[S6])","v":4},{"$f":"_xlfn.AGGREGATE(4,6,summarystat[S7])","v":3},{"$f":"_xlfn.AGGREGATE(4,6,summarystat[I1])","v":3},{"$f":"_xlfn.AGGREGATE(4,6,summarystat[I2])","v":4},{"$f":"_xlfn.AGGREGATE(4,6,summarystat[I3])","v":3},{"$f":"_xlfn.AGGREGATE(4,6,summarystat[D1])","v":4},{"$f":"_xlfn.AGGREGATE(4,6,summarystat[D2])","v":3},{"$f":"_xlfn.AGGREGATE(4,6,summarystat[D3])","v":3},{"$f":"_xlfn.AGGREGATE(4,6,summarystat[C1])","v":4},{"$f":"_xlfn.AGGREGATE(4,6,summarystat[C2])","v":3},{"$f":"_xlfn.AGGREGATE(4,6,summarystat[C3])","v":4},{"$f":"_xlfn.AGGREGATE(4,6,summarystat[C4])","v":4},{"$f":"_xlfn.AGGREGATE(4,6,summarystat[C5])","v":3},{"$f":"_xlfn.AGGREGATE(4,6,summarystat[C6])","v":3},{"$f":"_xlfn.AGGREGATE(4,6,summarystat[C7])","v":2},{"$f":"_xlfn.AGGREGATE(4,6,summarystat[C8])","v":2},{"$f":"_xlfn.AGGREGATE(4,6,summarystat[C9])","v":3},{"$f":"_xlfn.AGGREGATE(4,6,summarystat[C10])","v":4},{"$f":"_xlfn.AGGREGATE(4,6,summarystat[C11])","v":4},{"$f":"_xlfn.AGGREGATE(4,6,summarystat[C12])","v":3},{"$f":"_xlfn.AGGREGATE(4,6,summarystat[C13])","v":3},{"$f":"_xlfn.AGGREGATE(4,6,summarystat[C14])","v":3},{"$f":"_xlfn.AGGREGATE(4,6,summarystat[C15])","v":3},{"$f":"_xlfn.AGGREGATE(4,6,summarystat[L1])","v":4},{"$f":"_xlfn.AGGREGATE(4,6,summarystat[L2])","v":4},{"$f":"_xlfn.AGGREGATE(4,6,summarystat[L3])","v":3},{"$f":"_xlfn.AGGREGATE(4,6,summarystat[R1])","v":3},{"$f":"_xlfn.AGGREGATE(4,6,summarystat[R2])","v":4},{"$f":"_xlfn.AGGREGATE(4,6,summarystat[R3])","v":4},{"$f":"_xlfn.AGGREGATE(4,6,summarystat[R4])","v":2},{"$f":"_xlfn.AGGREGATE(4,6,summarystat[R5])","v":5},{"$f":"_xlfn.AGGREGATE(4,6,summarystat[R6])","v":4},{"$f":"_xlfn.AGGREGATE(4,6,summarystat[R7])","v":3},{"$f":"_xlfn.AGGREGATE(4,6,summarystat[RT1])","v":4},{"$f":"_xlfn.AGGREGATE(4,6,summarystat[RT2])","v":2},{"$f":"_xlfn.AGGREGATE(4,6,summarystat[RT3])","v":4},{"$f":"_xlfn.AGGREGATE(4,6,summarystat[P1])","v":4},{"$f":"_xlfn.AGGREGATE(4,6,summarystat[P2])","v":3},{"$f":"_xlfn.AGGREGATE(4,6,summarystat[P3])","v":3},{"$f":"_xlfn.AGGREGATE(4,6,summarystat[P4])","v":2},{"$f":"_xlfn.AGGREGATE(4,6,summarystat[MP1])","v":3},{"$f":"_xlfn.AGGREGATE(4,6,summarystat[MP2])","v":4},{"$f":"_xlfn.AGGREGATE(4,6,summarystat[MP3])","v":5},{"$f":"_xlfn.AGGREGATE(4,6,summarystat[MP4])","v":5},{"$f":"_xlfn.AGGREGATE(4,6,summarystat[MP5])","v":3},{"$f":"_xlfn.AGGREGATE(4,6,summarystat[MP6])","v":3},{"$f":"_xlfn.AGGREGATE(4,6,summarystat[MP7])","v":4},{"$f":"_xlfn.AGGREGATE(4,6,summarystat[MP8])","v":4},{"$f":"_xlfn.AGGREGATE(4,6,summarystat[MP9])","v":4},{"$f":"_xlfn.AGGREGATE(4,6,summarystat[MP10])","v":3},{"$f":"_xlfn.AGGREGATE(4,6,summarystat[MP11])","v":4},{"$f":"_xlfn.AGGREGATE(4,6,summarystat[MP12])","v":5},{"$f":"_xlfn.AGGREGATE(4,6,summarystat[T1])","v":2},{"$f":"_xlfn.AGGREGATE(4,6,summarystat[T2])","v":4},{"$f":"_xlfn.AGGREGATE(4,6,summarystat[T3])","v":3},{"$f":"_xlfn.AGGREGATE(4,6,summarystat[T4])","v":4},{"$f":"_xlfn.AGGREGATE(4,6,summarystat[TECH1])","v":3}]
["LOW","all valid ",{"$f":"_xlfn.AGGREGATE(5,6,summarystat[S1])","v":2},{"$f":"_xlfn.AGGREGATE(5,6,summarystat[S2])","v":3},{"$f":"_xlfn.AGGREGATE(5,6,summarystat[S3])","v":2},{"$f":"_xlfn.AGGREGATE(5,6,summarystat[S4])","v":2},{"$f":"_xlfn.AGGREGATE(5,6,summarystat[S5])","v":3},{"$f":"_xlfn.AGGREGATE(5,6,summarystat[S6])","v":2},{"$f":"_xlfn.AGGREGATE(5,6,summarystat[S7])","v":2},{"$f":"_xlfn.AGGREGATE(5,6,summarystat[I1])","v":3},{"$f":"_xlfn.AGGREGATE(5,6,summarystat[I2])","v":2},{"$f":"_xlfn.AGGREGATE(5,6,summarystat[I3])","v":2},{"$f":"_xlfn.AGGREGATE(5,6,summarystat[D1])","v":2},{"$f":"_xlfn.AGGREGATE(5,6,summarystat[D2])","v":2},{"$f":"_xlfn.AGGREGATE(5,6,summarystat[D3])","v":2},{"$f":"_xlfn.AGGREGATE(5,6,summarystat[C1])","v":2},{"$f":"_xlfn.AGGREGATE(5,6,summarystat[C2])","v":2},{"$f":"_xlfn.AGGREGATE(5,6,summarystat[C3])","v":3},{"$f":"_xlfn.AGGREGATE(5,6,summarystat[C4])","v":2},{"$f":"_xlfn.AGGREGATE(5,6,summarystat[C5])","v":2},{"$f":"_xlfn.AGGREGATE(5,6,summarystat[C6])","v":2},{"$f":"_xlfn.AGGREGATE(5,6,summarystat[C7])","v":2},{"$f":"_xlfn.AGGREGATE(5,6,summarystat[C8])","v":1},{"$f":"_xlfn.AGGREGATE(5,6,summarystat[C9])","v":2},{"$f":"_xlfn.AGGREGATE(5,6,summarystat[C10])","v":2},{"$f":"_xlfn.AGGREGATE(5,6,summarystat[C11])","v":3},{"$f":"_xlfn.AGGREGATE(5,6,summarystat[C12])","v":2},{"$f":"_xlfn.AGGREGATE(5,6,summarystat[C13])","v":2},{"$f":"_xlfn.AGGREGATE(5,6,summarystat[C14])","v":1},{"$f":"_xlfn.AGGREGATE(5,6,summarystat[C15])","v":1},{"$f":"_xlfn.AGGREGATE(5,6,summarystat[L1])","v":2},{"$f":"_xlfn.AGGREGATE(5,6,summarystat[L2])","v":2},{"$f":"_xlfn.AGGREGATE(5,6,summarystat[L3])","v":1},{"$f":"_xlfn.AGGREGATE(5,6,summarystat[R1])","v":2},{"$f":"_xlfn.AGGREGATE(5,6,summarystat[R2])","v":2},{"$f":"_xlfn.AGGREGATE(5,6,summarystat[R3])","v":4},{"$f":"_xlfn.AGGREGATE(5,6,summarystat[R4])","v":2},{"$f":"_xlfn.AGGREGATE(5,6,summarystat[R5])","v":4},{"$f":"_xlfn.AGGREGATE(5,6,summarystat[R6])","v":3},{"$f":"_xlfn.AGGREGATE(5,6,summarystat[R7])","v":2},{"$f":"_xlfn.AGGREGATE(5,6,summarystat[RT1])","v":3},{"$f":"_xlfn.AGGREGATE(5,6,summarystat[RT2])","v":2},{"$f":"_xlfn.AGGREGATE(5,6,summarystat[RT3])","v":2},{"$f":"_xlfn.AGGREGATE(5,6,summarystat[P1])","v":4},{"$f":"_xlfn.AGGREGATE(5,6,summarystat[P2])","v":3},{"$f":"_xlfn.AGGREGATE(5,6,summarystat[P3])","v":2},{"$f":"_xlfn.AGGREGATE(5,6,summarystat[P4])","v":1},{"$f":"_xlfn.AGGREGATE(5,6,summarystat[MP1])","v":2},{"$f":"_xlfn.AGGREGATE(5,6,summarystat[MP2])","v":2},{"$f":"_xlfn.AGGREGATE(5,6,summarystat[MP3])","v":3},{"$f":"_xlfn.AGGREGATE(5,6,summarystat[MP4])","v":1},{"$f":"_xlfn.AGGREGATE(5,6,summarystat[MP5])","v":2},{"$f":"_xlfn.AGGREGATE(5,6,summarystat[MP6])","v":2},{"$f":"_xlfn.AGGREGATE(5,6,summarystat[MP7])","v":2},{"$f":"_xlfn.AGGREGATE(5,6,summarystat[MP8])","v":3},{"$f":"_xlfn.AGGREGATE(5,6,summarystat[MP9])","v":3},{"$f":"_xlfn.AGGREGATE(5,6,summarystat[MP10])","v":1},{"$f":"_xlfn.AGGREGATE(5,6,summarystat[MP11])","v":2},{"$f":"_xlfn.AGGREGATE(5,6,summarystat[MP12])","v":2},{"$f":"_xlfn.AGGREGATE(5,6,summarystat[T1])","v":2},{"$f":"_xlfn.AGGREGATE(5,6,summarystat[T2])","v":2},{"$f":"_xlfn.AGGREGATE(5,6,summarystat[T3])","v":2},{"$f":"_xlfn.AGGREGATE(5,6,summarystat[T4])","v":1},{"$f":"_xlfn.AGGREGATE(5,6,summarystat[TECH1])","v":3}]

{"sheet":"QUESTIONS","index":8,"n_rows":74,"n_cols":3,"rows_kept":74,"cut":false,"hidden":false,"merged":[]}
["QUESTION","1","5"]
[null,"Strategic Orientation"]
["S1","People/culture/organizational capability focused","Market/profitability/shareholder value focused"]
["S2","People understand and are focused on the long-term mission & strategy ","People are focused on doing business as usual or managing crises"]
["S3","Outcome-driven","Process-driven"]
["S4","Growth stage of lifecycle","Decline and disruption stage of lifecycle"]
["S5","Short-term profit orientation","Long-term value orientation"]
["S6","Customer and market driven","Technology driven"]
["S7","Fast and flexible response / MVP approach","Quality, rigid process, and proven approaches paramount"]
[null,"Communication and Information Flow"]
["I1","Information flow is centrally orchestrated (to the leader for decision-making; from the leader for direction)","Information flow is distributed and adapted by different people (team members determine how they share and distribute information for different issues; information flow is free)"]
["I2","Structured and planned","Sensing and emotionally-driven"]
["I3","Open and candid","Filtered"]
[null,"Decision Making"]
["D1","Formal long-term planning","\"Gut feels\"; responsive and opportunistic"]
["D2","Top-down","Distributed / Consensual"]
["D3","Authority is key","Constructive conflict is key"]
[null,"Team Culture"]
["C1","Family-like","Business-like"]
["C2","Passion and intuition driven","Logical and data driven"]
["C3","Cult-like","Independent thinkers"]
["C4","Psychologically safe at all levels; open debate; all ideas welcome","Psychologically safe at the top; guarded lower levels; little debate; ideas tied to proven expertise"]
["C5","Informal / personable","Formal, business-like and task-oriented"]
["C6","Collaborative","Competitive"]
["C7","Flexible ","Rigid / punctual"]
["C8","Polite/indirect","Blunt/direct (can be perceived as \"offensive\" by outsiders)"]
["C9","Openly and directly discuss problems, mistakes, challenges as a team","Team members problem solve individually before bringing up issues with the team"]
["C10","Candidly voice authentic opinions","Avoid conflict "]
["C11","Intense, high-energy","Low-key, pensive, quiet, subdued"]
["C12","Adaptable to change and opportunities to learn and grow; tolerant of ambiguity and uncertainty","Does not welcome change, focused on getting things done"]
["C13","\"Posturing\" with leaders is important","Informality and debate / minimal political \"games\""]
["C14","Rigid silos ","Cross-functional cooperation"]
["C15","High trust","Low trust"]
[null,"Training and Development"]
["L1","Formal / structured programs","Informal programs adapted to individual needs"]
["L2","Considerable opportunity for learning and development","Limited opportunity for deep learning; limited role mobility"]
["L3","Training tied to current roles","Training tied to current roles, future roles and overall strategic direction of the business"]
[null,"Rewards and Recognition"]
["R1","Individual performance","Individual performance plus team and organizational performance"]
["R2","Performance expectations top-down","Performance expectations co-developed"]
["R3","Seniority-based","Performance-based"]
["R4","Performance standards and expectations are clear","Performance standards and expectations are vague and ambiguous"]
["R5","Compensation is above market","Compensation is below market"]
["R6","Compensation gaps across levels are narrower than average","Compensation gaps across levels are wider than average"]
["R7","Feedback is more focused on performance management/improvement","Feedback is more focused on growth"]
[null,"Risk-taking and Innovation"]
["RT1","Risk averse; punitive for mistakes","Calculating risk-taking encouraged and rewarded; mistakes are seen as learning opportunities"]
["RT2","Innovation is ad hoc; not formally rewarded","Innovation is rewarded and actively funded based on objective criteria"]
["RT3","Employee ideas are solicited and acted upon","Employee ideas are not acted upon"]
[null,"Planning and Analysis"]
["P1","Long-term","Short-term"]
["P2","Data use and analysis are maximized using advanced collection tools, skills and technology","Data use and analysis are minimal"]
["P3","Proactive, future-oriented and strategic","Reactive and focused on past performance"]
["P4","Focused on external opportunities and threats","Focused on rigid resource allocation processes "]
[null,"Management Practices"]
["MP1","Leadership is transparent and humble","Leadership is opaque and charismatic"]
["MP2","Leaders are hard drivers","Leaders focus on long-term organizational capability"]
["MP3","High levels of mentoring and coaching","Mentoring and coaching is highly selective "]
["MP4","Rigid, formal, professional process, policies and procedures","Informal, entrepreneurial processes"]
["MP5","Command and control leadership style","Transformational leadership style"]
["MP6","Cost reduction and efficiency driven","Quality driven"]
["MP7","People feel trusted, respected, appreciated, valued","People feel like \"cogs in the wheel\"; replaceable"]
["MP8","Low stress","High stress/burnout "]
["MP9","Learning orientation","Performance orientation"]
["MP10","Leaders are actively engaged and help resolve conflict","Leaders are aloof; sink-or-swim approach"]
["MP11","Leaders are seen as \"servant\"","Leaders are seen as \"self-serving\""]
["MP12","Leaders see themselves in the \"parent\" role","Leaders see themselves in the \"equal adult\" role"]
[null,"Team Structure and Process"]
["T1","Hierarchical ","Flat"]
["T2","Roles clearly defined and understood","Roles are ambiguous and evolve easily"]
["T3","Team purpose and mission considered in defining team structure","Seniority considered in defining team structure"]
["T4","Team meetings are effective at aligning team","Team meetings are seen as a \"resource trap\""]
[null,"Technology"]
["TECH1","State-of-the-art driven","Compliance-driven"]